Workbook

Sheet About
E3: European standard EN 13363-1:2007
E5: Solar protection devices combined with glazing -
E6: Calculation of solar and light transmittance -
E7: Part 1: Simplified method
E9: Ontwikkeld door / Développé par
E16: Wetenschappelijk en Technisch Centrum voor het Bouwbedrijf
E17: Centre Scientifique et Technique de la Construction
E18: Belgian Building Research Institute
E21: in het kader van het Belgische project "KMO - normenantenne"
E22: dans le cadre du projet belge "PME - antenne normes"
B24: Read our discaimer on www.wtcb.be or www.cstc.be
E27: Version 7.1

Sheet Intro
C9: EUROPEAN STANDARD EN 13363-1 : 2007
C10: Solar protection devices combined with glazing - Calculation of solar and light transmittance - Part 1 : Simplified method
C11: Dispositifs de protection solaire combinés à des vitrages - Calcul du facteur de transmission solaire et lumineuse - Partie 1 : Méthode simplifiée
C13: The European standard EN 13363-1:2003+A1:2007 has been drawn up by the Technical Committee CEN/TC 89 "Thermal performance of buildings and building components".
C14: This standard consists of two parts :
C15: Part 1 : Simplified method (EN 13363-1)
C16: Part 2 : Detailed calculation method (EN 13363-2)
C18: The standard EN 13363-1 gives a simplified method based on the usually known data of the glazing, the U- and g-value, and the solar transmittance and reflectance of the solar protection device to estimate the total solar energy transmittance of a solar protection device combined with a glazing.
C19: The results of this simplified method are approximate and generally tend to lie on the safe side for cooling load estimations.
C20: The text of the standard EN 13363-1 must be consulted to know the exact application of this method.
C22: This Excel sheet allows to carry out the calculations given in this standard in order to be able to estimate the total solar energy transmittance (g-value), the direct solar transmittance, the secondary internal heat transfer factor and the light transmittance of a solar protection device combined with glazing.
C24: It contains the following sheets:
D26: · Some definitions are given in the sheet "Definitions". | K26: Definitions
D28: · Typical data for glazings are indicated in the sheet "Glazing". | K28: Glazing
D30: · Typical data for solar protection devices are indicated in the sheet "Solar prot. device". | K30: Solar prot device
D32: · Data for solar protection devices have to be entered in the sheet "Solar prot device - Data". | K32: Solar prot device - data
D34: · The worksheet "Results-1" gives the calculation of the total solar energy transmittance, the direct solar transmittance, the secondary internal heat transfer factor and the light transmittance of the specified solar protection devices combined with one specified glazing. | K34: Results-1
D36: · The worksheet "Results-2" allows to see the effect of the g- and U-values of the glazing on the total solar energy transmittance of the combination solar protection device - glazing. | K36: Results-2
D37: · The worksheet "Results-3" gives the calculation of the total solar energy transmittance (g-value), the direct solar transmittance and the secondary internal heat transfer factor of the combination of the specified solar protection devices with the 4 reference glazings defined in the standard EN 14501. | K37: Results-3
D39: · The worksheet "Update" gives an explanation of the update of this version of the Excel tool compared to the previous one. | K39: Update

Sheet Definitions
D9: Definitions
E11: te | F11: The direct solar transmittance is the fraction of the incident solar radiation that is directly transmitted by the component (component can be : glazing, solar protection device, combination solar protection device-glazing, …)
E12: re | F12: The direct solar reflectance is the fraction of the incident solar radiation that is directly reflected by the component.
E13: g | F13: The total solar energy transmittance (solar factor) is the sum of the direct solar transmittance te and the indirect solar transmittance (fraction of the absorbed radiation that is reemitted to inside).This is the fraction of the total transmitted energy to the total incident solar radiation.
E14: U | F14: The thermal transmittance is the density of heat flow rate through a component in the steady state divided by the temperature difference between the surroundings on each side of the component (in W/m² K)
E15: Fc | F15: The Shading factor is the ratio of the solar factor of the combined glazing and solar protection device gtot to that of the glazing alone g
D17: Characteristic data
D18: Glazing
D19: The glazing is characterised by its thermal transmittance Ug, its total solar energy transmittance g and its transmittance and reflectance values.
E21: Ug | F21: Thermal transmittance of the glazing [W/m²K]
E22: g | F22: Total solar energy transmittance [-]
E23: te | F23: Direct solar transmittance of the glazing [-]
E24: re | F24: Solar reflectance of the glazing (side facing the incident radiation) [-]
E25: r'e | F25: Solar reflectance of the glazing (opposite side from incident radiation) [-]
E26: tv | F26: Light transmittance of the glazing [-]
E27: rv | F27: Light reflectance of the glazing (side facing the incident radiation) [-]
E28: r'v | F28: Light reflectance of the glazing (opposite side from incident radiation) [-]
E29: qi | F29: Secondary internal heat transfer factor [-] (qi = g - te)
D44: Solar protection device
D45: Solar protection devices are characterised by the following factors :
E46: te,B | F46: (Direct) Solar transmittance of the solar protection device [-]
E47: re,B | F47: Solar reflectance of the side of the solar protection device facing the incident radiation [-]
E48: r'e,B | F48: Solar reflectance of the side of the solar protection device opposite from the incident radiation [-]
E49: ae,B | F49: Solar absorptance of the side of the solar protection device facing the incident radiation [-]
E50: tv,B | F50: Light transmittance of the solar protection device [-]
E51: rv,B | F51: Light reflectance of the side of the solar protection device facing the incident radiation [-]
E52: r'v,B | F52: Light reflectance of the side of the solar protection device opposite from the incident radiation [-]
D55: Combination 'Glazing & Solar protection device'
D56: The combination of the glazing and solar protection device is characterised by the following factors :
E57: g tot | F57: Total solar energy transmittance [-]
E58: te,tot | F58: Direct solar transmittance [-]
E59: qi,tot | F59: Secondary internal heat transfer factor [-] (qi,tot = g,tot - te,tot)
E60: tv,tot | F60: Light transmittance [-]
E61: Fc | F61: Shading factor [-]

Sheet Glazing
C3: Data for typical glazing
C4: (see Annex A in the standard EN 13363-1)
C6: Product | D6: Thermal | E6: Total solar | F6: Light | G6: Light
D7: transmittance | E7: energy | F7: transmittance | G7: reflectance
D8: W/(m²K) | E8: transmittance
D9: Ug | E9: g | F9: tv | G9: rv = r'v
C10: Single clear glass | D10: 5.7 | E10: 0.85 | F10: 0.9 | G10: 0.08
C11: Double clear glass | D11: 3 | E11: 0.75 | F11: 0.82 | G11: 0.15
C12: Triple clear glass | D12: 2 | E12: 0.65 | F12: 0.75 | G12: 0.2
C13: Double clear glass with low emissivity coating | D13: 1.6 | E13: 0.7 | F13: 0.75 | G13: 0.17
C15: These data are on the safe side for cooling load estimations.
C17: These data are given for information.
C18: The real data (U-value, g-value, light and solar transmittance and reflectance) for the glazing with which you want to combine the solar protection devices have to be introduced in the worsheet "Results-1".

Sheet Solar prot device
D9: Typical data for solar protection devices
D10: (see Annex A of the standard EN 13363-1)
D12: The next table gives typical values of transmittance and reflectance of solar protection device materials. These are indicative values given for information.
F15: White | G15: Pastel | H15: Dark | I15: Black
D17: Transmittance te,B | F17: Reflectance re,B
D18: Opaque | E18: 0 | F18: 0.7 | G18: 0.5 | H18: 0.3 | I18: 0.1
D19: Medium translucent | E19: 0.2 | F19: 0.6 | G19: 0.4 | H19: 0.2 | I19: 0.1
D20: High translucent | E20: 0.4 | F20: 0.4 | G20: 0.3 | H20: 0.2 | I20: 0.1
D22: The absorptance, ae,B, is equal to 1 - te,B - re,B

Sheet Solar prot device - data
D10: Data for solar protection device
D12: Please enter the characteristic data of your solar protection devices in the following table :
D15: Where:
D16: te,B * | E16: (Direct) Solar transmittance of the solar protection device [-] | L16: * Required for the calculation of the g-value
D17: re,B * | E17: Solar reflectance of the side of the solar protection device facing the incident radiation [-] | L17: * Required for the calculation of the g-value
D18: r'e,B | E18: Solar reflectance of the side of the solar protection device opposite from the incident radiation [-]
D19: ae,B | E19: Solar absorptance of the side of the solar protection device facing the incident radiation [-]
D20: tv,B | E20: Light transmittance of the solar protection device [-]
D21: rv,B | E21: Light reflectance of the side of the solar protection device facing the incident radiation [-]
D22: r'v,B | E22: Light reflectance of the side of the solar protection device opposite from the incident radiation [-]
D25: Prot. | E25: Name of the solar protection device | F25: te,B | G25: re,B | H25: r'e,B | I25: ae,B | J25: tv,B | K25: rv,B | L25: r'v,B
D26: nr
D27: 1 | E27: Opaque - White | F27: 0 | G27: 0.7 | H27: 0.7 | I27: =IF(OR(F27="",G27=""),"",1-F27-G27) -> 0.3 | J27: 0 | K27: 0.7 | L27: 0.7
D28: 2 | E28: Opaque - Pastel | F28: 0 | G28: 0.5 | H28: 0.5 | I28: =IF(OR(F28="",G28=""),"",1-F28-G28) -> 0.5 | J28: 0 | K28: 0.5 | L28: 0.5
D29: 3 | E29: Opaque - Dark | F29: 0 | G29: 0.3 | H29: 0.3 | I29: 0.7 | J29: 0 | K29: 0.3 | L29: 0.3
D30: 4 | E30: Opaque - Black | F30: 0 | G30: 0.1 | H30: 0.1 | I30: 0.9 | J30: 0 | K30: 0.1 | L30: 0.1
D31: 5 | E31: Medium translucent - White | F31: 0.2 | G31: 0.6 | H31: 0.6 | I31: 0.2 | J31: 0.2 | K31: 0.6 | L31: 0.6
D32: 6 | E32: Medium translucent - Pastel | F32: 0.2 | G32: 0.4 | H32: 0.4 | I32: 0.4 | J32: 0.2 | K32: 0.4 | L32: 0.4
D33: 7 | E33: Medium translucent - Dark | F33: 0.2 | G33: 0.2 | H33: 0.2 | I33: 0.6 | J33: 0.2 | K33: 0.2 | L33: 0.2
D34: 8 | E34: Medium translucent - Black | F34: 0.2 | G34: 0.1 | H34: 0.1 | I34: 0.7 | J34: 0.2 | K34: 0.1 | L34: 0.1
D35: 9 | E35: High translucent - White | F35: 0.4 | G35: 0.4 | H35: 0.4 | I35: 0.2 | J35: 0.4 | K35: 0.4 | L35: 0.4
D36: 10 | E36: High translucent - Pastel | F36: 0.4 | G36: 0.3 | H36: 0.3 | I36: 0.3 | J36: 0.4 | K36: 0.3 | L36: 0.3
D37: 11 | E37: High translucent - Dark | F37: 0.4 | G37: 0.2 | H37: 0.2 | I37: 0.4 | J37: 0.4 | K37: 0.2 | L37: 0.2
D38: 12 | E38: High translucent - Black | F38: 0.4 | G38: 0.1 | H38: 0.1 | I38: 0.5 | J38: 0.4 | K38: 0.1 | L38: 0.1
D39: 13
D40: 14
D41: 15
D42: 16
D43: 17
D44: 18
D45: 19 | I45: =IF(OR(F45="",G45=""),"",1-F45-G45) -> 
D46: 20 | I46: =IF(OR(F46="",G46=""),"",1-F46-G46) -> 
D47: 21 | I47: =IF(OR(F47="",G47=""),"",1-F47-G47) -> 
D48: 22 | I48: =IF(OR(F48="",G48=""),"",1-F48-G48) -> 
D49: 23 | I49: =IF(OR(F49="",G49=""),"",1-F49-G49) -> 
D50: 24
D51: 25
D52: 26
D53: 27
D54: 28
D55: 29
D56: 30
D57: 31
D58: 32
D59: 33
D60: 34
D61: 35 | I61: =IF(OR(F61="",G61=""),"",1-F61-G61) -> 
D62: 36
D63: 37
D64: 38
D65: 39
D66: 40
D67: 41
D68: 42
D69: 43
D70: 44
D71: 45
D72: 46
D73: 47
D74: 48
D75: 49
D76: 50
D77: 51
D78: 52
D79: 53
D80: 54
D81: 55
D82: 56
D83: 57
D84: 58
D85: 59
D86: 60
D87: 61
D88: 62
D89: 63
D90: 64
D91: 65
D92: 66
D93: 67
D94: 68
D95: 69
D96: 70
D97: 71
D98: 72
D99: 73
D100: 74
D101: 75
D102: 76
D103: 77
D104: 78
D105: 79
D106: 80
D107: 81
D108: 82
D109: 83
D110: 84
D111: 85
D112: 86
D113: 87
D114: 88
D115: 89
D116: 90
D117: 91
D118: 92
D119: 93
D120: 94
D121: 95
D122: 96
D123: 97
D124: 98
D125: 99 | I125: =IF(OR(F125="",G125=""),"",1-F125-G125) -> 
D126: 100 | I126: =IF(OR(F126="",G126=""),"",1-F126-G126) -> 

Sheet Results-1
D9: Please enter the characteristic data of the glazing with which you want to combine the solar protection device :
D11: Glazing | F11: Name | G11: Glazing Z
F13: U-value * | G13: 1.1 | H13: (thermal transmittance in [W/(m²K)]) | N13: * Required for the calculation of the g-value
F15: g-value * | G15: 0.85 | H15: (total solar energy transmittance) | N15: * Required for the calculation of the g-value
F17: t e | G17: 0.27 | H17: (solar transmittance)
F19: r e | G19: 0.29 | H19: (solar reflectance)
F21: r' e | G21: 0.38 | H21: (solar reflectance)
F23: t v | G23: 0.27 | H23: (light transmittance)
F25: r v | G25: 0.29 | H25: (light reflectance)
F27: r' v | G27: 0.38 | H27: (light reflectance)
D28: The following table gives the total solar energy transmittance gtot, the direct solar transmittance te,tot, the secondary internal heat transfer factor qi,tot and the light transmittance tv,tot for the combination of the specified glazing (see characteristics above) and solar protection devices (see characteristics in sheet "Solar prot. device-data") according to the standard EN 13363-1. Three cases are distinguished : external solar prot. device, internal solar prot. device and integrated solar prot. device (between glass panes) :
O31: gtot | R31: te, tot | T31: qi,tot | V31: tv, tot | Y31: Fc
D32: Comb. | E32: Name of the combination glazing + blind | H32: te,B | I32: re,B | J32: r'e,B | K32: ae,B | L32: tv,B | M32: rv,B | N32: r'v,B | O32: External | P32: Internal | Q32: Integrated | R32: External | S32: Internal | T32: External | U32: Internal | V32: External | W32: Internal | Y32: External | Z32: Internal | AA32: Integrated | AF32: G1 | AG32: 5
D33: nr | O33: prot.dev. | P33: prot.dev. | Q33: prot.dev. | R33: prot.dev. | S33: prot.dev. | T33: prot.dev. | U33: prot.dev. | V33: prot.dev. | W33: prot.dev. | Y33: prot.dev. | Z33: prot.dev. | AA33: prot.dev. | AF33: G2 ext | AG33: 10
D34: ='Solar prot device - data'!D27 -> 1 | E34: =IF('Solar prot device - data'!E27<>"",G$11&" + "&'Solar prot device - data'!E27,"") -> Glazing Z + Opaque - White | H34: =IF('Solar prot device - data'!F27<>"",'Solar prot device - data'!F27,"") -> 0 | I34: =IF('Solar prot device - data'!G27<>"",'Solar prot device - data'!G27,"") -> 0.7 | J34: =IF('Solar prot device - data'!H27<>"",'Solar prot device - data'!H27,"") -> 0.7 | K34: =IF('Solar prot device - data'!I27<>"",'Solar prot device - data'!I27,"") -> 0.3 | L34: =IF('Solar prot device - data'!J27<>"",'Solar prot device - data'!J27,"") -> 0 | M34: =IF('Solar prot device - data'!K27<>"",'Solar prot device - data'!K27,"") -> 0.7 | N34: =IF('Solar prot device - data'!L27<>"",'Solar prot device - data'!L27,"") -> 0.7 | O34: =IF(AND(H34<>"",I34<>"",$G$13<>"",$G$15<>""),H34*$G$15+K34*$AG$36/$AG$33+H34*(1-$G$15)*$AG$36/$AG$32,"") -> 0.02481203008 | P34: =IF(AND(H34<>"",I34<>"",$G$13<>"",$G$15<>""),$G$15*(1-$G$15*I34-K34*$AG$37/$AG$34),"") -> 0.3352307074 | Q34: =IF(AND(H34<>"",I34<>"",$G$13<>"",$G$15<>""),$G$15*H34+$G$15*(K34+(1-$G$15)*I34)*$AG$38/$AG$35,"") -> 0.0923597561 | R34: =IF(AND(H34<>"",J34<>"",$G$17<>"",$G$19<>""),$G$17*H34/(1-$G$19*J34),"") -> 0 | S34: =IF(AND(H34<>"",I34<>"",$G$17<>"",$G$21<>""),$G$17*H34/(1-$G$21*I34),"") -> 0 | T34: =IF(AND(O34<>"", R34<>""),O34-R34,"") -> 0.02481203008 | U34: =IF(AND(P34<>"", S34<>""),P34-S34,"") -> 0.3352307074 | V34: =IF(AND(L34<>"",N34<>"",$G$23<>"",$G$25<>""),$G$23*L34/(1-$G$25*N34),"") -> 0 | W34: =IF(AND(L34<>"",M34<>"",$G$23<>"",$G$27<>""),$G$23*L34/(1-$G$27*M34),"") -> 0 | Y34: =IF(AND(O34<>"",$G$15<>""),O34/$G$15,"") -> 0.02919062362 | Z34: =IF(AND(P34<>"",$G$15<>""),P34/$G$15,"") -> 0.3943890675 | AA34: =IF(AND(Q34<>"",$G$15<>""),Q34/$G$15,"") -> 0.1086585366 | AF34: G2 int | AG34: 30
D35: ='Solar prot device - data'!D28 -> 2 | E35: =IF('Solar prot device - data'!E28<>"",G$11&" + "&'Solar prot device - data'!E28,"") -> Glazing Z + Opaque - Pastel | H35: =IF('Solar prot device - data'!F28<>"",'Solar prot device - data'!F28,"") -> 0 | I35: =IF('Solar prot device - data'!G28<>"",'Solar prot device - data'!G28,"") -> 0.5 | J35: =IF('Solar prot device - data'!H28<>"",'Solar prot device - data'!H28,"") -> 0.5 | K35: =IF('Solar prot device - data'!I28<>"",'Solar prot device - data'!I28,"") -> 0.5 | L35: =IF('Solar prot device - data'!J28<>"",'Solar prot device - data'!J28,"") -> 0 | M35: =IF('Solar prot device - data'!K28<>"",'Solar prot device - data'!K28,"") -> 0.5 | N35: =IF('Solar prot device - data'!L28<>"",'Solar prot device - data'!L28,"") -> 0.5 | O35: =IF(AND(H35<>"",I35<>"",$G$13<>"",$G$15<>""),H35*$G$15+K35*$AG$36/$AG$33+H35*(1-$G$15)*$AG$36/$AG$32,"") -> 0.04135338346 | P35: =IF(AND(H35<>"",I35<>"",$G$13<>"",$G$15<>""),$G$15*(1-$G$15*I35-K35*$AG$37/$AG$34),"") -> 0.4737178457 | Q35: =IF(AND(H35<>"",I35<>"",$G$13<>"",$G$15<>""),$G$15*H35+$G$15*(K35+(1-$G$15)*I35)*$AG$38/$AG$35,"") -> 0.1311280488 | R35: =IF(AND(H35<>"",J35<>"",$G$17<>"",$G$19<>""),$G$17*H35/(1-$G$19*J35),"") -> 0 | S35: =IF(AND(H35<>"",I35<>"",$G$17<>"",$G$21<>""),$G$17*H35/(1-$G$21*I35),"") -> 0 | T35: =IF(AND(O35<>"", R35<>""),O35-R35,"") -> 0.04135338346 | U35: =IF(AND(P35<>"", S35<>""),P35-S35,"") -> 0.4737178457 | V35: =IF(AND(L35<>"",N35<>"",$G$23<>"",$G$25<>""),$G$23*L35/(1-$G$25*N35),"") -> 0 | W35: =IF(AND(L35<>"",M35<>"",$G$23<>"",$G$27<>""),$G$23*L35/(1-$G$27*M35),"") -> 0 | Y35: =IF(AND(O35<>"",$G$15<>""),O35/$G$15,"") -> 0.04865103936 | Z35: =IF(AND(P35<>"",$G$15<>""),P35/$G$15,"") -> 0.5573151125 | AA35: =IF(AND(Q35<>"",$G$15<>""),Q35/$G$15,"") -> 0.1542682927 | AF35: G3 | AG35: 3
D36: ='Solar prot device - data'!D29 -> 3 | E36: =IF('Solar prot device - data'!E29<>"",G$11&" + "&'Solar prot device - data'!E29,"") -> Glazing Z + Opaque - Dark | H36: =IF('Solar prot device - data'!F29<>"",'Solar prot device - data'!F29,"") -> 0 | I36: =IF('Solar prot device - data'!G29<>"",'Solar prot device - data'!G29,"") -> 0.3 | J36: =IF('Solar prot device - data'!H29<>"",'Solar prot device - data'!H29,"") -> 0.3 | K36: =IF('Solar prot device - data'!I29<>"",'Solar prot device - data'!I29,"") -> 0.7 | L36: =IF('Solar prot device - data'!J29<>"",'Solar prot device - data'!J29,"") -> 0 | M36: =IF('Solar prot device - data'!K29<>"",'Solar prot device - data'!K29,"") -> 0.3 | N36: =IF('Solar prot device - data'!L29<>"",'Solar prot device - data'!L29,"") -> 0.3 | O36: =IF(AND(H36<>"",I36<>"",$G$13<>"",$G$15<>""),H36*$G$15+K36*$AG$36/$AG$33+H36*(1-$G$15)*$AG$36/$AG$32,"") -> 0.05789473684 | P36: 0.6122049839 | Q36: 0.1698963415 | R36: 0 | S36: 0 | T36: 0.05789473684 | U36: 0.6122049839 | V36: 0 | W36: 0 | Y36: 0.06811145511 | Z36: 0.7202411576 | AA36: 0.1998780488 | AF36: G ext | AG36: =1/(1/$G$13+1/$AG$32+1/$AG$33) -> 0.8270676692
D37: ='Solar prot device - data'!D30 -> 4 | E37: =IF('Solar prot device - data'!E30<>"",G$11&" + "&'Solar prot device - data'!E30,"") -> Glazing Z + Opaque - Black | H37: =IF('Solar prot device - data'!F30<>"",'Solar prot device - data'!F30,"") -> 0 | I37: =IF('Solar prot device - data'!G30<>"",'Solar prot device - data'!G30,"") -> 0.1 | J37: =IF('Solar prot device - data'!H30<>"",'Solar prot device - data'!H30,"") -> 0.1 | K37: =IF('Solar prot device - data'!I30<>"",'Solar prot device - data'!I30,"") -> 0.9 | L37: =IF('Solar prot device - data'!J30<>"",'Solar prot device - data'!J30,"") -> 0 | M37: =IF('Solar prot device - data'!K30<>"",'Solar prot device - data'!K30,"") -> 0.1 | N37: =IF('Solar prot device - data'!L30<>"",'Solar prot device - data'!L30,"") -> 0.1 | O37: 0.07443609023 | P37: 0.7506921222 | Q37: 0.2086646341 | R37: 0 | S37: 0 | T37: 0.07443609023 | U37: 0.7506921222 | V37: 0 | W37: 0 | Y37: 0.08757187085 | Z37: 0.8831672026 | AA37: 0.2454878049 | AF37: G int | AG37: =1/(1/$G$13+1/$AG$34) -> 1.061093248
D38: ='Solar prot device - data'!D31 -> 5 | E38: =IF('Solar prot device - data'!E31<>"",G$11&" + "&'Solar prot device - data'!E31,"") -> Glazing Z + Medium translucent - White | H38: =IF('Solar prot device - data'!F31<>"",'Solar prot device - data'!F31,"") -> 0.2 | I38: =IF('Solar prot device - data'!G31<>"",'Solar prot device - data'!G31,"") -> 0.6 | J38: =IF('Solar prot device - data'!H31<>"",'Solar prot device - data'!H31,"") -> 0.6 | K38: =IF('Solar prot device - data'!I31<>"",'Solar prot device - data'!I31,"") -> 0.2 | L38: =IF('Solar prot device - data'!J31<>"",'Solar prot device - data'!J31,"") -> 0.2 | M38: =IF('Solar prot device - data'!K31<>"",'Solar prot device - data'!K31,"") -> 0.6 | N38: =IF('Solar prot device - data'!L31<>"",'Solar prot device - data'!L31,"") -> 0.6 | O38: 0.1915037594 | P38: 0.4104871383 | Q38: 0.2361341463 | R38: 0.06537530266 | S38: 0.06994818653 | T38: 0.1261284567 | U38: 0.3405389517 | V38: 0.06537530266 | W38: 0.06994818653 | Y38: 0.2252985405 | Z38: 0.482926045 | AA38: 0.277804878 | AF38: G between | AG38: =1/(1/$G$13+1/$AG$35) -> 0.8048780488
D39: ='Solar prot device - data'!D32 -> 6 | E39: =IF('Solar prot device - data'!E32<>"",G$11&" + "&'Solar prot device - data'!E32,"") -> Glazing Z + Medium translucent - Pastel | H39: =IF('Solar prot device - data'!F32<>"",'Solar prot device - data'!F32,"") -> 0.2 | I39: =IF('Solar prot device - data'!G32<>"",'Solar prot device - data'!G32,"") -> 0.4 | J39: =IF('Solar prot device - data'!H32<>"",'Solar prot device - data'!H32,"") -> 0.4 | K39: =IF('Solar prot device - data'!I32<>"",'Solar prot device - data'!I32,"") -> 0.4 | L39: =IF('Solar prot device - data'!J32<>"",'Solar prot device - data'!J32,"") -> 0.2 | M39: =IF('Solar prot device - data'!K32<>"",'Solar prot device - data'!K32,"") -> 0.4 | N39: =IF('Solar prot device - data'!L32<>"",'Solar prot device - data'!L32,"") -> 0.4 | O39: 0.2080451128 | P39: 0.5489742765 | Q39: 0.274902439 | R39: 0.06108597285 | S39: 0.06367924528 | T39: 0.1469591399 | U39: 0.4852950312 | V39: 0.06108597285 | W39: 0.06367924528 | Y39: 0.2447589562 | Z39: 0.64585209 | AA39: 0.3234146341
D40: ='Solar prot device - data'!D33 -> 7 | E40: =IF('Solar prot device - data'!E33<>"",G$11&" + "&'Solar prot device - data'!E33,"") -> Glazing Z + Medium translucent - Dark | H40: =IF('Solar prot device - data'!F33<>"",'Solar prot device - data'!F33,"") -> 0.2 | I40: =IF('Solar prot device - data'!G33<>"",'Solar prot device - data'!G33,"") -> 0.2 | J40: =IF('Solar prot device - data'!H33<>"",'Solar prot device - data'!H33,"") -> 0.2 | K40: =IF('Solar prot device - data'!I33<>"",'Solar prot device - data'!I33,"") -> 0.6 | L40: =IF('Solar prot device - data'!J33<>"",'Solar prot device - data'!J33,"") -> 0.2 | M40: =IF('Solar prot device - data'!K33<>"",'Solar prot device - data'!K33,"") -> 0.2 | N40: =IF('Solar prot device - data'!L33<>"",'Solar prot device - data'!L33,"") -> 0.2 | O40: 0.2245864662 | P40: 0.6874614148 | Q40: 0.3136707317 | R40: 0.05732484076 | S40: 0.05844155844 | T40: 0.1672616254 | U40: 0.6290198563 | V40: 0.05732484076 | W40: 0.05844155844 | Y40: 0.264219372 | Z40: 0.808778135 | AA40: 0.3690243902
D41: ='Solar prot device - data'!D34 -> 8 | E41: =IF('Solar prot device - data'!E34<>"",G$11&" + "&'Solar prot device - data'!E34,"") -> Glazing Z + Medium translucent - Black | H41: =IF('Solar prot device - data'!F34<>"",'Solar prot device - data'!F34,"") -> 0.2 | I41: =IF('Solar prot device - data'!G34<>"",'Solar prot device - data'!G34,"") -> 0.1 | J41: =IF('Solar prot device - data'!H34<>"",'Solar prot device - data'!H34,"") -> 0.1 | K41: =IF('Solar prot device - data'!I34<>"",'Solar prot device - data'!I34,"") -> 0.7 | L41: =IF('Solar prot device - data'!J34<>"",'Solar prot device - data'!J34,"") -> 0.2 | M41: =IF('Solar prot device - data'!K34<>"",'Solar prot device - data'!K34,"") -> 0.1 | N41: =IF('Solar prot device - data'!L34<>"",'Solar prot device - data'!L34,"") -> 0.1 | O41: 0.2328571429 | P41: 0.7567049839 | Q41: 0.333054878 | R41: 0.05561277034 | S41: 0.05613305613 | T41: 0.1772443725 | U41: 0.7005719278 | V41: 0.05561277034 | W41: 0.05613305613 | Y41: 0.2739495798 | Z41: 0.8902411576 | AA41: 0.3918292683
D42: ='Solar prot device - data'!D35 -> 9 | E42: =IF('Solar prot device - data'!E35<>"",G$11&" + "&'Solar prot device - data'!E35,"") -> Glazing Z + High translucent - White | H42: =IF('Solar prot device - data'!F35<>"",'Solar prot device - data'!F35,"") -> 0.4 | I42: =IF('Solar prot device - data'!G35<>"",'Solar prot device - data'!G35,"") -> 0.4 | J42: =IF('Solar prot device - data'!H35<>"",'Solar prot device - data'!H35,"") -> 0.4 | K42: =IF('Solar prot device - data'!I35<>"",'Solar prot device - data'!I35,"") -> 0.2 | L42: =IF('Solar prot device - data'!J35<>"",'Solar prot device - data'!J35,"") -> 0.4 | M42: =IF('Solar prot device - data'!K35<>"",'Solar prot device - data'!K35,"") -> 0.4 | N42: =IF('Solar prot device - data'!L35<>"",'Solar prot device - data'!L35,"") -> 0.4 | O42: 0.3664661654 | P42: 0.5549871383 | Q42: 0.3992926829 | R42: 0.1221719457 | S42: 0.1273584906 | T42: 0.2442942197 | U42: 0.4276286477 | V42: 0.1221719457 | W42: 0.1273584906 | Y42: 0.4311366652 | Z42: 0.652926045 | AA42: 0.4697560976
D43: ='Solar prot device - data'!D36 -> 10 | E43: =IF('Solar prot device - data'!E36<>"",G$11&" + "&'Solar prot device - data'!E36,"") -> Glazing Z + High translucent - Pastel | H43: =IF('Solar prot device - data'!F36<>"",'Solar prot device - data'!F36,"") -> 0.4 | I43: =IF('Solar prot device - data'!G36<>"",'Solar prot device - data'!G36,"") -> 0.3 | J43: =IF('Solar prot device - data'!H36<>"",'Solar prot device - data'!H36,"") -> 0.3 | K43: =IF('Solar prot device - data'!I36<>"",'Solar prot device - data'!I36,"") -> 0.3 | L43: =IF('Solar prot device - data'!J36<>"",'Solar prot device - data'!J36,"") -> 0.4 | M43: =IF('Solar prot device - data'!K36<>"",'Solar prot device - data'!K36,"") -> 0.3 | N43: =IF('Solar prot device - data'!L36<>"",'Solar prot device - data'!L36,"") -> 0.3 | O43: 0.3747368421 | P43: 0.6242307074 | Q43: 0.4186768293 | R43: 0.1182913472 | S43: 0.1218961625 | T43: 0.2564454949 | U43: 0.5023345449 | V43: 0.1182913472 | W43: 0.1218961625 | Y43: 0.4408668731 | Z43: 0.7343890675 | AA43: 0.4925609756
D44: ='Solar prot device - data'!D37 -> 11 | E44: =IF('Solar prot device - data'!E37<>"",G$11&" + "&'Solar prot device - data'!E37,"") -> Glazing Z + High translucent - Dark | H44: =IF('Solar prot device - data'!F37<>"",'Solar prot device - data'!F37,"") -> 0.4 | I44: =IF('Solar prot device - data'!G37<>"",'Solar prot device - data'!G37,"") -> 0.2 | J44: =IF('Solar prot device - data'!H37<>"",'Solar prot device - data'!H37,"") -> 0.2 | K44: =IF('Solar prot device - data'!I37<>"",'Solar prot device - data'!I37,"") -> 0.4 | L44: =IF('Solar prot device - data'!J37<>"",'Solar prot device - data'!J37,"") -> 0.4 | M44: =IF('Solar prot device - data'!K37<>"",'Solar prot device - data'!K37,"") -> 0.2 | N44: =IF('Solar prot device - data'!L37<>"",'Solar prot device - data'!L37,"") -> 0.2 | O44: 0.3830075188 | P44: 0.6934742765 | Q44: 0.4380609756 | R44: 0.1146496815 | S44: 0.1168831169 | T44: 0.2683578373 | U44: 0.5765911596 | V44: 0.1146496815 | W44: 0.1168831169 | Y44: 0.4505970809 | Z44: 0.81585209 | AA44: 0.5153658537
D45: ='Solar prot device - data'!D38 -> 12 | E45: =IF('Solar prot device - data'!E38<>"",G$11&" + "&'Solar prot device - data'!E38,"") -> Glazing Z + High translucent - Black | H45: =IF('Solar prot device - data'!F38<>"",'Solar prot device - data'!F38,"") -> 0.4 | I45: =IF('Solar prot device - data'!G38<>"",'Solar prot device - data'!G38,"") -> 0.1 | J45: =IF('Solar prot device - data'!H38<>"",'Solar prot device - data'!H38,"") -> 0.1 | K45: =IF('Solar prot device - data'!I38<>"",'Solar prot device - data'!I38,"") -> 0.5 | L45: =IF('Solar prot device - data'!J38<>"",'Solar prot device - data'!J38,"") -> 0.4 | M45: =IF('Solar prot device - data'!K38<>"",'Solar prot device - data'!K38,"") -> 0.1 | N45: =IF('Solar prot device - data'!L38<>"",'Solar prot device - data'!L38,"") -> 0.1 | O45: 0.3912781955 | P45: 0.7627178457 | Q45: 0.457445122 | R45: 0.1112255407 | S45: 0.1122661123 | T45: 0.2800526548 | U45: 0.6504517334 | V45: 0.1112255407 | W45: 0.1122661123 | Y45: 0.4603272888 | Z45: 0.8973151125 | AA45: 0.5381707317
D46: ='Solar prot device - data'!D39 -> 13 | E46: =IF('Solar prot device - data'!E39<>"",G$11&" + "&'Solar prot device - data'!E39,"") ->  | H46: =IF('Solar prot device - data'!F39<>"",'Solar prot device - data'!F39,"") ->  | I46: =IF('Solar prot device - data'!G39<>"",'Solar prot device - data'!G39,"") ->  | J46: =IF('Solar prot device - data'!H39<>"",'Solar prot device - data'!H39,"") ->  | K46: =IF('Solar prot device - data'!I39<>"",'Solar prot device - data'!I39,"") ->  | L46: =IF('Solar prot device - data'!J39<>"",'Solar prot device - data'!J39,"") ->  | M46: =IF('Solar prot device - data'!K39<>"",'Solar prot device - data'!K39,"") ->  | N46: =IF('Solar prot device - data'!L39<>"",'Solar prot device - data'!L39,"") ->  | Y46: =IF(AND(O46<>"",$G$15<>""),O46/$G$15,"") -> 
D47: ='Solar prot device - data'!D40 -> 14 | E47: =IF('Solar prot device - data'!E40<>"",G$11&" + "&'Solar prot device - data'!E40,"") ->  | H47: =IF('Solar prot device - data'!F40<>"",'Solar prot device - data'!F40,"") ->  | I47: =IF('Solar prot device - data'!G40<>"",'Solar prot device - data'!G40,"") ->  | J47: =IF('Solar prot device - data'!H40<>"",'Solar prot device - data'!H40,"") ->  | K47: =IF('Solar prot device - data'!I40<>"",'Solar prot device - data'!I40,"") ->  | L47: =IF('Solar prot device - data'!J40<>"",'Solar prot device - data'!J40,"") ->  | M47: =IF('Solar prot device - data'!K40<>"",'Solar prot device - data'!K40,"") ->  | N47: =IF('Solar prot device - data'!L40<>"",'Solar prot device - data'!L40,"") ->  | Y47: =IF(AND(O47<>"",$G$15<>""),O47/$G$15,"") ->  | Z47: =IF(AND(P47<>"",$G$15<>""),P47/$G$15,"") ->  | AA47: =IF(AND(Q47<>"",$G$15<>""),Q47/$G$15,"") -> 
D48: ='Solar prot device - data'!D41 -> 15 | E48: =IF('Solar prot device - data'!E41<>"",G$11&" + "&'Solar prot device - data'!E41,"") ->  | H48: =IF('Solar prot device - data'!F41<>"",'Solar prot device - data'!F41,"") ->  | I48: =IF('Solar prot device - data'!G41<>"",'Solar prot device - data'!G41,"") ->  | J48: =IF('Solar prot device - data'!H41<>"",'Solar prot device - data'!H41,"") ->  | K48: =IF('Solar prot device - data'!I41<>"",'Solar prot device - data'!I41,"") ->  | L48: =IF('Solar prot device - data'!J41<>"",'Solar prot device - data'!J41,"") ->  | M48: =IF('Solar prot device - data'!K41<>"",'Solar prot device - data'!K41,"") ->  | N48: =IF('Solar prot device - data'!L41<>"",'Solar prot device - data'!L41,"") -> 
D49: ='Solar prot device - data'!D42 -> 16 | E49: =IF('Solar prot device - data'!E42<>"",G$11&" + "&'Solar prot device - data'!E42,"") ->  | H49: =IF('Solar prot device - data'!F42<>"",'Solar prot device - data'!F42,"") ->  | I49: =IF('Solar prot device - data'!G42<>"",'Solar prot device - data'!G42,"") ->  | J49: =IF('Solar prot device - data'!H42<>"",'Solar prot device - data'!H42,"") ->  | K49: =IF('Solar prot device - data'!I42<>"",'Solar prot device - data'!I42,"") ->  | L49: =IF('Solar prot device - data'!J42<>"",'Solar prot device - data'!J42,"") ->  | M49: =IF('Solar prot device - data'!K42<>"",'Solar prot device - data'!K42,"") ->  | N49: =IF('Solar prot device - data'!L42<>"",'Solar prot device - data'!L42,"") -> 
D50: ='Solar prot device - data'!D43 -> 17 | E50: =IF('Solar prot device - data'!E43<>"",G$11&" + "&'Solar prot device - data'!E43,"") ->  | H50: =IF('Solar prot device - data'!F43<>"",'Solar prot device - data'!F43,"") ->  | I50: =IF('Solar prot device - data'!G43<>"",'Solar prot device - data'!G43,"") ->  | J50: =IF('Solar prot device - data'!H43<>"",'Solar prot device - data'!H43,"") ->  | K50: =IF('Solar prot device - data'!I43<>"",'Solar prot device - data'!I43,"") ->  | L50: =IF('Solar prot device - data'!J43<>"",'Solar prot device - data'!J43,"") ->  | M50: =IF('Solar prot device - data'!K43<>"",'Solar prot device - data'!K43,"") ->  | N50: =IF('Solar prot device - data'!L43<>"",'Solar prot device - data'!L43,"") -> 
D51: ='Solar prot device - data'!D44 -> 18 | E51: =IF('Solar prot device - data'!E44<>"",G$11&" + "&'Solar prot device - data'!E44,"") ->  | H51: =IF('Solar prot device - data'!F44<>"",'Solar prot device - data'!F44,"") ->  | I51: =IF('Solar prot device - data'!G44<>"",'Solar prot device - data'!G44,"") ->  | J51: =IF('Solar prot device - data'!H44<>"",'Solar prot device - data'!H44,"") ->  | K51: =IF('Solar prot device - data'!I44<>"",'Solar prot device - data'!I44,"") ->  | L51: =IF('Solar prot device - data'!J44<>"",'Solar prot device - data'!J44,"") ->  | M51: =IF('Solar prot device - data'!K44<>"",'Solar prot device - data'!K44,"") ->  | N51: =IF('Solar prot device - data'!L44<>"",'Solar prot device - data'!L44,"") -> 
D52: ='Solar prot device - data'!D45 -> 19 | E52: =IF('Solar prot device - data'!E45<>"",G$11&" + "&'Solar prot device - data'!E45,"") ->  | H52: =IF('Solar prot device - data'!F45<>"",'Solar prot device - data'!F45,"") ->  | I52: =IF('Solar prot device - data'!G45<>"",'Solar prot device - data'!G45,"") ->  | J52: =IF('Solar prot device - data'!H45<>"",'Solar prot device - data'!H45,"") ->  | K52: =IF('Solar prot device - data'!I45<>"",'Solar prot device - data'!I45,"") ->  | L52: =IF('Solar prot device - data'!J45<>"",'Solar prot device - data'!J45,"") ->  | M52: =IF('Solar prot device - data'!K45<>"",'Solar prot device - data'!K45,"") ->  | N52: =IF('Solar prot device - data'!L45<>"",'Solar prot device - data'!L45,"") -> 
D53: ='Solar prot device - data'!D46 -> 20 | E53: =IF('Solar prot device - data'!E46<>"",G$11&" + "&'Solar prot device - data'!E46,"") ->  | H53: =IF('Solar prot device - data'!F46<>"",'Solar prot device - data'!F46,"") ->  | I53: =IF('Solar prot device - data'!G46<>"",'Solar prot device - data'!G46,"") ->  | J53: =IF('Solar prot device - data'!H46<>"",'Solar prot device - data'!H46,"") ->  | K53: =IF('Solar prot device - data'!I46<>"",'Solar prot device - data'!I46,"") ->  | L53: =IF('Solar prot device - data'!J46<>"",'Solar prot device - data'!J46,"") ->  | M53: =IF('Solar prot device - data'!K46<>"",'Solar prot device - data'!K46,"") ->  | N53: =IF('Solar prot device - data'!L46<>"",'Solar prot device - data'!L46,"") -> 
D54: ='Solar prot device - data'!D47 -> 21 | E54: =IF('Solar prot device - data'!E47<>"",G$11&" + "&'Solar prot device - data'!E47,"") ->  | H54: =IF('Solar prot device - data'!F47<>"",'Solar prot device - data'!F47,"") ->  | I54: =IF('Solar prot device - data'!G47<>"",'Solar prot device - data'!G47,"") ->  | J54: =IF('Solar prot device - data'!H47<>"",'Solar prot device - data'!H47,"") ->  | K54: =IF('Solar prot device - data'!I47<>"",'Solar prot device - data'!I47,"") ->  | L54: =IF('Solar prot device - data'!J47<>"",'Solar prot device - data'!J47,"") ->  | M54: =IF('Solar prot device - data'!K47<>"",'Solar prot device - data'!K47,"") ->  | N54: =IF('Solar prot device - data'!L47<>"",'Solar prot device - data'!L47,"") -> 
D55: ='Solar prot device - data'!D48 -> 22 | E55: =IF('Solar prot device - data'!E48<>"",G$11&" + "&'Solar prot device - data'!E48,"") ->  | H55: =IF('Solar prot device - data'!F48<>"",'Solar prot device - data'!F48,"") ->  | I55: =IF('Solar prot device - data'!G48<>"",'Solar prot device - data'!G48,"") ->  | J55: =IF('Solar prot device - data'!H48<>"",'Solar prot device - data'!H48,"") ->  | K55: =IF('Solar prot device - data'!I48<>"",'Solar prot device - data'!I48,"") ->  | L55: =IF('Solar prot device - data'!J48<>"",'Solar prot device - data'!J48,"") ->  | M55: =IF('Solar prot device - data'!K48<>"",'Solar prot device - data'!K48,"") ->  | N55: =IF('Solar prot device - data'!L48<>"",'Solar prot device - data'!L48,"") -> 
D56: ='Solar prot device - data'!D49 -> 23 | E56: =IF('Solar prot device - data'!E49<>"",G$11&" + "&'Solar prot device - data'!E49,"") ->  | H56: =IF('Solar prot device - data'!F49<>"",'Solar prot device - data'!F49,"") ->  | I56: =IF('Solar prot device - data'!G49<>"",'Solar prot device - data'!G49,"") ->  | J56: =IF('Solar prot device - data'!H49<>"",'Solar prot device - data'!H49,"") ->  | K56: =IF('Solar prot device - data'!I49<>"",'Solar prot device - data'!I49,"") ->  | L56: =IF('Solar prot device - data'!J49<>"",'Solar prot device - data'!J49,"") ->  | M56: =IF('Solar prot device - data'!K49<>"",'Solar prot device - data'!K49,"") ->  | N56: =IF('Solar prot device - data'!L49<>"",'Solar prot device - data'!L49,"") -> 
D57: ='Solar prot device - data'!D50 -> 24 | E57: =IF('Solar prot device - data'!E50<>"",G$11&" + "&'Solar prot device - data'!E50,"") ->  | H57: =IF('Solar prot device - data'!F50<>"",'Solar prot device - data'!F50,"") ->  | I57: =IF('Solar prot device - data'!G50<>"",'Solar prot device - data'!G50,"") ->  | J57: =IF('Solar prot device - data'!H50<>"",'Solar prot device - data'!H50,"") ->  | K57: =IF('Solar prot device - data'!I50<>"",'Solar prot device - data'!I50,"") ->  | L57: =IF('Solar prot device - data'!J50<>"",'Solar prot device - data'!J50,"") ->  | M57: =IF('Solar prot device - data'!K50<>"",'Solar prot device - data'!K50,"") ->  | N57: =IF('Solar prot device - data'!L50<>"",'Solar prot device - data'!L50,"") -> 
D58: ='Solar prot device - data'!D51 -> 25 | E58: =IF('Solar prot device - data'!E51<>"",G$11&" + "&'Solar prot device - data'!E51,"") ->  | H58: =IF('Solar prot device - data'!F51<>"",'Solar prot device - data'!F51,"") ->  | I58: =IF('Solar prot device - data'!G51<>"",'Solar prot device - data'!G51,"") ->  | J58: =IF('Solar prot device - data'!H51<>"",'Solar prot device - data'!H51,"") ->  | K58: =IF('Solar prot device - data'!I51<>"",'Solar prot device - data'!I51,"") ->  | L58: =IF('Solar prot device - data'!J51<>"",'Solar prot device - data'!J51,"") ->  | M58: =IF('Solar prot device - data'!K51<>"",'Solar prot device - data'!K51,"") ->  | N58: =IF('Solar prot device - data'!L51<>"",'Solar prot device - data'!L51,"") -> 
D59: ='Solar prot device - data'!D52 -> 26 | E59: =IF('Solar prot device - data'!E52<>"",G$11&" + "&'Solar prot device - data'!E52,"") ->  | H59: =IF('Solar prot device - data'!F52<>"",'Solar prot device - data'!F52,"") ->  | I59: =IF('Solar prot device - data'!G52<>"",'Solar prot device - data'!G52,"") ->  | J59: =IF('Solar prot device - data'!H52<>"",'Solar prot device - data'!H52,"") ->  | K59: =IF('Solar prot device - data'!I52<>"",'Solar prot device - data'!I52,"") ->  | L59: =IF('Solar prot device - data'!J52<>"",'Solar prot device - data'!J52,"") ->  | M59: =IF('Solar prot device - data'!K52<>"",'Solar prot device - data'!K52,"") ->  | N59: =IF('Solar prot device - data'!L52<>"",'Solar prot device - data'!L52,"") -> 
D60: ='Solar prot device - data'!D53 -> 27 | E60: =IF('Solar prot device - data'!E53<>"",G$11&" + "&'Solar prot device - data'!E53,"") ->  | H60: =IF('Solar prot device - data'!F53<>"",'Solar prot device - data'!F53,"") ->  | I60: =IF('Solar prot device - data'!G53<>"",'Solar prot device - data'!G53,"") ->  | J60: =IF('Solar prot device - data'!H53<>"",'Solar prot device - data'!H53,"") ->  | K60: =IF('Solar prot device - data'!I53<>"",'Solar prot device - data'!I53,"") ->  | L60: =IF('Solar prot device - data'!J53<>"",'Solar prot device - data'!J53,"") ->  | M60: =IF('Solar prot device - data'!K53<>"",'Solar prot device - data'!K53,"") ->  | N60: =IF('Solar prot device - data'!L53<>"",'Solar prot device - data'!L53,"") -> 
D61: ='Solar prot device - data'!D54 -> 28 | E61: =IF('Solar prot device - data'!E54<>"",G$11&" + "&'Solar prot device - data'!E54,"") ->  | H61: =IF('Solar prot device - data'!F54<>"",'Solar prot device - data'!F54,"") ->  | I61: =IF('Solar prot device - data'!G54<>"",'Solar prot device - data'!G54,"") ->  | J61: =IF('Solar prot device - data'!H54<>"",'Solar prot device - data'!H54,"") ->  | K61: =IF('Solar prot device - data'!I54<>"",'Solar prot device - data'!I54,"") ->  | L61: =IF('Solar prot device - data'!J54<>"",'Solar prot device - data'!J54,"") ->  | M61: =IF('Solar prot device - data'!K54<>"",'Solar prot device - data'!K54,"") ->  | N61: =IF('Solar prot device - data'!L54<>"",'Solar prot device - data'!L54,"") -> 
D62: ='Solar prot device - data'!D55 -> 29 | E62: =IF('Solar prot device - data'!E55<>"",G$11&" + "&'Solar prot device - data'!E55,"") ->  | H62: =IF('Solar prot device - data'!F55<>"",'Solar prot device - data'!F55,"") ->  | I62: =IF('Solar prot device - data'!G55<>"",'Solar prot device - data'!G55,"") ->  | J62: =IF('Solar prot device - data'!H55<>"",'Solar prot device - data'!H55,"") ->  | K62: =IF('Solar prot device - data'!I55<>"",'Solar prot device - data'!I55,"") ->  | L62: =IF('Solar prot device - data'!J55<>"",'Solar prot device - data'!J55,"") ->  | M62: =IF('Solar prot device - data'!K55<>"",'Solar prot device - data'!K55,"") ->  | N62: =IF('Solar prot device - data'!L55<>"",'Solar prot device - data'!L55,"") ->  | Y62: =IF(AND(O62<>"",$G$15<>""),O62/$G$15,"") ->  | Z62: =IF(AND(P62<>"",$G$15<>""),P62/$G$15,"") ->  | AA62: =IF(AND(Q62<>"",$G$15<>""),Q62/$G$15,"") -> 
D63: ='Solar prot device - data'!D56 -> 30 | E63: =IF('Solar prot device - data'!E56<>"",G$11&" + "&'Solar prot device - data'!E56,"") ->  | H63: =IF('Solar prot device - data'!F56<>"",'Solar prot device - data'!F56,"") ->  | I63: =IF('Solar prot device - data'!G56<>"",'Solar prot device - data'!G56,"") ->  | J63: =IF('Solar prot device - data'!H56<>"",'Solar prot device - data'!H56,"") ->  | K63: =IF('Solar prot device - data'!I56<>"",'Solar prot device - data'!I56,"") ->  | L63: =IF('Solar prot device - data'!J56<>"",'Solar prot device - data'!J56,"") ->  | M63: =IF('Solar prot device - data'!K56<>"",'Solar prot device - data'!K56,"") ->  | N63: =IF('Solar prot device - data'!L56<>"",'Solar prot device - data'!L56,"") -> 
D64: ='Solar prot device - data'!D57 -> 31 | E64: =IF('Solar prot device - data'!E57<>"",G$11&" + "&'Solar prot device - data'!E57,"") ->  | H64: =IF('Solar prot device - data'!F57<>"",'Solar prot device - data'!F57,"") ->  | I64: =IF('Solar prot device - data'!G57<>"",'Solar prot device - data'!G57,"") ->  | J64: =IF('Solar prot device - data'!H57<>"",'Solar prot device - data'!H57,"") ->  | K64: =IF('Solar prot device - data'!I57<>"",'Solar prot device - data'!I57,"") ->  | L64: =IF('Solar prot device - data'!J57<>"",'Solar prot device - data'!J57,"") ->  | M64: =IF('Solar prot device - data'!K57<>"",'Solar prot device - data'!K57,"") ->  | N64: =IF('Solar prot device - data'!L57<>"",'Solar prot device - data'!L57,"") -> 
D65: ='Solar prot device - data'!D58 -> 32 | E65: =IF('Solar prot device - data'!E58<>"",G$11&" + "&'Solar prot device - data'!E58,"") ->  | H65: =IF('Solar prot device - data'!F58<>"",'Solar prot device - data'!F58,"") ->  | I65: =IF('Solar prot device - data'!G58<>"",'Solar prot device - data'!G58,"") ->  | J65: =IF('Solar prot device - data'!H58<>"",'Solar prot device - data'!H58,"") ->  | K65: =IF('Solar prot device - data'!I58<>"",'Solar prot device - data'!I58,"") ->  | L65: =IF('Solar prot device - data'!J58<>"",'Solar prot device - data'!J58,"") ->  | M65: =IF('Solar prot device - data'!K58<>"",'Solar prot device - data'!K58,"") ->  | N65: =IF('Solar prot device - data'!L58<>"",'Solar prot device - data'!L58,"") -> 
D66: ='Solar prot device - data'!D59 -> 33 | E66: =IF('Solar prot device - data'!E59<>"",G$11&" + "&'Solar prot device - data'!E59,"") ->  | H66: =IF('Solar prot device - data'!F59<>"",'Solar prot device - data'!F59,"") ->  | I66: =IF('Solar prot device - data'!G59<>"",'Solar prot device - data'!G59,"") ->  | J66: =IF('Solar prot device - data'!H59<>"",'Solar prot device - data'!H59,"") ->  | K66: =IF('Solar prot device - data'!I59<>"",'Solar prot device - data'!I59,"") ->  | L66: =IF('Solar prot device - data'!J59<>"",'Solar prot device - data'!J59,"") ->  | M66: =IF('Solar prot device - data'!K59<>"",'Solar prot device - data'!K59,"") ->  | N66: =IF('Solar prot device - data'!L59<>"",'Solar prot device - data'!L59,"") -> 
D67: ='Solar prot device - data'!D60 -> 34 | E67: =IF('Solar prot device - data'!E60<>"",G$11&" + "&'Solar prot device - data'!E60,"") ->  | H67: =IF('Solar prot device - data'!F60<>"",'Solar prot device - data'!F60,"") ->  | I67: =IF('Solar prot device - data'!G60<>"",'Solar prot device - data'!G60,"") ->  | J67: =IF('Solar prot device - data'!H60<>"",'Solar prot device - data'!H60,"") ->  | K67: =IF('Solar prot device - data'!I60<>"",'Solar prot device - data'!I60,"") ->  | L67: =IF('Solar prot device - data'!J60<>"",'Solar prot device - data'!J60,"") ->  | M67: =IF('Solar prot device - data'!K60<>"",'Solar prot device - data'!K60,"") ->  | N67: =IF('Solar prot device - data'!L60<>"",'Solar prot device - data'!L60,"") -> 
D68: ='Solar prot device - data'!D61 -> 35 | E68: =IF('Solar prot device - data'!E61<>"",G$11&" + "&'Solar prot device - data'!E61,"") ->  | H68: =IF('Solar prot device - data'!F61<>"",'Solar prot device - data'!F61,"") ->  | I68: =IF('Solar prot device - data'!G61<>"",'Solar prot device - data'!G61,"") ->  | J68: =IF('Solar prot device - data'!H61<>"",'Solar prot device - data'!H61,"") ->  | K68: =IF('Solar prot device - data'!I61<>"",'Solar prot device - data'!I61,"") ->  | L68: =IF('Solar prot device - data'!J61<>"",'Solar prot device - data'!J61,"") ->  | M68: =IF('Solar prot device - data'!K61<>"",'Solar prot device - data'!K61,"") ->  | N68: =IF('Solar prot device - data'!L61<>"",'Solar prot device - data'!L61,"") -> 
D69: ='Solar prot device - data'!D62 -> 36 | E69: =IF('Solar prot device - data'!E62<>"",G$11&" + "&'Solar prot device - data'!E62,"") ->  | H69: =IF('Solar prot device - data'!F62<>"",'Solar prot device - data'!F62,"") ->  | I69: =IF('Solar prot device - data'!G62<>"",'Solar prot device - data'!G62,"") ->  | J69: =IF('Solar prot device - data'!H62<>"",'Solar prot device - data'!H62,"") ->  | K69: =IF('Solar prot device - data'!I62<>"",'Solar prot device - data'!I62,"") ->  | L69: =IF('Solar prot device - data'!J62<>"",'Solar prot device - data'!J62,"") ->  | M69: =IF('Solar prot device - data'!K62<>"",'Solar prot device - data'!K62,"") ->  | N69: =IF('Solar prot device - data'!L62<>"",'Solar prot device - data'!L62,"") -> 
D70: ='Solar prot device - data'!D63 -> 37 | E70: =IF('Solar prot device - data'!E63<>"",G$11&" + "&'Solar prot device - data'!E63,"") ->  | H70: =IF('Solar prot device - data'!F63<>"",'Solar prot device - data'!F63,"") ->  | I70: =IF('Solar prot device - data'!G63<>"",'Solar prot device - data'!G63,"") ->  | J70: =IF('Solar prot device - data'!H63<>"",'Solar prot device - data'!H63,"") ->  | K70: =IF('Solar prot device - data'!I63<>"",'Solar prot device - data'!I63,"") ->  | L70: =IF('Solar prot device - data'!J63<>"",'Solar prot device - data'!J63,"") ->  | M70: =IF('Solar prot device - data'!K63<>"",'Solar prot device - data'!K63,"") ->  | N70: =IF('Solar prot device - data'!L63<>"",'Solar prot device - data'!L63,"") -> 
D71: ='Solar prot device - data'!D64 -> 38 | E71: =IF('Solar prot device - data'!E64<>"",G$11&" + "&'Solar prot device - data'!E64,"") ->  | H71: =IF('Solar prot device - data'!F64<>"",'Solar prot device - data'!F64,"") ->  | I71: =IF('Solar prot device - data'!G64<>"",'Solar prot device - data'!G64,"") ->  | J71: =IF('Solar prot device - data'!H64<>"",'Solar prot device - data'!H64,"") ->  | K71: =IF('Solar prot device - data'!I64<>"",'Solar prot device - data'!I64,"") ->  | L71: =IF('Solar prot device - data'!J64<>"",'Solar prot device - data'!J64,"") ->  | M71: =IF('Solar prot device - data'!K64<>"",'Solar prot device - data'!K64,"") ->  | N71: =IF('Solar prot device - data'!L64<>"",'Solar prot device - data'!L64,"") -> 
D72: ='Solar prot device - data'!D65 -> 39 | E72: =IF('Solar prot device - data'!E65<>"",G$11&" + "&'Solar prot device - data'!E65,"") ->  | H72: =IF('Solar prot device - data'!F65<>"",'Solar prot device - data'!F65,"") ->  | I72: =IF('Solar prot device - data'!G65<>"",'Solar prot device - data'!G65,"") ->  | J72: =IF('Solar prot device - data'!H65<>"",'Solar prot device - data'!H65,"") ->  | K72: =IF('Solar prot device - data'!I65<>"",'Solar prot device - data'!I65,"") ->  | L72: =IF('Solar prot device - data'!J65<>"",'Solar prot device - data'!J65,"") ->  | M72: =IF('Solar prot device - data'!K65<>"",'Solar prot device - data'!K65,"") ->  | N72: =IF('Solar prot device - data'!L65<>"",'Solar prot device - data'!L65,"") -> 
D73: ='Solar prot device - data'!D66 -> 40 | E73: =IF('Solar prot device - data'!E66<>"",G$11&" + "&'Solar prot device - data'!E66,"") ->  | H73: =IF('Solar prot device - data'!F66<>"",'Solar prot device - data'!F66,"") ->  | I73: =IF('Solar prot device - data'!G66<>"",'Solar prot device - data'!G66,"") ->  | J73: =IF('Solar prot device - data'!H66<>"",'Solar prot device - data'!H66,"") ->  | K73: =IF('Solar prot device - data'!I66<>"",'Solar prot device - data'!I66,"") ->  | L73: =IF('Solar prot device - data'!J66<>"",'Solar prot device - data'!J66,"") ->  | M73: =IF('Solar prot device - data'!K66<>"",'Solar prot device - data'!K66,"") ->  | N73: =IF('Solar prot device - data'!L66<>"",'Solar prot device - data'!L66,"") -> 
D74: ='Solar prot device - data'!D67 -> 41 | E74: =IF('Solar prot device - data'!E67<>"",G$11&" + "&'Solar prot device - data'!E67,"") ->  | H74: =IF('Solar prot device - data'!F67<>"",'Solar prot device - data'!F67,"") ->  | I74: =IF('Solar prot device - data'!G67<>"",'Solar prot device - data'!G67,"") ->  | J74: =IF('Solar prot device - data'!H67<>"",'Solar prot device - data'!H67,"") ->  | K74: =IF('Solar prot device - data'!I67<>"",'Solar prot device - data'!I67,"") ->  | L74: =IF('Solar prot device - data'!J67<>"",'Solar prot device - data'!J67,"") ->  | M74: =IF('Solar prot device - data'!K67<>"",'Solar prot device - data'!K67,"") ->  | N74: =IF('Solar prot device - data'!L67<>"",'Solar prot device - data'!L67,"") -> 
D75: ='Solar prot device - data'!D68 -> 42 | E75: =IF('Solar prot device - data'!E68<>"",G$11&" + "&'Solar prot device - data'!E68,"") ->  | H75: =IF('Solar prot device - data'!F68<>"",'Solar prot device - data'!F68,"") ->  | I75: =IF('Solar prot device - data'!G68<>"",'Solar prot device - data'!G68,"") ->  | J75: =IF('Solar prot device - data'!H68<>"",'Solar prot device - data'!H68,"") ->  | K75: =IF('Solar prot device - data'!I68<>"",'Solar prot device - data'!I68,"") ->  | L75: =IF('Solar prot device - data'!J68<>"",'Solar prot device - data'!J68,"") ->  | M75: =IF('Solar prot device - data'!K68<>"",'Solar prot device - data'!K68,"") ->  | N75: =IF('Solar prot device - data'!L68<>"",'Solar prot device - data'!L68,"") -> 
D76: ='Solar prot device - data'!D69 -> 43 | E76: =IF('Solar prot device - data'!E69<>"",G$11&" + "&'Solar prot device - data'!E69,"") ->  | H76: =IF('Solar prot device - data'!F69<>"",'Solar prot device - data'!F69,"") ->  | I76: =IF('Solar prot device - data'!G69<>"",'Solar prot device - data'!G69,"") ->  | J76: =IF('Solar prot device - data'!H69<>"",'Solar prot device - data'!H69,"") ->  | K76: =IF('Solar prot device - data'!I69<>"",'Solar prot device - data'!I69,"") ->  | L76: =IF('Solar prot device - data'!J69<>"",'Solar prot device - data'!J69,"") ->  | M76: =IF('Solar prot device - data'!K69<>"",'Solar prot device - data'!K69,"") ->  | N76: =IF('Solar prot device - data'!L69<>"",'Solar prot device - data'!L69,"") -> 
D77: ='Solar prot device - data'!D70 -> 44 | E77: =IF('Solar prot device - data'!E70<>"",G$11&" + "&'Solar prot device - data'!E70,"") ->  | H77: =IF('Solar prot device - data'!F70<>"",'Solar prot device - data'!F70,"") ->  | I77: =IF('Solar prot device - data'!G70<>"",'Solar prot device - data'!G70,"") ->  | J77: =IF('Solar prot device - data'!H70<>"",'Solar prot device - data'!H70,"") ->  | K77: =IF('Solar prot device - data'!I70<>"",'Solar prot device - data'!I70,"") ->  | L77: =IF('Solar prot device - data'!J70<>"",'Solar prot device - data'!J70,"") ->  | M77: =IF('Solar prot device - data'!K70<>"",'Solar prot device - data'!K70,"") ->  | N77: =IF('Solar prot device - data'!L70<>"",'Solar prot device - data'!L70,"") -> 
D78: ='Solar prot device - data'!D71 -> 45 | E78: =IF('Solar prot device - data'!E71<>"",G$11&" + "&'Solar prot device - data'!E71,"") ->  | H78: =IF('Solar prot device - data'!F71<>"",'Solar prot device - data'!F71,"") ->  | I78: =IF('Solar prot device - data'!G71<>"",'Solar prot device - data'!G71,"") ->  | J78: =IF('Solar prot device - data'!H71<>"",'Solar prot device - data'!H71,"") ->  | K78: =IF('Solar prot device - data'!I71<>"",'Solar prot device - data'!I71,"") ->  | L78: =IF('Solar prot device - data'!J71<>"",'Solar prot device - data'!J71,"") ->  | M78: =IF('Solar prot device - data'!K71<>"",'Solar prot device - data'!K71,"") ->  | N78: =IF('Solar prot device - data'!L71<>"",'Solar prot device - data'!L71,"") -> 
D79: ='Solar prot device - data'!D72 -> 46 | E79: =IF('Solar prot device - data'!E72<>"",G$11&" + "&'Solar prot device - data'!E72,"") ->  | H79: =IF('Solar prot device - data'!F72<>"",'Solar prot device - data'!F72,"") ->  | I79: =IF('Solar prot device - data'!G72<>"",'Solar prot device - data'!G72,"") ->  | J79: =IF('Solar prot device - data'!H72<>"",'Solar prot device - data'!H72,"") ->  | K79: =IF('Solar prot device - data'!I72<>"",'Solar prot device - data'!I72,"") ->  | L79: =IF('Solar prot device - data'!J72<>"",'Solar prot device - data'!J72,"") ->  | M79: =IF('Solar prot device - data'!K72<>"",'Solar prot device - data'!K72,"") ->  | N79: =IF('Solar prot device - data'!L72<>"",'Solar prot device - data'!L72,"") -> 
D80: ='Solar prot device - data'!D73 -> 47 | E80: =IF('Solar prot device - data'!E73<>"",G$11&" + "&'Solar prot device - data'!E73,"") ->  | H80: =IF('Solar prot device - data'!F73<>"",'Solar prot device - data'!F73,"") ->  | I80: =IF('Solar prot device - data'!G73<>"",'Solar prot device - data'!G73,"") ->  | J80: =IF('Solar prot device - data'!H73<>"",'Solar prot device - data'!H73,"") ->  | K80: =IF('Solar prot device - data'!I73<>"",'Solar prot device - data'!I73,"") ->  | L80: =IF('Solar prot device - data'!J73<>"",'Solar prot device - data'!J73,"") ->  | M80: =IF('Solar prot device - data'!K73<>"",'Solar prot device - data'!K73,"") ->  | N80: =IF('Solar prot device - data'!L73<>"",'Solar prot device - data'!L73,"") -> 
D81: ='Solar prot device - data'!D74 -> 48 | E81: =IF('Solar prot device - data'!E74<>"",G$11&" + "&'Solar prot device - data'!E74,"") ->  | H81: =IF('Solar prot device - data'!F74<>"",'Solar prot device - data'!F74,"") ->  | I81: =IF('Solar prot device - data'!G74<>"",'Solar prot device - data'!G74,"") ->  | J81: =IF('Solar prot device - data'!H74<>"",'Solar prot device - data'!H74,"") ->  | K81: =IF('Solar prot device - data'!I74<>"",'Solar prot device - data'!I74,"") ->  | L81: =IF('Solar prot device - data'!J74<>"",'Solar prot device - data'!J74,"") ->  | M81: =IF('Solar prot device - data'!K74<>"",'Solar prot device - data'!K74,"") ->  | N81: =IF('Solar prot device - data'!L74<>"",'Solar prot device - data'!L74,"") -> 
D82: ='Solar prot device - data'!D75 -> 49 | E82: =IF('Solar prot device - data'!E75<>"",G$11&" + "&'Solar prot device - data'!E75,"") ->  | H82: =IF('Solar prot device - data'!F75<>"",'Solar prot device - data'!F75,"") ->  | I82: =IF('Solar prot device - data'!G75<>"",'Solar prot device - data'!G75,"") ->  | J82: =IF('Solar prot device - data'!H75<>"",'Solar prot device - data'!H75,"") ->  | K82: =IF('Solar prot device - data'!I75<>"",'Solar prot device - data'!I75,"") ->  | L82: =IF('Solar prot device - data'!J75<>"",'Solar prot device - data'!J75,"") ->  | M82: =IF('Solar prot device - data'!K75<>"",'Solar prot device - data'!K75,"") ->  | N82: =IF('Solar prot device - data'!L75<>"",'Solar prot device - data'!L75,"") -> 
D83: ='Solar prot device - data'!D76 -> 50 | E83: =IF('Solar prot device - data'!E76<>"",G$11&" + "&'Solar prot device - data'!E76,"") ->  | H83: =IF('Solar prot device - data'!F76<>"",'Solar prot device - data'!F76,"") ->  | I83: =IF('Solar prot device - data'!G76<>"",'Solar prot device - data'!G76,"") ->  | J83: =IF('Solar prot device - data'!H76<>"",'Solar prot device - data'!H76,"") ->  | K83: =IF('Solar prot device - data'!I76<>"",'Solar prot device - data'!I76,"") ->  | L83: =IF('Solar prot device - data'!J76<>"",'Solar prot device - data'!J76,"") ->  | M83: =IF('Solar prot device - data'!K76<>"",'Solar prot device - data'!K76,"") ->  | N83: =IF('Solar prot device - data'!L76<>"",'Solar prot device - data'!L76,"") -> 
D84: ='Solar prot device - data'!D77 -> 51 | E84: =IF('Solar prot device - data'!E77<>"",G$11&" + "&'Solar prot device - data'!E77,"") ->  | H84: =IF('Solar prot device - data'!F77<>"",'Solar prot device - data'!F77,"") ->  | I84: =IF('Solar prot device - data'!G77<>"",'Solar prot device - data'!G77,"") ->  | J84: =IF('Solar prot device - data'!H77<>"",'Solar prot device - data'!H77,"") ->  | K84: =IF('Solar prot device - data'!I77<>"",'Solar prot device - data'!I77,"") ->  | L84: =IF('Solar prot device - data'!J77<>"",'Solar prot device - data'!J77,"") ->  | M84: =IF('Solar prot device - data'!K77<>"",'Solar prot device - data'!K77,"") ->  | N84: =IF('Solar prot device - data'!L77<>"",'Solar prot device - data'!L77,"") -> 
D85: ='Solar prot device - data'!D78 -> 52 | E85: =IF('Solar prot device - data'!E78<>"",G$11&" + "&'Solar prot device - data'!E78,"") ->  | H85: =IF('Solar prot device - data'!F78<>"",'Solar prot device - data'!F78,"") ->  | I85: =IF('Solar prot device - data'!G78<>"",'Solar prot device - data'!G78,"") ->  | J85: =IF('Solar prot device - data'!H78<>"",'Solar prot device - data'!H78,"") ->  | K85: =IF('Solar prot device - data'!I78<>"",'Solar prot device - data'!I78,"") ->  | L85: =IF('Solar prot device - data'!J78<>"",'Solar prot device - data'!J78,"") ->  | M85: =IF('Solar prot device - data'!K78<>"",'Solar prot device - data'!K78,"") ->  | N85: =IF('Solar prot device - data'!L78<>"",'Solar prot device - data'!L78,"") -> 
D86: ='Solar prot device - data'!D79 -> 53 | E86: =IF('Solar prot device - data'!E79<>"",G$11&" + "&'Solar prot device - data'!E79,"") ->  | H86: =IF('Solar prot device - data'!F79<>"",'Solar prot device - data'!F79,"") ->  | I86: =IF('Solar prot device - data'!G79<>"",'Solar prot device - data'!G79,"") ->  | J86: =IF('Solar prot device - data'!H79<>"",'Solar prot device - data'!H79,"") ->  | K86: =IF('Solar prot device - data'!I79<>"",'Solar prot device - data'!I79,"") ->  | L86: =IF('Solar prot device - data'!J79<>"",'Solar prot device - data'!J79,"") ->  | M86: =IF('Solar prot device - data'!K79<>"",'Solar prot device - data'!K79,"") ->  | N86: =IF('Solar prot device - data'!L79<>"",'Solar prot device - data'!L79,"") -> 
D87: ='Solar prot device - data'!D80 -> 54 | E87: =IF('Solar prot device - data'!E80<>"",G$11&" + "&'Solar prot device - data'!E80,"") ->  | H87: =IF('Solar prot device - data'!F80<>"",'Solar prot device - data'!F80,"") ->  | I87: =IF('Solar prot device - data'!G80<>"",'Solar prot device - data'!G80,"") ->  | J87: =IF('Solar prot device - data'!H80<>"",'Solar prot device - data'!H80,"") ->  | K87: =IF('Solar prot device - data'!I80<>"",'Solar prot device - data'!I80,"") ->  | L87: =IF('Solar prot device - data'!J80<>"",'Solar prot device - data'!J80,"") ->  | M87: =IF('Solar prot device - data'!K80<>"",'Solar prot device - data'!K80,"") ->  | N87: =IF('Solar prot device - data'!L80<>"",'Solar prot device - data'!L80,"") -> 
D88: ='Solar prot device - data'!D81 -> 55 | E88: =IF('Solar prot device - data'!E81<>"",G$11&" + "&'Solar prot device - data'!E81,"") ->  | H88: =IF('Solar prot device - data'!F81<>"",'Solar prot device - data'!F81,"") ->  | I88: =IF('Solar prot device - data'!G81<>"",'Solar prot device - data'!G81,"") ->  | J88: =IF('Solar prot device - data'!H81<>"",'Solar prot device - data'!H81,"") ->  | K88: =IF('Solar prot device - data'!I81<>"",'Solar prot device - data'!I81,"") ->  | L88: =IF('Solar prot device - data'!J81<>"",'Solar prot device - data'!J81,"") ->  | M88: =IF('Solar prot device - data'!K81<>"",'Solar prot device - data'!K81,"") ->  | N88: =IF('Solar prot device - data'!L81<>"",'Solar prot device - data'!L81,"") -> 
D89: ='Solar prot device - data'!D82 -> 56 | E89: =IF('Solar prot device - data'!E82<>"",G$11&" + "&'Solar prot device - data'!E82,"") ->  | H89: =IF('Solar prot device - data'!F82<>"",'Solar prot device - data'!F82,"") ->  | I89: =IF('Solar prot device - data'!G82<>"",'Solar prot device - data'!G82,"") ->  | J89: =IF('Solar prot device - data'!H82<>"",'Solar prot device - data'!H82,"") ->  | K89: =IF('Solar prot device - data'!I82<>"",'Solar prot device - data'!I82,"") ->  | L89: =IF('Solar prot device - data'!J82<>"",'Solar prot device - data'!J82,"") ->  | M89: =IF('Solar prot device - data'!K82<>"",'Solar prot device - data'!K82,"") ->  | N89: =IF('Solar prot device - data'!L82<>"",'Solar prot device - data'!L82,"") -> 
D90: ='Solar prot device - data'!D83 -> 57 | E90: =IF('Solar prot device - data'!E83<>"",G$11&" + "&'Solar prot device - data'!E83,"") ->  | H90: =IF('Solar prot device - data'!F83<>"",'Solar prot device - data'!F83,"") ->  | I90: =IF('Solar prot device - data'!G83<>"",'Solar prot device - data'!G83,"") ->  | J90: =IF('Solar prot device - data'!H83<>"",'Solar prot device - data'!H83,"") ->  | K90: =IF('Solar prot device - data'!I83<>"",'Solar prot device - data'!I83,"") ->  | L90: =IF('Solar prot device - data'!J83<>"",'Solar prot device - data'!J83,"") ->  | M90: =IF('Solar prot device - data'!K83<>"",'Solar prot device - data'!K83,"") ->  | N90: =IF('Solar prot device - data'!L83<>"",'Solar prot device - data'!L83,"") -> 
D91: ='Solar prot device - data'!D84 -> 58 | E91: =IF('Solar prot device - data'!E84<>"",G$11&" + "&'Solar prot device - data'!E84,"") ->  | H91: =IF('Solar prot device - data'!F84<>"",'Solar prot device - data'!F84,"") ->  | I91: =IF('Solar prot device - data'!G84<>"",'Solar prot device - data'!G84,"") ->  | J91: =IF('Solar prot device - data'!H84<>"",'Solar prot device - data'!H84,"") ->  | K91: =IF('Solar prot device - data'!I84<>"",'Solar prot device - data'!I84,"") ->  | L91: =IF('Solar prot device - data'!J84<>"",'Solar prot device - data'!J84,"") ->  | M91: =IF('Solar prot device - data'!K84<>"",'Solar prot device - data'!K84,"") ->  | N91: =IF('Solar prot device - data'!L84<>"",'Solar prot device - data'!L84,"") -> 
D92: ='Solar prot device - data'!D85 -> 59 | E92: =IF('Solar prot device - data'!E85<>"",G$11&" + "&'Solar prot device - data'!E85,"") ->  | H92: =IF('Solar prot device - data'!F85<>"",'Solar prot device - data'!F85,"") ->  | I92: =IF('Solar prot device - data'!G85<>"",'Solar prot device - data'!G85,"") ->  | J92: =IF('Solar prot device - data'!H85<>"",'Solar prot device - data'!H85,"") ->  | K92: =IF('Solar prot device - data'!I85<>"",'Solar prot device - data'!I85,"") ->  | L92: =IF('Solar prot device - data'!J85<>"",'Solar prot device - data'!J85,"") ->  | M92: =IF('Solar prot device - data'!K85<>"",'Solar prot device - data'!K85,"") ->  | N92: =IF('Solar prot device - data'!L85<>"",'Solar prot device - data'!L85,"") -> 
D93: ='Solar prot device - data'!D86 -> 60 | E93: =IF('Solar prot device - data'!E86<>"",G$11&" + "&'Solar prot device - data'!E86,"") ->  | H93: =IF('Solar prot device - data'!F86<>"",'Solar prot device - data'!F86,"") ->  | I93: =IF('Solar prot device - data'!G86<>"",'Solar prot device - data'!G86,"") ->  | J93: =IF('Solar prot device - data'!H86<>"",'Solar prot device - data'!H86,"") ->  | K93: =IF('Solar prot device - data'!I86<>"",'Solar prot device - data'!I86,"") ->  | L93: =IF('Solar prot device - data'!J86<>"",'Solar prot device - data'!J86,"") ->  | M93: =IF('Solar prot device - data'!K86<>"",'Solar prot device - data'!K86,"") ->  | N93: =IF('Solar prot device - data'!L86<>"",'Solar prot device - data'!L86,"") -> 
D94: ='Solar prot device - data'!D87 -> 61 | E94: =IF('Solar prot device - data'!E87<>"",G$11&" + "&'Solar prot device - data'!E87,"") ->  | H94: =IF('Solar prot device - data'!F87<>"",'Solar prot device - data'!F87,"") ->  | I94: =IF('Solar prot device - data'!G87<>"",'Solar prot device - data'!G87,"") ->  | J94: =IF('Solar prot device - data'!H87<>"",'Solar prot device - data'!H87,"") ->  | K94: =IF('Solar prot device - data'!I87<>"",'Solar prot device - data'!I87,"") ->  | L94: =IF('Solar prot device - data'!J87<>"",'Solar prot device - data'!J87,"") ->  | M94: =IF('Solar prot device - data'!K87<>"",'Solar prot device - data'!K87,"") ->  | N94: =IF('Solar prot device - data'!L87<>"",'Solar prot device - data'!L87,"") -> 
D95: ='Solar prot device - data'!D88 -> 62 | E95: =IF('Solar prot device - data'!E88<>"",G$11&" + "&'Solar prot device - data'!E88,"") ->  | H95: =IF('Solar prot device - data'!F88<>"",'Solar prot device - data'!F88,"") ->  | I95: =IF('Solar prot device - data'!G88<>"",'Solar prot device - data'!G88,"") ->  | J95: =IF('Solar prot device - data'!H88<>"",'Solar prot device - data'!H88,"") ->  | K95: =IF('Solar prot device - data'!I88<>"",'Solar prot device - data'!I88,"") ->  | L95: =IF('Solar prot device - data'!J88<>"",'Solar prot device - data'!J88,"") ->  | M95: =IF('Solar prot device - data'!K88<>"",'Solar prot device - data'!K88,"") ->  | N95: =IF('Solar prot device - data'!L88<>"",'Solar prot device - data'!L88,"") -> 
D96: ='Solar prot device - data'!D89 -> 63 | E96: =IF('Solar prot device - data'!E89<>"",G$11&" + "&'Solar prot device - data'!E89,"") ->  | H96: =IF('Solar prot device - data'!F89<>"",'Solar prot device - data'!F89,"") ->  | I96: =IF('Solar prot device - data'!G89<>"",'Solar prot device - data'!G89,"") ->  | J96: =IF('Solar prot device - data'!H89<>"",'Solar prot device - data'!H89,"") ->  | K96: =IF('Solar prot device - data'!I89<>"",'Solar prot device - data'!I89,"") ->  | L96: =IF('Solar prot device - data'!J89<>"",'Solar prot device - data'!J89,"") ->  | M96: =IF('Solar prot device - data'!K89<>"",'Solar prot device - data'!K89,"") ->  | N96: =IF('Solar prot device - data'!L89<>"",'Solar prot device - data'!L89,"") -> 
D97: ='Solar prot device - data'!D90 -> 64 | E97: =IF('Solar prot device - data'!E90<>"",G$11&" + "&'Solar prot device - data'!E90,"") ->  | H97: =IF('Solar prot device - data'!F90<>"",'Solar prot device - data'!F90,"") ->  | I97: =IF('Solar prot device - data'!G90<>"",'Solar prot device - data'!G90,"") ->  | J97: =IF('Solar prot device - data'!H90<>"",'Solar prot device - data'!H90,"") ->  | K97: =IF('Solar prot device - data'!I90<>"",'Solar prot device - data'!I90,"") ->  | L97: =IF('Solar prot device - data'!J90<>"",'Solar prot device - data'!J90,"") ->  | M97: =IF('Solar prot device - data'!K90<>"",'Solar prot device - data'!K90,"") ->  | N97: =IF('Solar prot device - data'!L90<>"",'Solar prot device - data'!L90,"") -> 
D98: ='Solar prot device - data'!D91 -> 65 | E98: =IF('Solar prot device - data'!E91<>"",G$11&" + "&'Solar prot device - data'!E91,"") ->  | H98: =IF('Solar prot device - data'!F91<>"",'Solar prot device - data'!F91,"") ->  | I98: =IF('Solar prot device - data'!G91<>"",'Solar prot device - data'!G91,"") ->  | J98: =IF('Solar prot device - data'!H91<>"",'Solar prot device - data'!H91,"") ->  | K98: =IF('Solar prot device - data'!I91<>"",'Solar prot device - data'!I91,"") ->  | L98: =IF('Solar prot device - data'!J91<>"",'Solar prot device - data'!J91,"") ->  | M98: =IF('Solar prot device - data'!K91<>"",'Solar prot device - data'!K91,"") ->  | N98: =IF('Solar prot device - data'!L91<>"",'Solar prot device - data'!L91,"") -> 
D99: ='Solar prot device - data'!D92 -> 66 | E99: =IF('Solar prot device - data'!E92<>"",G$11&" + "&'Solar prot device - data'!E92,"") ->  | H99: =IF('Solar prot device - data'!F92<>"",'Solar prot device - data'!F92,"") ->  | I99: =IF('Solar prot device - data'!G92<>"",'Solar prot device - data'!G92,"") ->  | J99: =IF('Solar prot device - data'!H92<>"",'Solar prot device - data'!H92,"") ->  | K99: =IF('Solar prot device - data'!I92<>"",'Solar prot device - data'!I92,"") ->  | L99: =IF('Solar prot device - data'!J92<>"",'Solar prot device - data'!J92,"") ->  | M99: =IF('Solar prot device - data'!K92<>"",'Solar prot device - data'!K92,"") ->  | N99: =IF('Solar prot device - data'!L92<>"",'Solar prot device - data'!L92,"") ->  | P99: =IF(AND(H99<>"",I99<>"",$G$13<>"",$G$15<>""),$G$15*(1-$G$15*I99-K99*$AG$37/$AG$34),"") ->  | Q99: =IF(AND(H99<>"",I99<>"",$G$13<>"",$G$15<>""),$G$15*H99+$G$15*(K99+(1-$G$15)*I99)*$AG$38/$AG$35,"") ->  | R99: =IF(AND(H99<>"",J99<>"",$G$17<>"",$G$19<>""),$G$17*H99/(1-$G$19*J99),"") ->  | S99: =IF(AND(H99<>"",I99<>"",$G$17<>"",$G$21<>""),$G$17*H99/(1-$G$21*I99),"") ->  | T99: =IF(AND(O99<>"", R99<>""),O99-R99,"") ->  | U99: =IF(AND(P99<>"", S99<>""),P99-S99,"") ->  | V99: =IF(AND(L99<>"",N99<>"",$G$23<>"",$G$25<>""),$G$23*L99/(1-$G$25*N99),"") ->  | W99: =IF(AND(L99<>"",M99<>"",$G$23<>"",$G$27<>""),$G$23*L99/(1-$G$27*M99),"") -> 
D100: ='Solar prot device - data'!D93 -> 67 | E100: =IF('Solar prot device - data'!E93<>"",G$11&" + "&'Solar prot device - data'!E93,"") ->  | H100: =IF('Solar prot device - data'!F93<>"",'Solar prot device - data'!F93,"") ->  | I100: =IF('Solar prot device - data'!G93<>"",'Solar prot device - data'!G93,"") ->  | J100: =IF('Solar prot device - data'!H93<>"",'Solar prot device - data'!H93,"") ->  | K100: =IF('Solar prot device - data'!I93<>"",'Solar prot device - data'!I93,"") ->  | L100: =IF('Solar prot device - data'!J93<>"",'Solar prot device - data'!J93,"") ->  | M100: =IF('Solar prot device - data'!K93<>"",'Solar prot device - data'!K93,"") ->  | N100: =IF('Solar prot device - data'!L93<>"",'Solar prot device - data'!L93,"") ->  | O100: =IF(AND(H100<>"",I100<>"",$G$13<>"",$G$15<>""),H100*$G$15+K100*$AG$36/$AG$33+H100*(1-$G$15)*$AG$36/$AG$32,"") -> 
D101: ='Solar prot device - data'!D94 -> 68 | E101: =IF('Solar prot device - data'!E94<>"",G$11&" + "&'Solar prot device - data'!E94,"") ->  | H101: =IF('Solar prot device - data'!F94<>"",'Solar prot device - data'!F94,"") ->  | I101: =IF('Solar prot device - data'!G94<>"",'Solar prot device - data'!G94,"") ->  | J101: =IF('Solar prot device - data'!H94<>"",'Solar prot device - data'!H94,"") ->  | K101: =IF('Solar prot device - data'!I94<>"",'Solar prot device - data'!I94,"") ->  | L101: =IF('Solar prot device - data'!J94<>"",'Solar prot device - data'!J94,"") ->  | M101: =IF('Solar prot device - data'!K94<>"",'Solar prot device - data'!K94,"") ->  | N101: =IF('Solar prot device - data'!L94<>"",'Solar prot device - data'!L94,"") -> 
D102: ='Solar prot device - data'!D95 -> 69 | E102: =IF('Solar prot device - data'!E95<>"",G$11&" + "&'Solar prot device - data'!E95,"") ->  | H102: =IF('Solar prot device - data'!F95<>"",'Solar prot device - data'!F95,"") ->  | I102: =IF('Solar prot device - data'!G95<>"",'Solar prot device - data'!G95,"") ->  | J102: =IF('Solar prot device - data'!H95<>"",'Solar prot device - data'!H95,"") ->  | K102: =IF('Solar prot device - data'!I95<>"",'Solar prot device - data'!I95,"") ->  | L102: =IF('Solar prot device - data'!J95<>"",'Solar prot device - data'!J95,"") ->  | M102: =IF('Solar prot device - data'!K95<>"",'Solar prot device - data'!K95,"") ->  | N102: =IF('Solar prot device - data'!L95<>"",'Solar prot device - data'!L95,"") -> 
D103: ='Solar prot device - data'!D96 -> 70 | E103: =IF('Solar prot device - data'!E96<>"",G$11&" + "&'Solar prot device - data'!E96,"") ->  | H103: =IF('Solar prot device - data'!F96<>"",'Solar prot device - data'!F96,"") ->  | I103: =IF('Solar prot device - data'!G96<>"",'Solar prot device - data'!G96,"") ->  | J103: =IF('Solar prot device - data'!H96<>"",'Solar prot device - data'!H96,"") ->  | K103: =IF('Solar prot device - data'!I96<>"",'Solar prot device - data'!I96,"") ->  | L103: =IF('Solar prot device - data'!J96<>"",'Solar prot device - data'!J96,"") ->  | M103: =IF('Solar prot device - data'!K96<>"",'Solar prot device - data'!K96,"") ->  | N103: =IF('Solar prot device - data'!L96<>"",'Solar prot device - data'!L96,"") -> 
D104: ='Solar prot device - data'!D97 -> 71 | E104: =IF('Solar prot device - data'!E97<>"",G$11&" + "&'Solar prot device - data'!E97,"") ->  | H104: =IF('Solar prot device - data'!F97<>"",'Solar prot device - data'!F97,"") ->  | I104: =IF('Solar prot device - data'!G97<>"",'Solar prot device - data'!G97,"") ->  | J104: =IF('Solar prot device - data'!H97<>"",'Solar prot device - data'!H97,"") ->  | K104: =IF('Solar prot device - data'!I97<>"",'Solar prot device - data'!I97,"") ->  | L104: =IF('Solar prot device - data'!J97<>"",'Solar prot device - data'!J97,"") ->  | M104: =IF('Solar prot device - data'!K97<>"",'Solar prot device - data'!K97,"") ->  | N104: =IF('Solar prot device - data'!L97<>"",'Solar prot device - data'!L97,"") -> 
D105: ='Solar prot device - data'!D98 -> 72 | E105: =IF('Solar prot device - data'!E98<>"",G$11&" + "&'Solar prot device - data'!E98,"") ->  | H105: =IF('Solar prot device - data'!F98<>"",'Solar prot device - data'!F98,"") ->  | I105: =IF('Solar prot device - data'!G98<>"",'Solar prot device - data'!G98,"") ->  | J105: =IF('Solar prot device - data'!H98<>"",'Solar prot device - data'!H98,"") ->  | K105: =IF('Solar prot device - data'!I98<>"",'Solar prot device - data'!I98,"") ->  | L105: =IF('Solar prot device - data'!J98<>"",'Solar prot device - data'!J98,"") ->  | M105: =IF('Solar prot device - data'!K98<>"",'Solar prot device - data'!K98,"") ->  | N105: =IF('Solar prot device - data'!L98<>"",'Solar prot device - data'!L98,"") -> 
D106: ='Solar prot device - data'!D99 -> 73 | E106: =IF('Solar prot device - data'!E99<>"",G$11&" + "&'Solar prot device - data'!E99,"") ->  | H106: =IF('Solar prot device - data'!F99<>"",'Solar prot device - data'!F99,"") ->  | I106: =IF('Solar prot device - data'!G99<>"",'Solar prot device - data'!G99,"") ->  | J106: =IF('Solar prot device - data'!H99<>"",'Solar prot device - data'!H99,"") ->  | K106: =IF('Solar prot device - data'!I99<>"",'Solar prot device - data'!I99,"") ->  | L106: =IF('Solar prot device - data'!J99<>"",'Solar prot device - data'!J99,"") ->  | M106: =IF('Solar prot device - data'!K99<>"",'Solar prot device - data'!K99,"") ->  | N106: =IF('Solar prot device - data'!L99<>"",'Solar prot device - data'!L99,"") -> 
D107: ='Solar prot device - data'!D100 -> 74 | E107: =IF('Solar prot device - data'!E100<>"",G$11&" + "&'Solar prot device - data'!E100,"") ->  | H107: =IF('Solar prot device - data'!F100<>"",'Solar prot device - data'!F100,"") ->  | I107: =IF('Solar prot device - data'!G100<>"",'Solar prot device - data'!G100,"") ->  | J107: =IF('Solar prot device - data'!H100<>"",'Solar prot device - data'!H100,"") ->  | K107: =IF('Solar prot device - data'!I100<>"",'Solar prot device - data'!I100,"") ->  | L107: =IF('Solar prot device - data'!J100<>"",'Solar prot device - data'!J100,"") ->  | M107: =IF('Solar prot device - data'!K100<>"",'Solar prot device - data'!K100,"") ->  | N107: =IF('Solar prot device - data'!L100<>"",'Solar prot device - data'!L100,"") -> 
D108: ='Solar prot device - data'!D101 -> 75 | E108: =IF('Solar prot device - data'!E101<>"",G$11&" + "&'Solar prot device - data'!E101,"") ->  | H108: =IF('Solar prot device - data'!F101<>"",'Solar prot device - data'!F101,"") ->  | I108: =IF('Solar prot device - data'!G101<>"",'Solar prot device - data'!G101,"") ->  | J108: =IF('Solar prot device - data'!H101<>"",'Solar prot device - data'!H101,"") ->  | K108: =IF('Solar prot device - data'!I101<>"",'Solar prot device - data'!I101,"") ->  | L108: =IF('Solar prot device - data'!J101<>"",'Solar prot device - data'!J101,"") ->  | M108: =IF('Solar prot device - data'!K101<>"",'Solar prot device - data'!K101,"") ->  | N108: =IF('Solar prot device - data'!L101<>"",'Solar prot device - data'!L101,"") -> 
D109: ='Solar prot device - data'!D102 -> 76 | E109: =IF('Solar prot device - data'!E102<>"",G$11&" + "&'Solar prot device - data'!E102,"") ->  | H109: =IF('Solar prot device - data'!F102<>"",'Solar prot device - data'!F102,"") ->  | I109: =IF('Solar prot device - data'!G102<>"",'Solar prot device - data'!G102,"") ->  | J109: =IF('Solar prot device - data'!H102<>"",'Solar prot device - data'!H102,"") ->  | K109: =IF('Solar prot device - data'!I102<>"",'Solar prot device - data'!I102,"") ->  | L109: =IF('Solar prot device - data'!J102<>"",'Solar prot device - data'!J102,"") ->  | M109: =IF('Solar prot device - data'!K102<>"",'Solar prot device - data'!K102,"") ->  | N109: =IF('Solar prot device - data'!L102<>"",'Solar prot device - data'!L102,"") -> 
D110: ='Solar prot device - data'!D103 -> 77 | E110: =IF('Solar prot device - data'!E103<>"",G$11&" + "&'Solar prot device - data'!E103,"") ->  | H110: =IF('Solar prot device - data'!F103<>"",'Solar prot device - data'!F103,"") ->  | I110: =IF('Solar prot device - data'!G103<>"",'Solar prot device - data'!G103,"") ->  | J110: =IF('Solar prot device - data'!H103<>"",'Solar prot device - data'!H103,"") ->  | K110: =IF('Solar prot device - data'!I103<>"",'Solar prot device - data'!I103,"") ->  | L110: =IF('Solar prot device - data'!J103<>"",'Solar prot device - data'!J103,"") ->  | M110: =IF('Solar prot device - data'!K103<>"",'Solar prot device - data'!K103,"") ->  | N110: =IF('Solar prot device - data'!L103<>"",'Solar prot device - data'!L103,"") -> 
D111: ='Solar prot device - data'!D104 -> 78 | E111: =IF('Solar prot device - data'!E104<>"",G$11&" + "&'Solar prot device - data'!E104,"") ->  | H111: =IF('Solar prot device - data'!F104<>"",'Solar prot device - data'!F104,"") ->  | I111: =IF('Solar prot device - data'!G104<>"",'Solar prot device - data'!G104,"") ->  | J111: =IF('Solar prot device - data'!H104<>"",'Solar prot device - data'!H104,"") ->  | K111: =IF('Solar prot device - data'!I104<>"",'Solar prot device - data'!I104,"") ->  | L111: =IF('Solar prot device - data'!J104<>"",'Solar prot device - data'!J104,"") ->  | M111: =IF('Solar prot device - data'!K104<>"",'Solar prot device - data'!K104,"") ->  | N111: =IF('Solar prot device - data'!L104<>"",'Solar prot device - data'!L104,"") -> 
D112: ='Solar prot device - data'!D105 -> 79 | E112: =IF('Solar prot device - data'!E105<>"",G$11&" + "&'Solar prot device - data'!E105,"") ->  | H112: =IF('Solar prot device - data'!F105<>"",'Solar prot device - data'!F105,"") ->  | I112: =IF('Solar prot device - data'!G105<>"",'Solar prot device - data'!G105,"") ->  | J112: =IF('Solar prot device - data'!H105<>"",'Solar prot device - data'!H105,"") ->  | K112: =IF('Solar prot device - data'!I105<>"",'Solar prot device - data'!I105,"") ->  | L112: =IF('Solar prot device - data'!J105<>"",'Solar prot device - data'!J105,"") ->  | M112: =IF('Solar prot device - data'!K105<>"",'Solar prot device - data'!K105,"") ->  | N112: =IF('Solar prot device - data'!L105<>"",'Solar prot device - data'!L105,"") -> 
D113: ='Solar prot device - data'!D106 -> 80 | E113: =IF('Solar prot device - data'!E106<>"",G$11&" + "&'Solar prot device - data'!E106,"") ->  | H113: =IF('Solar prot device - data'!F106<>"",'Solar prot device - data'!F106,"") ->  | I113: =IF('Solar prot device - data'!G106<>"",'Solar prot device - data'!G106,"") ->  | J113: =IF('Solar prot device - data'!H106<>"",'Solar prot device - data'!H106,"") ->  | K113: =IF('Solar prot device - data'!I106<>"",'Solar prot device - data'!I106,"") ->  | L113: =IF('Solar prot device - data'!J106<>"",'Solar prot device - data'!J106,"") ->  | M113: =IF('Solar prot device - data'!K106<>"",'Solar prot device - data'!K106,"") ->  | N113: =IF('Solar prot device - data'!L106<>"",'Solar prot device - data'!L106,"") -> 
D114: ='Solar prot device - data'!D107 -> 81 | E114: =IF('Solar prot device - data'!E107<>"",G$11&" + "&'Solar prot device - data'!E107,"") ->  | H114: =IF('Solar prot device - data'!F107<>"",'Solar prot device - data'!F107,"") ->  | I114: =IF('Solar prot device - data'!G107<>"",'Solar prot device - data'!G107,"") ->  | J114: =IF('Solar prot device - data'!H107<>"",'Solar prot device - data'!H107,"") ->  | K114: =IF('Solar prot device - data'!I107<>"",'Solar prot device - data'!I107,"") ->  | L114: =IF('Solar prot device - data'!J107<>"",'Solar prot device - data'!J107,"") ->  | M114: =IF('Solar prot device - data'!K107<>"",'Solar prot device - data'!K107,"") ->  | N114: =IF('Solar prot device - data'!L107<>"",'Solar prot device - data'!L107,"") -> 
D115: ='Solar prot device - data'!D108 -> 82 | E115: =IF('Solar prot device - data'!E108<>"",G$11&" + "&'Solar prot device - data'!E108,"") ->  | H115: =IF('Solar prot device - data'!F108<>"",'Solar prot device - data'!F108,"") ->  | I115: =IF('Solar prot device - data'!G108<>"",'Solar prot device - data'!G108,"") ->  | J115: =IF('Solar prot device - data'!H108<>"",'Solar prot device - data'!H108,"") ->  | K115: =IF('Solar prot device - data'!I108<>"",'Solar prot device - data'!I108,"") ->  | L115: =IF('Solar prot device - data'!J108<>"",'Solar prot device - data'!J108,"") ->  | M115: =IF('Solar prot device - data'!K108<>"",'Solar prot device - data'!K108,"") ->  | N115: =IF('Solar prot device - data'!L108<>"",'Solar prot device - data'!L108,"") -> 
D116: ='Solar prot device - data'!D109 -> 83 | E116: =IF('Solar prot device - data'!E109<>"",G$11&" + "&'Solar prot device - data'!E109,"") ->  | H116: =IF('Solar prot device - data'!F109<>"",'Solar prot device - data'!F109,"") ->  | I116: =IF('Solar prot device - data'!G109<>"",'Solar prot device - data'!G109,"") ->  | J116: =IF('Solar prot device - data'!H109<>"",'Solar prot device - data'!H109,"") ->  | K116: =IF('Solar prot device - data'!I109<>"",'Solar prot device - data'!I109,"") ->  | L116: =IF('Solar prot device - data'!J109<>"",'Solar prot device - data'!J109,"") ->  | M116: =IF('Solar prot device - data'!K109<>"",'Solar prot device - data'!K109,"") ->  | N116: =IF('Solar prot device - data'!L109<>"",'Solar prot device - data'!L109,"") -> 
D117: ='Solar prot device - data'!D110 -> 84 | E117: =IF('Solar prot device - data'!E110<>"",G$11&" + "&'Solar prot device - data'!E110,"") ->  | H117: =IF('Solar prot device - data'!F110<>"",'Solar prot device - data'!F110,"") ->  | I117: =IF('Solar prot device - data'!G110<>"",'Solar prot device - data'!G110,"") ->  | J117: =IF('Solar prot device - data'!H110<>"",'Solar prot device - data'!H110,"") ->  | K117: =IF('Solar prot device - data'!I110<>"",'Solar prot device - data'!I110,"") ->  | L117: =IF('Solar prot device - data'!J110<>"",'Solar prot device - data'!J110,"") ->  | M117: =IF('Solar prot device - data'!K110<>"",'Solar prot device - data'!K110,"") ->  | N117: =IF('Solar prot device - data'!L110<>"",'Solar prot device - data'!L110,"") -> 
D118: ='Solar prot device - data'!D111 -> 85 | E118: =IF('Solar prot device - data'!E111<>"",G$11&" + "&'Solar prot device - data'!E111,"") ->  | H118: =IF('Solar prot device - data'!F111<>"",'Solar prot device - data'!F111,"") ->  | I118: =IF('Solar prot device - data'!G111<>"",'Solar prot device - data'!G111,"") ->  | J118: =IF('Solar prot device - data'!H111<>"",'Solar prot device - data'!H111,"") ->  | K118: =IF('Solar prot device - data'!I111<>"",'Solar prot device - data'!I111,"") ->  | L118: =IF('Solar prot device - data'!J111<>"",'Solar prot device - data'!J111,"") ->  | M118: =IF('Solar prot device - data'!K111<>"",'Solar prot device - data'!K111,"") ->  | N118: =IF('Solar prot device - data'!L111<>"",'Solar prot device - data'!L111,"") -> 
D119: ='Solar prot device - data'!D112 -> 86 | E119: =IF('Solar prot device - data'!E112<>"",G$11&" + "&'Solar prot device - data'!E112,"") ->  | H119: =IF('Solar prot device - data'!F112<>"",'Solar prot device - data'!F112,"") ->  | I119: =IF('Solar prot device - data'!G112<>"",'Solar prot device - data'!G112,"") ->  | J119: =IF('Solar prot device - data'!H112<>"",'Solar prot device - data'!H112,"") ->  | K119: =IF('Solar prot device - data'!I112<>"",'Solar prot device - data'!I112,"") ->  | L119: =IF('Solar prot device - data'!J112<>"",'Solar prot device - data'!J112,"") ->  | M119: =IF('Solar prot device - data'!K112<>"",'Solar prot device - data'!K112,"") ->  | N119: =IF('Solar prot device - data'!L112<>"",'Solar prot device - data'!L112,"") -> 
D120: ='Solar prot device - data'!D113 -> 87 | E120: =IF('Solar prot device - data'!E113<>"",G$11&" + "&'Solar prot device - data'!E113,"") ->  | H120: =IF('Solar prot device - data'!F113<>"",'Solar prot device - data'!F113,"") ->  | I120: =IF('Solar prot device - data'!G113<>"",'Solar prot device - data'!G113,"") ->  | J120: =IF('Solar prot device - data'!H113<>"",'Solar prot device - data'!H113,"") ->  | K120: =IF('Solar prot device - data'!I113<>"",'Solar prot device - data'!I113,"") ->  | L120: =IF('Solar prot device - data'!J113<>"",'Solar prot device - data'!J113,"") ->  | M120: =IF('Solar prot device - data'!K113<>"",'Solar prot device - data'!K113,"") ->  | N120: =IF('Solar prot device - data'!L113<>"",'Solar prot device - data'!L113,"") -> 
D121: ='Solar prot device - data'!D114 -> 88 | E121: =IF('Solar prot device - data'!E114<>"",G$11&" + "&'Solar prot device - data'!E114,"") ->  | H121: =IF('Solar prot device - data'!F114<>"",'Solar prot device - data'!F114,"") ->  | I121: =IF('Solar prot device - data'!G114<>"",'Solar prot device - data'!G114,"") ->  | J121: =IF('Solar prot device - data'!H114<>"",'Solar prot device - data'!H114,"") ->  | K121: =IF('Solar prot device - data'!I114<>"",'Solar prot device - data'!I114,"") ->  | L121: =IF('Solar prot device - data'!J114<>"",'Solar prot device - data'!J114,"") ->  | M121: =IF('Solar prot device - data'!K114<>"",'Solar prot device - data'!K114,"") ->  | N121: =IF('Solar prot device - data'!L114<>"",'Solar prot device - data'!L114,"") -> 
D122: ='Solar prot device - data'!D115 -> 89 | E122: =IF('Solar prot device - data'!E115<>"",G$11&" + "&'Solar prot device - data'!E115,"") ->  | H122: =IF('Solar prot device - data'!F115<>"",'Solar prot device - data'!F115,"") ->  | I122: =IF('Solar prot device - data'!G115<>"",'Solar prot device - data'!G115,"") ->  | J122: =IF('Solar prot device - data'!H115<>"",'Solar prot device - data'!H115,"") ->  | K122: =IF('Solar prot device - data'!I115<>"",'Solar prot device - data'!I115,"") ->  | L122: =IF('Solar prot device - data'!J115<>"",'Solar prot device - data'!J115,"") ->  | M122: =IF('Solar prot device - data'!K115<>"",'Solar prot device - data'!K115,"") ->  | N122: =IF('Solar prot device - data'!L115<>"",'Solar prot device - data'!L115,"") -> 
D123: ='Solar prot device - data'!D116 -> 90 | E123: =IF('Solar prot device - data'!E116<>"",G$11&" + "&'Solar prot device - data'!E116,"") ->  | H123: =IF('Solar prot device - data'!F116<>"",'Solar prot device - data'!F116,"") ->  | I123: =IF('Solar prot device - data'!G116<>"",'Solar prot device - data'!G116,"") ->  | J123: =IF('Solar prot device - data'!H116<>"",'Solar prot device - data'!H116,"") ->  | K123: =IF('Solar prot device - data'!I116<>"",'Solar prot device - data'!I116,"") ->  | L123: =IF('Solar prot device - data'!J116<>"",'Solar prot device - data'!J116,"") ->  | M123: =IF('Solar prot device - data'!K116<>"",'Solar prot device - data'!K116,"") ->  | N123: =IF('Solar prot device - data'!L116<>"",'Solar prot device - data'!L116,"") -> 
D124: ='Solar prot device - data'!D117 -> 91 | E124: =IF('Solar prot device - data'!E117<>"",G$11&" + "&'Solar prot device - data'!E117,"") ->  | H124: =IF('Solar prot device - data'!F117<>"",'Solar prot device - data'!F117,"") ->  | I124: =IF('Solar prot device - data'!G117<>"",'Solar prot device - data'!G117,"") ->  | J124: =IF('Solar prot device - data'!H117<>"",'Solar prot device - data'!H117,"") ->  | K124: =IF('Solar prot device - data'!I117<>"",'Solar prot device - data'!I117,"") ->  | L124: =IF('Solar prot device - data'!J117<>"",'Solar prot device - data'!J117,"") ->  | M124: =IF('Solar prot device - data'!K117<>"",'Solar prot device - data'!K117,"") ->  | N124: =IF('Solar prot device - data'!L117<>"",'Solar prot device - data'!L117,"") -> 
D125: ='Solar prot device - data'!D118 -> 92 | E125: =IF('Solar prot device - data'!E118<>"",G$11&" + "&'Solar prot device - data'!E118,"") ->  | H125: =IF('Solar prot device - data'!F118<>"",'Solar prot device - data'!F118,"") ->  | I125: =IF('Solar prot device - data'!G118<>"",'Solar prot device - data'!G118,"") ->  | J125: =IF('Solar prot device - data'!H118<>"",'Solar prot device - data'!H118,"") ->  | K125: =IF('Solar prot device - data'!I118<>"",'Solar prot device - data'!I118,"") ->  | L125: =IF('Solar prot device - data'!J118<>"",'Solar prot device - data'!J118,"") ->  | M125: =IF('Solar prot device - data'!K118<>"",'Solar prot device - data'!K118,"") ->  | N125: =IF('Solar prot device - data'!L118<>"",'Solar prot device - data'!L118,"") -> 
D126: ='Solar prot device - data'!D119 -> 93 | E126: =IF('Solar prot device - data'!E119<>"",G$11&" + "&'Solar prot device - data'!E119,"") ->  | H126: =IF('Solar prot device - data'!F119<>"",'Solar prot device - data'!F119,"") ->  | I126: =IF('Solar prot device - data'!G119<>"",'Solar prot device - data'!G119,"") ->  | J126: =IF('Solar prot device - data'!H119<>"",'Solar prot device - data'!H119,"") ->  | K126: =IF('Solar prot device - data'!I119<>"",'Solar prot device - data'!I119,"") ->  | L126: =IF('Solar prot device - data'!J119<>"",'Solar prot device - data'!J119,"") ->  | M126: =IF('Solar prot device - data'!K119<>"",'Solar prot device - data'!K119,"") ->  | N126: =IF('Solar prot device - data'!L119<>"",'Solar prot device - data'!L119,"") ->  | Y126: =IF(AND(O126<>"",$G$15<>""),O126/$G$15,"") ->  | Z126: =IF(AND(P126<>"",$G$15<>""),P126/$G$15,"") ->  | AA126: =IF(AND(Q126<>"",$G$15<>""),Q126/$G$15,"") -> 
D127: ='Solar prot device - data'!D120 -> 94 | E127: =IF('Solar prot device - data'!E120<>"",G$11&" + "&'Solar prot device - data'!E120,"") ->  | H127: =IF('Solar prot device - data'!F120<>"",'Solar prot device - data'!F120,"") ->  | I127: =IF('Solar prot device - data'!G120<>"",'Solar prot device - data'!G120,"") ->  | J127: =IF('Solar prot device - data'!H120<>"",'Solar prot device - data'!H120,"") ->  | K127: =IF('Solar prot device - data'!I120<>"",'Solar prot device - data'!I120,"") ->  | L127: =IF('Solar prot device - data'!J120<>"",'Solar prot device - data'!J120,"") ->  | M127: =IF('Solar prot device - data'!K120<>"",'Solar prot device - data'!K120,"") ->  | N127: =IF('Solar prot device - data'!L120<>"",'Solar prot device - data'!L120,"") -> 
D128: ='Solar prot device - data'!D121 -> 95 | E128: =IF('Solar prot device - data'!E121<>"",G$11&" + "&'Solar prot device - data'!E121,"") ->  | H128: =IF('Solar prot device - data'!F121<>"",'Solar prot device - data'!F121,"") ->  | I128: =IF('Solar prot device - data'!G121<>"",'Solar prot device - data'!G121,"") ->  | J128: =IF('Solar prot device - data'!H121<>"",'Solar prot device - data'!H121,"") ->  | K128: =IF('Solar prot device - data'!I121<>"",'Solar prot device - data'!I121,"") ->  | L128: =IF('Solar prot device - data'!J121<>"",'Solar prot device - data'!J121,"") ->  | M128: =IF('Solar prot device - data'!K121<>"",'Solar prot device - data'!K121,"") ->  | N128: =IF('Solar prot device - data'!L121<>"",'Solar prot device - data'!L121,"") -> 
D129: ='Solar prot device - data'!D122 -> 96 | E129: =IF('Solar prot device - data'!E122<>"",G$11&" + "&'Solar prot device - data'!E122,"") ->  | H129: =IF('Solar prot device - data'!F122<>"",'Solar prot device - data'!F122,"") ->  | I129: =IF('Solar prot device - data'!G122<>"",'Solar prot device - data'!G122,"") ->  | J129: =IF('Solar prot device - data'!H122<>"",'Solar prot device - data'!H122,"") ->  | K129: =IF('Solar prot device - data'!I122<>"",'Solar prot device - data'!I122,"") ->  | L129: =IF('Solar prot device - data'!J122<>"",'Solar prot device - data'!J122,"") ->  | M129: =IF('Solar prot device - data'!K122<>"",'Solar prot device - data'!K122,"") ->  | N129: =IF('Solar prot device - data'!L122<>"",'Solar prot device - data'!L122,"") -> 
D130: ='Solar prot device - data'!D123 -> 97 | E130: =IF('Solar prot device - data'!E123<>"",G$11&" + "&'Solar prot device - data'!E123,"") ->  | H130: =IF('Solar prot device - data'!F123<>"",'Solar prot device - data'!F123,"") ->  | I130: =IF('Solar prot device - data'!G123<>"",'Solar prot device - data'!G123,"") ->  | J130: =IF('Solar prot device - data'!H123<>"",'Solar prot device - data'!H123,"") ->  | K130: =IF('Solar prot device - data'!I123<>"",'Solar prot device - data'!I123,"") ->  | L130: =IF('Solar prot device - data'!J123<>"",'Solar prot device - data'!J123,"") ->  | M130: =IF('Solar prot device - data'!K123<>"",'Solar prot device - data'!K123,"") ->  | N130: =IF('Solar prot device - data'!L123<>"",'Solar prot device - data'!L123,"") -> 
D131: ='Solar prot device - data'!D124 -> 98 | E131: =IF('Solar prot device - data'!E124<>"",G$11&" + "&'Solar prot device - data'!E124,"") ->  | H131: =IF('Solar prot device - data'!F124<>"",'Solar prot device - data'!F124,"") ->  | I131: =IF('Solar prot device - data'!G124<>"",'Solar prot device - data'!G124,"") ->  | J131: =IF('Solar prot device - data'!H124<>"",'Solar prot device - data'!H124,"") ->  | K131: =IF('Solar prot device - data'!I124<>"",'Solar prot device - data'!I124,"") ->  | L131: =IF('Solar prot device - data'!J124<>"",'Solar prot device - data'!J124,"") ->  | M131: =IF('Solar prot device - data'!K124<>"",'Solar prot device - data'!K124,"") ->  | N131: =IF('Solar prot device - data'!L124<>"",'Solar prot device - data'!L124,"") -> 
D132: ='Solar prot device - data'!D125 -> 99 | E132: =IF('Solar prot device - data'!E125<>"",G$11&" + "&'Solar prot device - data'!E125,"") ->  | H132: =IF('Solar prot device - data'!F125<>"",'Solar prot device - data'!F125,"") ->  | I132: =IF('Solar prot device - data'!G125<>"",'Solar prot device - data'!G125,"") ->  | J132: =IF('Solar prot device - data'!H125<>"",'Solar prot device - data'!H125,"") ->  | K132: =IF('Solar prot device - data'!I125<>"",'Solar prot device - data'!I125,"") ->  | L132: =IF('Solar prot device - data'!J125<>"",'Solar prot device - data'!J125,"") ->  | M132: =IF('Solar prot device - data'!K125<>"",'Solar prot device - data'!K125,"") ->  | N132: =IF('Solar prot device - data'!L125<>"",'Solar prot device - data'!L125,"") -> 
D133: ='Solar prot device - data'!D126 -> 100 | E133: =IF('Solar prot device - data'!E126<>"",G$11&" + "&'Solar prot device - data'!E126,"") ->  | H133: =IF('Solar prot device - data'!F126<>"",'Solar prot device - data'!F126,"") ->  | I133: =IF('Solar prot device - data'!G126<>"",'Solar prot device - data'!G126,"") ->  | J133: =IF('Solar prot device - data'!H126<>"",'Solar prot device - data'!H126,"") ->  | K133: =IF('Solar prot device - data'!I126<>"",'Solar prot device - data'!I126,"") ->  | L133: =IF('Solar prot device - data'!J126<>"",'Solar prot device - data'!J126,"") ->  | M133: =IF('Solar prot device - data'!K126<>"",'Solar prot device - data'!K126,"") ->  | N133: =IF('Solar prot device - data'!L126<>"",'Solar prot device - data'!L126,"") -> 

Sheet Results-2
C9: The following chart gives the total solar energy transmittance gtotal for the combination glazing - solar protection device. The solar protection device can be external, internal or integrated between the panes. The effect of different U-values and g-values of the glazing on the total solar energy transmittance of the combination is shown.
C10: Choose the solar protection device that you want to analyse :
H12: (See sheet "Solar prot device - data") | T12: Glazing | U12: U1 | V12: =E22 -> 1.1 | W12: (U = thermal transmittance in [W/(m²K)])
C13: 9 | U13: U2 | V13: =E23 -> 3
U14: U3 | V14: =E24 -> 5.8
C15: Blind | D15: Name: | E15: =VLOOKUP($V$15,'Solar prot device - data'!$D$27:$G$126,2) -> High translucent - White | T15: Blind | U15: n° | V15: =C13*1 -> 9 | Y15: G1 | Z15: 5 | AA15: W/m²K
D16: te,B : | E16: =IF(VLOOKUP($V$15,'Solar prot device - data'!$D$27:$I$126,3)<>"",VLOOKUP($V$15,'Solar prot device - data'!$D$27:$I$126,3),"") -> 0.4 | U16: Name | V16: =VLOOKUP($V$15,'Solar prot device - data'!$D$27:$G$126,2) -> High translucent - White | Y16: G2 ext | Z16: 10 | AA16: W/m²K
D17: re,B : | E17: =IF(VLOOKUP($V$15,'Solar prot device - data'!$D$27:$I$126,4)<>"",VLOOKUP($V$15,'Solar prot device - data'!$D$27:$I$126,4),"") -> 0.4 | U17: te,B | V17: =E16 -> 0.4 | Y17: G2 int | Z17: 30 | AA17: W/m²K
D18: ae,B : | E18: =IF(VLOOKUP($V$15,'Solar prot device - data'!$D$27:$I$126,6)<>"",VLOOKUP($V$15,'Solar prot device - data'!$D$27:$I$126,6),"") -> 0.2 | U18: re,B | V18: =E17 -> 0.4 | Y18: G3 | Z18: 3 | AA18: W/m²K
U19: a e,B | V19: =E18 -> 0.2
C20: Choose 3 U-values for the glazing :
C22: Glazing | D22: Ug 1 = | E22: 1.1 | F22: W/m²K | G22: Show | H22: Internal
D23: Ug 2 = | E23: 3 | F23: W/m²K | H23: External | W23: External, | X23: External, | Y23: External, | AA23: Internal, | AB23: Internal, | AC23: Internal, | AE23: Between, | AF23: Between, | AG23: Between,
D24: Ug 3 = | E24: 5.8 | F24: W/m²K | H24: Between | W24: =CONCATENATE("U = ",E22) -> U = 1,1 | X24: =CONCATENATE("U = ",E23) -> U = 3 | Y24: =CONCATENATE("U = ",E24) -> U = 5,8 | AA24: =CONCATENATE("U = ",$E22) -> U = 1,1 | AB24: =CONCATENATE("U = ",$E23) -> U = 3 | AC24: =CONCATENATE("U = ",$E24) -> U = 5,8 | AE24: =CONCATENATE("U = ",$E22) -> U = 1,1 | AF24: =CONCATENATE("U = ",$E23) -> U = 3 | AG24: =CONCATENATE("U = ",$E24) -> U = 5,8
U25: U glazing | W25: =$V$12 -> 1.1 | X25: =$V$13 -> 3 | Y25: =$V$14 -> 5.8 | AA25: =$V$12 -> 1.1 | AB25: =$V$13 -> 3 | AC25: =$V$14 -> 5.8 | AE25: =$V$12 -> 1.1 | AF25: =$V$13 -> 3 | AG25: =$V$14 -> 5.8
U26: G | W26: =1/(1/W$25+1/$Z$15+1/$Z$16) -> 0.8270676692 | X26: =1/(1/X$25+1/$Z$15+1/$Z$16) -> 1.578947368 | Y26: =1/(1/Y$25+1/$Z$15+1/$Z$16) -> 2.116788321 | AA26: =1/(1/AA$25+1/$Z$17) -> 1.061093248 | AB26: =1/(1/AB$25+1/$Z$17) -> 2.727272727 | AC26: =1/(1/AC$25+1/$Z$17) -> 4.860335196 | AE26: =1/(1/$AE25+1/$Z18) -> 0.8048780488 | AF26: =1/(1/$AF25+1/$Z18) -> 1.5 | AG26: =1/(1/$AG25+1/$Z18) -> 1.977272727
U29: g glazing
U31: 0.15 | W31: =$V$17*$U31+$V$19*W$26/$Z$16+$V$17*(1-$U31)*W$26/$Z$15 -> 0.1327819549 | X31: 0.1989473684 | Y31: 0.2462773723 | AA31: =$U31*(1-$U31*$V$18-$V$19*AA$26/$Z$17) -> 0.1399389068 | AB31: =$U31*(1-$U31*$V$18-$V$19*AB$26/$Z$17) -> 0.1382727273 | AC31: =$U31*(1-$U31*$V$18-$V$19*AC$26/$Z$17) -> 0.1361396648 | AE31: =$U31*$V$17+$U31*($V$19+(1-$U31)*$V$18)*AE$26/$Z$18 -> 0.08173170732 | AF31: =$U31*$V$17+$U31*($V$19+(1-$U31)*$V$18)*AF$26/$Z$18 -> 0.1005 | AG31: =$U31*$V$17+$U31*($V$19+(1-$U31)*$V$18)*AG$26/$Z$18 -> 0.1133863636
U32: 0.2 | W32: 0.1494736842 | X32: 0.2126315789 | Y32: 0.257810219 | AA32: =$U32*(1-$U32*$V$18-$V$19*AA$26/$Z$17) -> 0.182585209 | AB32: 0.1803636364 | AC32: 0.1775195531 | AE32: =$U32*$V$17+$U32*($V$19+(1-$U32)*$V$18)*AE$26/$Z$18 -> 0.107902439 | AF32: 0.132 | AG32: 0.1485454545
U33: 0.25 | W33: 0.1661654135 | X33: 0.2263157895 | Y33: 0.2693430657 | AA33: 0.2232315113 | AB33: 0.2204545455 | AC33: 0.2168994413 | AE33: 0.1335365854 | AF33: 0.1625 | AG33: 0.1823863636
U34: 0.3 | W34: 0.1828571429 | X34: 0.24 | Y34: 0.2808759124 | AA34: 0.2618778135 | AB34: 0.2585454545 | AC34: 0.2542793296 | AE34: 0.1586341463 | AF34: 0.192 | AG34: 0.2149090909
U35: 0.35 | W35: 0.1995488722 | X35: 0.2536842105 | Y35: 0.2924087591 | AA35: 0.2985241158 | AB35: 0.2946363636 | AC35: 0.2896592179 | AE35: 0.183195122 | AF35: 0.2205 | AG35: 0.2461136364
U36: 0.4 | W36: 0.2162406015 | X36: 0.2673684211 | Y36: 0.3039416058 | AA36: 0.333170418 | AB36: 0.3287272727 | AC36: 0.3230391061 | AE36: 0.2072195122 | AF36: 0.248 | AG36: 0.276
U37: 0.45 | W37: 0.2329323308 | X37: 0.2810526316 | Y37: 0.3154744526 | AA37: 0.3658167203 | AB37: 0.3608181818 | AC37: 0.3544189944 | AE37: 0.2307073171 | AF37: 0.2745 | AG37: 0.3045681818
U38: 0.5 | W38: 0.2496240602 | X38: 0.2947368421 | Y38: 0.3270072993 | AA38: 0.3964630225 | AB38: 0.3909090909 | AC38: 0.3837988827 | AE38: 0.2536585366 | AF38: 0.3 | AG38: 0.3318181818
U39: 0.55 | W39: 0.2663157895 | X39: 0.3084210526 | Y39: 0.338540146 | AA39: 0.4251093248 | AB39: 0.419 | AC39: 0.4111787709 | AE39: 0.2760731707 | AF39: 0.3245 | AG39: 0.35775
U40: 0.6 | W40: 0.2830075188 | X40: 0.3221052632 | Y40: 0.3500729927 | AA40: 0.451755627 | AB40: 0.4450909091 | AC40: 0.4365586592 | AE40: 0.2979512195 | AF40: 0.348 | AG40: 0.3823636364
U41: 0.65 | W41: 0.2996992481 | X41: 0.3357894737 | Y41: 0.3616058394 | AA41: 0.4764019293 | AB41: 0.4691818182 | AC41: 0.4599385475 | AE41: 0.3192926829 | AF41: 0.3705 | AG41: 0.4056590909
U42: 0.7 | W42: 0.3163909774 | X42: 0.3494736842 | Y42: 0.3731386861 | AA42: 0.4990482315 | AB42: 0.4912727273 | AC42: 0.4813184358 | AE42: 0.340097561 | AF42: 0.392 | AG42: 0.4276363636
U43: 0.75 | W43: 0.3330827068 | X43: 0.3631578947 | Y43: 0.3846715328 | AA43: 0.5196945338 | AB43: 0.5113636364 | AC43: 0.500698324 | AE43: 0.3603658537 | AF43: 0.4125 | AG43: 0.4482954545
U44: 0.8 | W44: 0.3497744361 | X44: 0.3768421053 | Y44: 0.3962043796 | AA44: 0.538340836 | AB44: 0.5294545455 | AC44: 0.5180782123 | AE44: 0.380097561 | AF44: 0.432 | AG44: 0.4676363636
U45: 0.85 | W45: 0.3664661654 | X45: 0.3905263158 | Y45: 0.4077372263 | AA45: 0.5549871383 | AB45: 0.5455454545 | AC45: 0.5334581006 | AE45: 0.3992926829 | AF45: 0.4505 | AG45: 0.4856590909
W46: =IF($W47,W23&W24,"") -> External,U = 1,1 | X46: =IF($W47,X23&X24,"") -> External,U = 3 | Y46: =IF($W47,Y23&Y24,"") -> External,U = 5,8 | AA46: =IF($AA47,AA23&AA24,"") -> Internal,U = 1,1 | AB46: =IF($AA47,AB23&AB24,"") -> Internal,U = 3 | AC46: =IF($AA47,AC23&AC24,"") -> Internal,U = 5,8 | AE46: =IF($AE47,AE23&AE24,"") ->  | AF46: =IF($AE47,AF23&AF24,"") ->  | AG46: =IF($AE47,AG23&AG24,"") -> 
U47: Toont | W47: TRUE | Z47: g | AA47: TRUE | AD47: g | AE47: FALSE
U48: =IF(W$47,$U31,"") -> 0.15 | W48: =IF($W$47,W31,"") -> 0.1327819549 | X48: 0.1989473684 | Y48: 0.2462773723 | Z48: =IF(AA$47,$U31,"") -> 0.15 | AA48: =IF($AA$47,AA31,"") -> 0.1399389068 | AB48: 0.1382727273 | AC48: 0.1361396648 | AD48: =IF(AE$47,$U31,"") ->  | AE48: =IF($AE$47,AE31,"") -> 
U49: 0.2 | W49: 0.1494736842 | X49: 0.2126315789 | Y49: 0.257810219 | Z49: 0.2 | AA49: 0.182585209 | AB49: 0.1803636364 | AC49: 0.1775195531
U50: 0.25 | W50: 0.1661654135 | X50: 0.2263157895 | Y50: 0.2693430657 | Z50: 0.25 | AA50: 0.2232315113 | AB50: 0.2204545455 | AC50: 0.2168994413
U51: 0.3 | W51: 0.1828571429 | X51: 0.24 | Y51: 0.2808759124 | Z51: 0.3 | AA51: 0.2618778135 | AB51: 0.2585454545 | AC51: 0.2542793296
U52: 0.35 | W52: 0.1995488722 | X52: 0.2536842105 | Y52: 0.2924087591 | Z52: 0.35 | AA52: 0.2985241158 | AB52: 0.2946363636 | AC52: 0.2896592179
U53: 0.4 | W53: 0.2162406015 | X53: 0.2673684211 | Y53: 0.3039416058 | Z53: 0.4 | AA53: 0.333170418 | AB53: 0.3287272727 | AC53: 0.3230391061
U54: 0.45 | W54: 0.2329323308 | X54: 0.2810526316 | Y54: 0.3154744526 | Z54: 0.45 | AA54: 0.3658167203 | AB54: 0.3608181818 | AC54: 0.3544189944
U55: 0.5 | W55: 0.2496240602 | X55: 0.2947368421 | Y55: 0.3270072993 | Z55: 0.5 | AA55: 0.3964630225 | AB55: 0.3909090909 | AC55: 0.3837988827
U56: 0.55 | W56: 0.2663157895 | X56: 0.3084210526 | Y56: 0.338540146 | Z56: 0.55 | AA56: 0.4251093248 | AB56: 0.419 | AC56: 0.4111787709
U57: 0.6 | W57: 0.2830075188 | X57: 0.3221052632 | Y57: 0.3500729927 | Z57: 0.6 | AA57: 0.451755627 | AB57: 0.4450909091 | AC57: 0.4365586592
U58: 0.65 | W58: 0.2996992481 | X58: 0.3357894737 | Y58: 0.3616058394 | Z58: 0.65 | AA58: 0.4764019293 | AB58: 0.4691818182 | AC58: 0.4599385475
U59: 0.7 | W59: 0.3163909774 | X59: 0.3494736842 | Y59: 0.3731386861 | Z59: 0.7 | AA59: 0.4990482315 | AB59: 0.4912727273 | AC59: 0.4813184358
U60: 0.75 | W60: 0.3330827068 | X60: 0.3631578947 | Y60: 0.3846715328 | Z60: 0.75 | AA60: 0.5196945338 | AB60: 0.5113636364 | AC60: 0.500698324
U61: 0.8 | W61: =IF($W$47,W44,"") -> 0.3497744361 | X61: 0.3768421053 | Y61: 0.3962043796 | Z61: 0.8 | AA61: =IF($AA$47,AA44,"") -> 0.538340836 | AB61: 0.5294545455 | AC61: 0.5180782123 | AE61: =IF($AE$47,AE44,"") -> 
U62: 0.85 | W62: 0.3664661654 | X62: 0.3905263158 | Y62: 0.4077372263 | Z62: 0.85 | AA62: 0.5549871383 | AB62: 0.5455454545 | AC62: 0.5334581006

Sheet Results-3
D9: Calculation of the total solar energy transmittance (gtot), the direct solar transmittance te,tot and the secondary internal heat transfer factor qi,tot for the combination of the reference glazings indicated in the standard EN 14501:2005 and the specified solar protection devices (see characteristics in sheet "Solar prot. device-data")
D11: EN 14501 : Blinds and shutters - Thermal and visual comfort - Performance characteristics and classification
D13: Four reference glazings are specified in the annex A of EN 14501 :
D15: 1. Glazing A : clear single glazing (4 mm)
D16: 2. Glazing B : clear double glazing (4 / 12 / 4), space filled with air
D17: 3. Glazing C : double glazing (4 / 16 / 4), with low emissivity coating in position 3, space filled with argon
D18: 4. Glazing D : Reflective double glazing (4 / 16 / 4), with a low emissivity soft coating in position 2, space filled with Argon
F20: U (W/m²K) | G20: g (-) | H20: te | I20: re | J20: r'e
E21: Glazing A | F21: 5.8 | G21: 0.85 | H21: 0.83 | I21: 0.08 | J21: 0.08
E22: Glazing B | F22: 2.9 | G22: 0.76 | H22: 0.69 | I22: 0.14 | J22: 0.14
E23: Glazing C | F23: 1.2 | G23: 0.59 | H23: 0.49 | I23: 0.29 | J23: 0.27
E24: Glazing D | F24: 1.1 | G24: 0.32 | H24: 0.27 | I24: 0.29 | J24: 0.38
BI25: Glazing A | BJ25: Glazing B | BK25: Glazing C | BL25: Glazing D
L26: SOLAR FACTOR gtot | Y26: DIRECT SOLAR TRANSMITTANCE te,tot | AH26: SECONDARY INTERNAL HEAT TRANSFER FACTOR qi,tot | AQ26: SHADING FACTOR Fc | BH26: U | BI26: =F21 -> 5.8 | BJ26: =F22 -> 2.9 | BK26: =F23 -> 1.2 | BL26: =F24 -> 1.1
L27: External prot. device | P27: Internal prot. device | T27: Integrated prot. device | Y27: External prot. device | AC27: Internal prot. device | AH27: External prot. device | AL27: Internal prot. device | AQ27: External prot. device | AU27: Internal prot. device | AY27: Integrated prot. device | BH27: g | BI27: =G21 -> 0.85 | BJ27: =G22 -> 0.76 | BK27: =G23 -> 0.59 | BL27: =G24 -> 0.32
D28: Comb. | E28: Name of the combination glazing + blind | H28: te,B | I28: re,B | J28: r'e,B | K28: ae,B | L28: prot. dev. + | M28: prot. dev. + | N28: prot. dev. + | O28: prot. dev. + | P28: prot. dev. + | Q28: prot. dev. + | R28: prot. dev. + | S28: prot. dev. + | T28: prot. dev. + | U28: prot. dev. + | V28: prot. dev. + | W28: prot. dev. + | Y28: prot. dev. + | Z28: prot. dev. + | AA28: prot. dev. + | AB28: prot. dev. + | AC28: prot. dev. + | AD28: prot. dev. + | AE28: prot. dev. + | AF28: prot. dev. + | AH28: prot. dev. + | AI28: prot. dev. + | AJ28: prot. dev. + | AK28: prot. dev. + | AL28: prot. dev. + | AM28: prot. dev. + | AN28: prot. dev. + | AO28: prot. dev. + | AQ28: prot. dev. + | AR28: prot. dev. + | AS28: prot. dev. + | AT28: prot. dev. + | AU28: prot. dev. + | AV28: prot. dev. + | AW28: prot. dev. + | AX28: prot. dev. + | AY28: prot. dev. + | AZ28: prot. dev. + | BA28: prot. dev. + | BB28: prot. dev. + | BH28: G1 | BI28: 5 | BJ28: 5 | BK28: 5 | BL28: 5
D29: nr | L29: Glazing A | M29: Glazing B | N29: Glazing C | O29: Glazing D | P29: Glazing A | Q29: Glazing B | R29: Glazing C | S29: Glazing D | T29: Glazing A | U29: Glazing B | V29: Glazing C | W29: Glazing D | Y29: Glazing A | Z29: Glazing B | AA29: Glazing C | AB29: Glazing D | AC29: Glazing A | AD29: Glazing B | AE29: Glazing C | AF29: Glazing D | AH29: Glazing A | AI29: Glazing B | AJ29: Glazing C | AK29: Glazing D | AL29: Glazing A | AM29: Glazing B | AN29: Glazing C | AO29: Glazing D | AQ29: Glazing A | AR29: Glazing B | AS29: Glazing C | AT29: Glazing D | AU29: Glazing A | AV29: Glazing B | AW29: Glazing C | AX29: Glazing D | AY29: Glazing A | AZ29: Glazing B | BA29: Glazing C | BB29: Glazing D | BH29: G2 ext | BI29: 10 | BJ29: 10 | BK29: 10 | BL29: 10
D30: ='Solar prot device - data'!D27 -> 1 | E30: =("Glazing"&" + "&'Solar prot device - data'!E27) -> Glazing + Opaque - White | H30: =IF('Solar prot device - data'!F27<>"",'Solar prot device - data'!F27,"") -> 0 | I30: =IF('Solar prot device - data'!G27<>"",'Solar prot device - data'!G27,"") -> 0.7 | J30: =IF('Solar prot device - data'!H27<>"",'Solar prot device - data'!H27,"") -> 0.7 | K30: =IF('Solar prot device - data'!I27<>"",'Solar prot device - data'!I27,"") -> 0.3 | L30: =IF(AND($H30<>"",$I30<>""),$H30*BI$27+$K30*BI$32/BI$29+$H30*(1-BI$27)*BI$32/BI$28,"") -> 0.06350364964 | M30: 0.04652406417 | N30: 0.02647058824 | O30: 0.02481203008 | P30: =IF(AND($H30<>"",$I30<>""),BI$27*(1-BI$27*$I30-$K30*BI$33/BI$30),"") -> 0.3029371508 | Q30: =IF(AND($H30<>"",$I30<>""),BJ$27*(1-BJ$27*$I30-$K30*BJ$33/BJ$30),"") -> 0.3355827356 | R30: =IF(AND($H30<>"",$I30<>""),BK$27*(1-BK$27*$I30-$K30*BK$33/BK$30),"") -> 0.3395223077 | S30: =IF(AND($H30<>"",$I30<>""),BL$27*(1-BL$27*$I30-$K30*BL$33/BL$30),"") -> 0.2449245016 | T30: =IF(AND($H30<>"",$I30<>""),BI$27*$H30+BI$27*($K30+(1-BI$27)*$I30)*BI$34/BI$31,"") -> 0.2268920455 | U30: =IF(AND($H30<>"",$I30<>""),BJ$27*$H30+BJ$27*($K30+(1-BJ$27)*$I30)*BJ$34/BJ$31,"") -> 0.1748257627 | V30: =IF(AND($H30<>"",$I30<>""),BK$27*$H30+BK$27*($K30+(1-BK$27)*$I30)*BK$34/BK$31,"") -> 0.09895142857 | W30: =IF(AND($H30<>"",$I30<>""),BL$27*$H30+BL$27*($K30+(1-BL$27)*$I30)*BL$34/BL$31,"") -> 0.06662243902 | Y30: =IF(AND($H30<>"",$J30<>""),$H$21*$H30/(1-$I$21*$J30),"") -> 0 | Z30: =IF(AND($H30<>"",$J30<>""),$H$22*$H30/(1-$I$22*$J30),"") -> 0 | AA30: =IF(AND($H30<>"",$J30<>""),$H$23*$H30/(1-$I$23*$J30),"") -> 0 | AB30: =IF(AND($H30<>"",$J30<>""),$H$24*$H30/(1-$I$24*$J30),"") -> 0 | AC30: =IF(AND($H30<>"",$I30<>""),$H$21*$H30/(1-$J$21*$I30),"") -> 0 | AD30: =IF(AND($H30<>"",$I30<>""),$H$22*$H30/(1-$J$22*$I30),"") -> 0 | AE30: =IF(AND($H30<>"",$I30<>""),$H$23*$H30/(1-$J$23*$I30),"") -> 0 | AF30: =IF(AND($H30<>"",$I30<>""),$H$24*$H30/(1-$J$24*$I30),"") -> 0 | AH30: =IF(AND(L30<>"",Y30<>""),L30-Y30,"") -> 0.06350364964 | AI30: 0.04652406417 | AJ30: 0.02647058824 | AK30: 0.02481203008 | AL30: 0.3029371508 | AM30: 0.3355827356 | AN30: 0.3395223077 | AO30: 0.2449245016 | AQ30: =IF(L30<>"", L30/$G$21,"") -> 0.07471017604 | AR30: =IF(M30<>"", M30/$G$22,"") -> 0.06121587391 | AS30: =IF(N30<>"", N30/$G$23,"") -> 0.04486540379 | AT30: =IF(O30<>"", O30/$G$24,"") -> 0.07753759398 | AU30: =IF(P30<>"", P30/$G$21,"") -> 0.356396648 | AV30: =IF(Q30<>"", Q30/$G$22,"") -> 0.441556231 | AW30: =IF(R30<>"", R30/$G$23,"") -> 0.5754615385 | AX30: =IF(S30<>"", S30/$G$24,"") -> 0.7653890675 | AY30: =IF(T30<>"", T30/$G$21,"") -> 0.2669318182 | AZ30: =IF(U30<>"", U30/$G$22,"") -> 0.2300338983 | BA30: =IF(V30<>"", V30/$G$23,"") -> 0.1677142857 | BB30: =IF(W30<>"", W30/$G$24,"") -> 0.208195122 | BH30: G2 int | BI30: 30 | BJ30: 30 | BK30: 30 | BL30: 30
D31: ='Solar prot device - data'!D28 -> 2 | E31: =("Glazing"&" + "&'Solar prot device - data'!E28) -> Glazing + Opaque - Pastel | H31: =IF('Solar prot device - data'!F28<>"",'Solar prot device - data'!F28,"") -> 0 | I31: =IF('Solar prot device - data'!G28<>"",'Solar prot device - data'!G28,"") -> 0.5 | J31: =IF('Solar prot device - data'!H28<>"",'Solar prot device - data'!H28,"") -> 0.5 | K31: =IF('Solar prot device - data'!I28<>"",'Solar prot device - data'!I28,"") -> 0.5 | L31: 0.1058394161 | M31: 0.07754010695 | N31: 0.04411764706 | O31: 0.04135338346 | P31: =IF(AND($H31<>"",$I31<>""),BI$27*(1-BI$27*$I31-$K31*BI$33/BI$30),"") -> 0.4198952514 | Q31: =IF(AND($H31<>"",$I31<>""),BJ$27*(1-BJ$27*$I31-$K31*BJ$33/BJ$30),"") -> 0.4377045593 | R31: =IF(AND($H31<>"",$I31<>""),BK$27*(1-BK$27*$I31-$K31*BK$33/BK$30),"") -> 0.4046038462 | S31: =IF(AND($H31<>"",$I31<>""),BL$27*(1-BL$27*$I31-$K31*BL$33/BL$30),"") -> 0.263140836 | T31: =IF(AND($H31<>"",$I31<>""),BI$27*$H31+BI$27*($K31+(1-BI$27)*$I31)*BI$34/BI$31,"") -> 0.3221306818 | U31: =IF(AND($H31<>"",$I31<>""),BJ$27*$H31+BJ$27*($K31+(1-BJ$27)*$I31)*BJ$34/BJ$31,"") -> 0.2316067797 | V31: =IF(AND($H31<>"",$I31<>""),BK$27*$H31+BK$27*($K31+(1-BK$27)*$I31)*BK$34/BK$31,"") -> 0.1188428571 | W31: =IF(AND($H31<>"",$I31<>""),BL$27*$H31+BL$27*($K31+(1-BL$27)*$I31)*BL$34/BL$31,"") -> 0.07211707317 | Y31: =IF(AND($H31<>"",$J31<>""),$H$21*$H31/(1-$I$21*$J31),"") -> 0 | Z31: =IF(AND($H31<>"",$J31<>""),$H$22*$H31/(1-$I$22*$J31),"") -> 0 | AA31: =IF(AND($H31<>"",$J31<>""),$H$23*$H31/(1-$I$23*$J31),"") -> 0 | AB31: =IF(AND($H31<>"",$J31<>""),$H$24*$H31/(1-$I$24*$J31),"") -> 0 | AC31: =IF(AND($H31<>"",$I31<>""),$H$21*$H31/(1-$J$21*$I31),"") -> 0 | AD31: =IF(AND($H31<>"",$I31<>""),$H$22*$H31/(1-$J$22*$I31),"") -> 0 | AE31: =IF(AND($H31<>"",$I31<>""),$H$23*$H31/(1-$J$23*$I31),"") -> 0 | AF31: =IF(AND($H31<>"",$I31<>""),$H$24*$H31/(1-$J$24*$I31),"") -> 0 | AH31: =IF(AND(L31<>"",Y31<>""),L31-Y31,"") -> 0.1058394161 | AI31: =IF(AND(M31<>"",Z31<>""),M31-Z31,"") -> 0.07754010695 | AJ31: =IF(AND(N31<>"",AA31<>""),N31-AA31,"") -> 0.04411764706 | AK31: =IF(AND(O31<>"",AB31<>""),O31-AB31,"") -> 0.04135338346 | AL31: =IF(AND(P31<>"",AC31<>""),P31-AC31,"") -> 0.4198952514 | AM31: =IF(AND(Q31<>"",AD31<>""),Q31-AD31,"") -> 0.4377045593 | AN31: =IF(AND(R31<>"",AE31<>""),R31-AE31,"") -> 0.4046038462 | AO31: =IF(AND(S31<>"",AF31<>""),S31-AF31,"") -> 0.263140836 | AQ31: =IF(L31<>"", L31/$G$21,"") -> 0.1245169601 | AR31: =IF(M31<>"", M31/$G$22,"") -> 0.1020264565 | AS31: =IF(N31<>"", N31/$G$23,"") -> 0.07477567298 | AT31: =IF(O31<>"", O31/$G$24,"") -> 0.1292293233 | AU31: =IF(P31<>"", P31/$G$21,"") -> 0.4939944134 | AV31: =IF(Q31<>"", Q31/$G$22,"") -> 0.5759270517 | AW31: =IF(R31<>"", R31/$G$23,"") -> 0.6857692308 | AX31: =IF(S31<>"", S31/$G$24,"") -> 0.8223151125 | AY31: =IF(T31<>"", T31/$G$21,"") -> 0.3789772727 | AZ31: =IF(U31<>"", U31/$G$22,"") -> 0.3047457627 | BA31: =IF(V31<>"", V31/$G$23,"") -> 0.2014285714 | BB31: =IF(W31<>"", W31/$G$24,"") -> 0.2253658537 | BH31: G3 | BI31: 3 | BJ31: 3 | BK31: 3 | BL31: 3
D32: ='Solar prot device - data'!D29 -> 3 | E32: =("Glazing"&" + "&'Solar prot device - data'!E29) -> Glazing + Opaque - Dark | H32: =IF('Solar prot device - data'!F29<>"",'Solar prot device - data'!F29,"") -> 0 | I32: =IF('Solar prot device - data'!G29<>"",'Solar prot device - data'!G29,"") -> 0.3 | J32: =IF('Solar prot device - data'!H29<>"",'Solar prot device - data'!H29,"") -> 0.3 | K32: =IF('Solar prot device - data'!I29<>"",'Solar prot device - data'!I29,"") -> 0.7 | L32: =IF(AND($H32<>"",$I32<>""),$H32*BI$27+$K32*BI$32/BI$29+$H32*(1-BI$27)*BI$32/BI$28,"") -> 0.1481751825 | M32: =IF(AND($H32<>"",$I32<>""),$H32*BJ$27+$K32*BJ$32/BJ$29+$H32*(1-BJ$27)*BJ$32/BJ$28,"") -> 0.1085561497 | N32: =IF(AND($H32<>"",$I32<>""),$H32*BK$27+$K32*BK$32/BK$29+$H32*(1-BK$27)*BK$32/BK$28,"") -> 0.06176470588 | O32: =IF(AND($H32<>"",$I32<>""),$H32*BL$27+$K32*BL$32/BL$29+$H32*(1-BL$27)*BL$32/BL$28,"") -> 0.05789473684 | P32: =IF(AND($H32<>"",$I32<>""),BI$27*(1-BI$27*$I32-$K32*BI$33/BI$30),"") -> 0.536853352 | Q32: 0.539826383 | R32: 0.4696853846 | S32: 0.2813571704 | T32: 0.4173693182 | U32: 0.2883877966 | V32: 0.1387342857 | W32: 0.07761170732 | Y32: 0 | Z32: 0 | AA32: 0 | AB32: 0 | AC32: 0 | AD32: 0 | AE32: 0 | AF32: 0 | AH32: 0.1481751825 | AI32: 0.1085561497 | AJ32: 0.06176470588 | AK32: 0.05789473684 | AL32: 0.536853352 | AM32: 0.539826383 | AN32: 0.4696853846 | AO32: 0.2813571704 | AQ32: 0.1743237441 | AR32: 0.1428370391 | AS32: 0.1046859422 | AT32: 0.1809210526 | AU32: 0.6315921788 | AV32: 0.7102978723 | AW32: 0.7960769231 | AX32: 0.8792411576 | AY32: 0.4910227273 | AZ32: 0.3794576271 | BA32: 0.2351428571 | BB32: 0.2425365854 | BH32: G ext | BI32: =1/(1/BI$26+1/BI$28+1/BI$29) -> 2.116788321 | BJ32: =1/(1/BJ$26+1/BJ$28+1/BJ$29) -> 1.550802139 | BK32: =1/(1/BK$26+1/BK$28+1/BK$29) -> 0.8823529412 | BL32: =1/(1/BL$26+1/BL$28+1/BL$29) -> 0.8270676692
D33: ='Solar prot device - data'!D30 -> 4 | E33: =("Glazing"&" + "&'Solar prot device - data'!E30) -> Glazing + Opaque - Black | H33: =IF('Solar prot device - data'!F30<>"",'Solar prot device - data'!F30,"") -> 0 | I33: =IF('Solar prot device - data'!G30<>"",'Solar prot device - data'!G30,"") -> 0.1 | J33: =IF('Solar prot device - data'!H30<>"",'Solar prot device - data'!H30,"") -> 0.1 | K33: =IF('Solar prot device - data'!I30<>"",'Solar prot device - data'!I30,"") -> 0.9 | L33: 0.1905109489 | M33: 0.1395721925 | N33: 0.07941176471 | O33: 0.07443609023 | P33: 0.6538114525 | Q33: 0.6419482067 | R33: 0.5347669231 | S33: 0.2995735048 | T33: 0.5126079545 | U33: 0.3451688136 | V33: 0.1586257143 | W33: 0.08310634146 | Y33: 0 | Z33: 0 | AA33: 0 | AB33: 0 | AC33: 0 | AD33: 0 | AE33: 0 | AF33: 0 | AH33: 0.1905109489 | AI33: 0.1395721925 | AJ33: 0.07941176471 | AK33: 0.07443609023 | AL33: 0.6538114525 | AM33: 0.6419482067 | AN33: 0.5347669231 | AO33: 0.2995735048 | AQ33: 0.2241305281 | AR33: 0.1836476217 | AS33: 0.1345962114 | AT33: 0.232612782 | AU33: 0.7691899441 | AV33: 0.844668693 | AW33: 0.9063846154 | AX33: 0.9361672026 | AY33: 0.6030681818 | AZ33: 0.4541694915 | BA33: 0.2688571429 | BB33: 0.2597073171 | BH33: G int | BI33: =1/(1/BI$26+1/BI$30) -> 4.860335196 | BJ33: =1/(1/BJ$26+1/BJ$30) -> 2.6443769 | BK33: =1/(1/BK$26+1/BK$30) -> 1.153846154 | BL33: =1/(1/BL$26+1/BL$30) -> 1.061093248
D34: ='Solar prot device - data'!D31 -> 5 | E34: =("Glazing"&" + "&'Solar prot device - data'!E31) -> Glazing + Medium translucent - White | H34: =IF('Solar prot device - data'!F31<>"",'Solar prot device - data'!F31,"") -> 0.2 | I34: =IF('Solar prot device - data'!G31<>"",'Solar prot device - data'!G31,"") -> 0.6 | J34: =IF('Solar prot device - data'!H31<>"",'Solar prot device - data'!H31,"") -> 0.6 | K34: =IF('Solar prot device - data'!I31<>"",'Solar prot device - data'!I31,"") -> 0.2 | L34: 0.2250364964 | M34: 0.1979037433 | N34: 0.1501176471 | O34: 0.103037594 | P34: 0.3889581006 | Q34: 0.4000418237 | R34: 0.3766015385 | S34: 0.2562963344 | T34: 0.3324659091 | U34: 0.2805044068 | V34: 0.1931828571 | W34: 0.1161990244 | Y34: 0.1743697479 | Z34: 0.1506550218 | AA34: 0.1186440678 | AB34: 0.06537530266 | AC34: 0.1743697479 | AD34: 0.1506550218 | AE34: 0.1169451074 | AF34: 0.06994818653 | AH34: 0.05066674845 | AI34: 0.04724872148 | AJ34: 0.03147357926 | AK34: 0.03766229132 | AL34: 0.2145883527 | AM34: 0.2493868019 | AN34: 0.2596564311 | AO34: 0.1863481479 | AQ34: 0.2647488192 | AR34: 0.2603996623 | AS34: 0.2544366899 | AT34: 0.3219924812 | AU34: 0.4575977654 | AV34: 0.5263708207 | AW34: 0.6383076923 | AX34: 0.800926045 | AY34: 0.3911363636 | AZ34: 0.3690847458 | BA34: 0.3274285714 | BB34: 0.3631219512 | BH34: G between | BI34: =1/(1/BI$26+1/BI$31) -> 1.977272727 | BJ34: =1/(1/BJ$26+1/BJ$31) -> 1.474576271 | BK34: =1/(1/BK$26+1/BK$31) -> 0.8571428571 | BL34: =1/(1/BL$26+1/BL$31) -> 0.8048780488
D35: ='Solar prot device - data'!D32 -> 6 | E35: =("Glazing"&" + "&'Solar prot device - data'!E32) -> Glazing + Medium translucent - Pastel | H35: =IF('Solar prot device - data'!F32<>"",'Solar prot device - data'!F32,"") -> 0.2 | I35: =IF('Solar prot device - data'!G32<>"",'Solar prot device - data'!G32,"") -> 0.4 | J35: =IF('Solar prot device - data'!H32<>"",'Solar prot device - data'!H32,"") -> 0.4 | K35: =IF('Solar prot device - data'!I32<>"",'Solar prot device - data'!I32,"") -> 0.4 | L35: 0.2673722628 | M35: 0.2289197861 | N35: 0.1677647059 | O35: 0.1195789474 | P35: 0.5059162011 | Q35: 0.5021636474 | R35: 0.4416830769 | S35: 0.2745126688 | T35: 0.4277045455 | U35: 0.3372854237 | V35: 0.2130742857 | W35: 0.1216936585 | Y35: 0.1714876033 | Z35: 0.1461864407 | AA35: 0.1108597285 | AB35: 0.06108597285 | AC35: 0.1714876033 | AD35: 0.1461864407 | AE35: 0.1098654709 | AF35: 0.06367924528 | AH35: 0.09588465947 | AI35: 0.08273334542 | AJ35: 0.05690497738 | AK35: 0.05849297452 | AL35: 0.3344285978 | AM35: 0.3559772067 | AN35: 0.3318176061 | AO35: 0.2108334235 | AQ35: 0.3145556033 | AR35: 0.3012102449 | AS35: 0.2843469591 | AT35: 0.3736842105 | AU35: 0.5951955307 | AV35: 0.6607416413 | AW35: 0.7486153846 | AX35: 0.85785209 | AY35: 0.5031818182 | AZ35: 0.4437966102 | BA35: 0.3611428571 | BB35: 0.3802926829
D36: ='Solar prot device - data'!D33 -> 7 | E36: =("Glazing"&" + "&'Solar prot device - data'!E33) -> Glazing + Medium translucent - Dark | H36: =IF('Solar prot device - data'!F33<>"",'Solar prot device - data'!F33,"") -> 0.2 | I36: =IF('Solar prot device - data'!G33<>"",'Solar prot device - data'!G33,"") -> 0.2 | J36: =IF('Solar prot device - data'!H33<>"",'Solar prot device - data'!H33,"") -> 0.2 | K36: =IF('Solar prot device - data'!I33<>"",'Solar prot device - data'!I33,"") -> 0.6 | L36: 0.3097080292 | M36: 0.2599358289 | N36: 0.1854117647 | O36: 0.1361203008 | P36: 0.6228743017 | Q36: 0.6042854711 | R36: 0.5067646154 | S36: 0.2927290032 | T36: 0.5229431818 | U36: 0.3940664407 | V36: 0.2329657143 | W36: 0.1271882927 | Y36: 0.168699187 | Z36: 0.1419753086 | AA36: 0.1040339703 | AB36: 0.05732484076 | AC36: 0.168699187 | AD36: 0.1419753086 | AE36: 0.1035940803 | AF36: 0.05844155844 | AH36: 0.1410088422 | AI36: 0.1179605202 | AJ36: 0.08137779443 | AK36: 0.07879545999 | AL36: 0.4541751147 | AM36: 0.4623101625 | AN36: 0.403170535 | AO36: 0.2342874448 | AQ36: 0.3643623873 | AR36: 0.3420208275 | AS36: 0.3142572283 | AT36: 0.4253759398 | AU36: 0.7327932961 | AV36: 0.795112462 | AW36: 0.8589230769 | AX36: 0.914778135 | AY36: 0.6152272727 | AZ36: 0.5185084746 | BA36: 0.3948571429 | BB36: 0.3974634146
D37: ='Solar prot device - data'!D34 -> 8 | E37: =("Glazing"&" + "&'Solar prot device - data'!E34) -> Glazing + Medium translucent - Black | H37: =IF('Solar prot device - data'!F34<>"",'Solar prot device - data'!F34,"") -> 0.2 | I37: =IF('Solar prot device - data'!G34<>"",'Solar prot device - data'!G34,"") -> 0.1 | J37: =IF('Solar prot device - data'!H34<>"",'Solar prot device - data'!H34,"") -> 0.1 | K37: =IF('Solar prot device - data'!I34<>"",'Solar prot device - data'!I34,"") -> 0.7 | L37: 0.3308759124 | M37: 0.2754438503 | N37: 0.1942352941 | O37: 0.1443909774 | P37: 0.681353352 | Q37: 0.655346383 | R37: 0.5393053846 | S37: 0.3018371704 | T37: 0.5705625 | U37: 0.4224569492 | V37: 0.2429114286 | W37: 0.1299356098 | Y37: 0.1673387097 | Z37: 0.139959432 | AA37: 0.1009268795 | AB37: 0.05561277034 | AC37: 0.1673387097 | AD37: 0.139959432 | AE37: 0.1007194245 | AF37: 0.05613305613 | AH37: 0.1635372027 | AI37: 0.1354844182 | AJ37: 0.09330841461 | AK37: 0.0887782071 | AL37: 0.5140146423 | AM37: 0.5153869509 | AN37: 0.4385859602 | AO37: 0.2457041143 | AQ37: 0.3892657793 | AR37: 0.3624261188 | AS37: 0.3292123629 | AT37: 0.4512218045 | AU37: 0.8015921788 | AV37: 0.8622978723 | AW37: 0.9140769231 | AX37: 0.9432411576 | AY37: 0.67125 | AZ37: 0.5558644068 | BA37: 0.4117142857 | BB37: 0.4060487805
D38: ='Solar prot device - data'!D35 -> 9 | E38: =("Glazing"&" + "&'Solar prot device - data'!E35) -> Glazing + High translucent - White | H38: =IF('Solar prot device - data'!F35<>"",'Solar prot device - data'!F35,"") -> 0.4 | I38: =IF('Solar prot device - data'!G35<>"",'Solar prot device - data'!G35,"") -> 0.4 | J38: =IF('Solar prot device - data'!H35<>"",'Solar prot device - data'!H35,"") -> 0.4 | K38: =IF('Solar prot device - data'!I35<>"",'Solar prot device - data'!I35,"") -> 0.2 | L38: 0.4077372263 | M38: 0.3647914439 | N38: 0.2825882353 | O38: 0.1895338346 | P38: 0.5334581006 | Q38: 0.5155618237 | R38: 0.4462215385 | S38: 0.2767763344 | T38: =IF(AND($H38<>"",$I38<>""),BI$27*$H38+BI$27*($K38+(1-BI$27)*$I38)*BI$34/BI$31,"") -> 0.4856590909 | U38: =IF(AND($H38<>"",$I38<>""),BJ$27*$H38+BJ$27*($K38+(1-BJ$27)*$I38)*BJ$34/BJ$31,"") -> 0.4145735593 | V38: =IF(AND($H38<>"",$I38<>""),BK$27*$H38+BK$27*($K38+(1-BK$27)*$I38)*BK$34/BK$31,"") -> 0.29736 | W38: =IF(AND($H38<>"",$I38<>""),BL$27*$H38+BL$27*($K38+(1-BL$27)*$I38)*BL$34/BL$31,"") -> 0.1685229268 | Y38: 0.3429752066 | Z38: 0.2923728814 | AA38: 0.221719457 | AB38: 0.1221719457 | AC38: 0.3429752066 | AD38: 0.2923728814 | AE38: 0.2197309417 | AF38: 0.1273584906 | AH38: 0.06476201967 | AI38: 0.07241856249 | AJ38: 0.06086877828 | AK38: 0.06736188889 | AL38: 0.1904828939 | AM38: 0.2231889424 | AN38: 0.2264905968 | AO38: 0.1494178438 | AQ38: 0.4796908544 | AR38: 0.4799887419 | AS38: 0.4789631107 | AT38: 0.5922932331 | AU38: 0.6275977654 | AV38: 0.6783708207 | AW38: 0.7563076923 | AX38: 0.864926045 | AY38: 0.5713636364 | AZ38: 0.5454915254 | BA38: 0.504 | BB38: 0.5266341463
D39: ='Solar prot device - data'!D36 -> 10 | E39: =("Glazing"&" + "&'Solar prot device - data'!E36) -> Glazing + High translucent - Pastel | H39: =IF('Solar prot device - data'!F36<>"",'Solar prot device - data'!F36,"") -> 0.4 | I39: =IF('Solar prot device - data'!G36<>"",'Solar prot device - data'!G36,"") -> 0.3 | J39: =IF('Solar prot device - data'!H36<>"",'Solar prot device - data'!H36,"") -> 0.3 | K39: =IF('Solar prot device - data'!I36<>"",'Solar prot device - data'!I36,"") -> 0.3 | L39: 0.4289051095 | M39: 0.3802994652 | N39: 0.2914117647 | O39: 0.1978045113 | P39: 0.5919371508 | Q39: 0.5666227356 | R39: 0.4787623077 | S39: 0.2858845016 | T39: =IF(AND($H39<>"",$I39<>""),BI$27*$H39+BI$27*($K39+(1-BI$27)*$I39)*BI$34/BI$31,"") -> 0.5332784091 | U39: =IF(AND($H39<>"",$I39<>""),BJ$27*$H39+BJ$27*($K39+(1-BJ$27)*$I39)*BJ$34/BJ$31,"") -> 0.4429640678 | V39: =IF(AND($H39<>"",$I39<>""),BK$27*$H39+BK$27*($K39+(1-BK$27)*$I39)*BK$34/BK$31,"") -> 0.3073057143 | W39: =IF(AND($H39<>"",$I39<>""),BL$27*$H39+BL$27*($K39+(1-BL$27)*$I39)*BL$34/BL$31,"") -> 0.1712702439 | Y39: 0.3401639344 | Z39: 0.2881002088 | AA39: 0.2146768894 | AB39: 0.1182913472 | AC39: 0.3401639344 | AD39: 0.2881002088 | AE39: 0.2132752992 | AF39: 0.1218961625 | AH39: 0.08874117506 | AI39: 0.09219925647 | AJ39: 0.07673487533 | AK39: 0.07951316407 | AL39: 0.2517732164 | AM39: 0.2785225268 | AN39: 0.2654870085 | AO39: 0.1639883391 | AQ39: 0.5045942465 | AR39: 0.5003940332 | AS39: 0.4939182453 | AT39: 0.6181390977 | AU39: 0.696396648 | AV39: 0.745556231 | AW39: 0.8114615385 | AX39: 0.8933890675 | AY39: 0.6273863636 | AZ39: 0.5828474576 | BA39: 0.5208571429 | BB39: 0.5352195122
D40: ='Solar prot device - data'!D37 -> 11 | E40: =("Glazing"&" + "&'Solar prot device - data'!E37) -> Glazing + High translucent - Dark | H40: =IF('Solar prot device - data'!F37<>"",'Solar prot device - data'!F37,"") -> 0.4 | I40: =IF('Solar prot device - data'!G37<>"",'Solar prot device - data'!G37,"") -> 0.2 | J40: =IF('Solar prot device - data'!H37<>"",'Solar prot device - data'!H37,"") -> 0.2 | K40: =IF('Solar prot device - data'!I37<>"",'Solar prot device - data'!I37,"") -> 0.4 | L40: 0.4500729927 | M40: 0.3958074866 | N40: 0.3002352941 | O40: 0.206075188 | P40: 0.6504162011 | Q40: 0.6176836474 | R40: 0.5113030769 | S40: 0.2949926688 | T40: 0.5808977273 | U40: 0.4713545763 | V40: 0.3172514286 | W40: 0.174017561 | Y40: 0.337398374 | Z40: 0.2839506173 | AA40: 0.2080679406 | AB40: 0.1146496815 | AC40: 0.337398374 | AD40: 0.2839506173 | AE40: 0.2071881607 | AF40: 0.1168831169 | AH40: 0.1126746187 | AI40: 0.1118568693 | AJ40: 0.09216735357 | AK40: 0.09142550644 | AL40: 0.3130178271 | AM40: 0.3337330301 | AN40: 0.3041149162 | AO40: 0.1781095519 | AQ40: 0.5294976385 | AR40: 0.5207993245 | AS40: 0.5088733799 | AT40: 0.6439849624 | AU40: 0.7651955307 | AV40: 0.8127416413 | AW40: 0.8666153846 | AX40: 0.92185209 | AY40: 0.6834090909 | AZ40: 0.6202033898 | BA40: 0.5377142857 | BB40: 0.543804878
D41: ='Solar prot device - data'!D38 -> 12 | E41: =("Glazing"&" + "&'Solar prot device - data'!E38) -> Glazing + High translucent - Black | H41: =IF('Solar prot device - data'!F38<>"",'Solar prot device - data'!F38,"") -> 0.4 | I41: =IF('Solar prot device - data'!G38<>"",'Solar prot device - data'!G38,"") -> 0.1 | J41: =IF('Solar prot device - data'!H38<>"",'Solar prot device - data'!H38,"") -> 0.1 | K41: =IF('Solar prot device - data'!I38<>"",'Solar prot device - data'!I38,"") -> 0.5 | L41: 0.4712408759 | M41: 0.411315508 | N41: 0.3090588235 | O41: 0.2143458647 | P41: 0.7088952514 | Q41: 0.6687445593 | R41: 0.5438438462 | S41: 0.304100836 | T41: 0.6285170455 | U41: 0.4997450847 | V41: 0.3271971429 | W41: 0.176764878 | Y41: 0.3346774194 | Z41: 0.2799188641 | AA41: 0.201853759 | AB41: 0.1112255407 | AC41: 0.3346774194 | AD41: 0.2799188641 | AE41: 0.2014388489 | AF41: 0.1122661123 | AH41: 0.1365634566 | AI41: 0.1313966439 | AJ41: 0.1072050645 | AK41: 0.103120324 | AL41: 0.374217832 | AM41: 0.3888256952 | AN41: 0.3424049972 | AO41: 0.1918347237 | AQ41: 0.5544010305 | AR41: 0.5412046158 | AS41: 0.5238285145 | AT41: 0.6698308271 | AU41: 0.8339944134 | AV41: 0.8799270517 | AW41: 0.9217692308 | AX41: 0.9503151125 | AY41: 0.7394318182 | AZ41: 0.657559322 | BA41: 0.5545714286 | BB41: 0.5523902439
D42: ='Solar prot device - data'!D39 -> 13 | E42: =("Glazing"&" + "&'Solar prot device - data'!E39) -> Glazing + | H42: =IF('Solar prot device - data'!F39<>"",'Solar prot device - data'!F39,"") ->  | I42: =IF('Solar prot device - data'!G39<>"",'Solar prot device - data'!G39,"") ->  | J42: =IF('Solar prot device - data'!H39<>"",'Solar prot device - data'!H39,"") ->  | K42: =IF('Solar prot device - data'!I39<>"",'Solar prot device - data'!I39,"") -> 
D43: ='Solar prot device - data'!D40 -> 14 | E43: =("Glazing"&" + "&'Solar prot device - data'!E40) -> Glazing + | H43: =IF('Solar prot device - data'!F40<>"",'Solar prot device - data'!F40,"") ->  | I43: =IF('Solar prot device - data'!G40<>"",'Solar prot device - data'!G40,"") ->  | J43: =IF('Solar prot device - data'!H40<>"",'Solar prot device - data'!H40,"") ->  | K43: =IF('Solar prot device - data'!I40<>"",'Solar prot device - data'!I40,"") -> 
D44: ='Solar prot device - data'!D41 -> 15 | E44: =("Glazing"&" + "&'Solar prot device - data'!E41) -> Glazing + | H44: =IF('Solar prot device - data'!F41<>"",'Solar prot device - data'!F41,"") ->  | I44: =IF('Solar prot device - data'!G41<>"",'Solar prot device - data'!G41,"") ->  | J44: =IF('Solar prot device - data'!H41<>"",'Solar prot device - data'!H41,"") ->  | K44: =IF('Solar prot device - data'!I41<>"",'Solar prot device - data'!I41,"") ->  | R44: =IF(AND($H44<>"",$I44<>""),BK$27*(1-BK$27*$I44-$K44*BK$33/BK$30),"") ->  | S44: =IF(AND($H44<>"",$I44<>""),BL$27*(1-BL$27*$I44-$K44*BL$33/BL$30),"") -> 
D45: ='Solar prot device - data'!D42 -> 16 | E45: =("Glazing"&" + "&'Solar prot device - data'!E42) -> Glazing + | H45: =IF('Solar prot device - data'!F42<>"",'Solar prot device - data'!F42,"") ->  | I45: =IF('Solar prot device - data'!G42<>"",'Solar prot device - data'!G42,"") ->  | J45: =IF('Solar prot device - data'!H42<>"",'Solar prot device - data'!H42,"") ->  | K45: =IF('Solar prot device - data'!I42<>"",'Solar prot device - data'!I42,"") -> 
D46: ='Solar prot device - data'!D43 -> 17 | E46: =("Glazing"&" + "&'Solar prot device - data'!E43) -> Glazing + | H46: =IF('Solar prot device - data'!F43<>"",'Solar prot device - data'!F43,"") ->  | I46: =IF('Solar prot device - data'!G43<>"",'Solar prot device - data'!G43,"") ->  | J46: =IF('Solar prot device - data'!H43<>"",'Solar prot device - data'!H43,"") ->  | K46: =IF('Solar prot device - data'!I43<>"",'Solar prot device - data'!I43,"") -> 
D47: ='Solar prot device - data'!D44 -> 18 | E47: =("Glazing"&" + "&'Solar prot device - data'!E44) -> Glazing + | H47: =IF('Solar prot device - data'!F44<>"",'Solar prot device - data'!F44,"") ->  | I47: =IF('Solar prot device - data'!G44<>"",'Solar prot device - data'!G44,"") ->  | J47: =IF('Solar prot device - data'!H44<>"",'Solar prot device - data'!H44,"") ->  | K47: =IF('Solar prot device - data'!I44<>"",'Solar prot device - data'!I44,"") -> 
D48: ='Solar prot device - data'!D45 -> 19 | E48: =("Glazing"&" + "&'Solar prot device - data'!E45) -> Glazing + | H48: =IF('Solar prot device - data'!F45<>"",'Solar prot device - data'!F45,"") ->  | I48: =IF('Solar prot device - data'!G45<>"",'Solar prot device - data'!G45,"") ->  | J48: =IF('Solar prot device - data'!H45<>"",'Solar prot device - data'!H45,"") ->  | K48: =IF('Solar prot device - data'!I45<>"",'Solar prot device - data'!I45,"") -> 
D49: ='Solar prot device - data'!D46 -> 20 | E49: =("Glazing"&" + "&'Solar prot device - data'!E46) -> Glazing + | H49: =IF('Solar prot device - data'!F46<>"",'Solar prot device - data'!F46,"") ->  | I49: =IF('Solar prot device - data'!G46<>"",'Solar prot device - data'!G46,"") ->  | J49: =IF('Solar prot device - data'!H46<>"",'Solar prot device - data'!H46,"") ->  | K49: =IF('Solar prot device - data'!I46<>"",'Solar prot device - data'!I46,"") -> 
D50: ='Solar prot device - data'!D47 -> 21 | E50: =("Glazing"&" + "&'Solar prot device - data'!E47) -> Glazing + | H50: =IF('Solar prot device - data'!F47<>"",'Solar prot device - data'!F47,"") ->  | I50: =IF('Solar prot device - data'!G47<>"",'Solar prot device - data'!G47,"") ->  | J50: =IF('Solar prot device - data'!H47<>"",'Solar prot device - data'!H47,"") ->  | K50: =IF('Solar prot device - data'!I47<>"",'Solar prot device - data'!I47,"") -> 
D51: ='Solar prot device - data'!D48 -> 22 | E51: =("Glazing"&" + "&'Solar prot device - data'!E48) -> Glazing + | H51: =IF('Solar prot device - data'!F48<>"",'Solar prot device - data'!F48,"") ->  | I51: =IF('Solar prot device - data'!G48<>"",'Solar prot device - data'!G48,"") ->  | J51: =IF('Solar prot device - data'!H48<>"",'Solar prot device - data'!H48,"") ->  | K51: =IF('Solar prot device - data'!I48<>"",'Solar prot device - data'!I48,"") -> 
D52: ='Solar prot device - data'!D49 -> 23 | E52: =("Glazing"&" + "&'Solar prot device - data'!E49) -> Glazing + | H52: =IF('Solar prot device - data'!F49<>"",'Solar prot device - data'!F49,"") ->  | I52: =IF('Solar prot device - data'!G49<>"",'Solar prot device - data'!G49,"") ->  | J52: =IF('Solar prot device - data'!H49<>"",'Solar prot device - data'!H49,"") ->  | K52: =IF('Solar prot device - data'!I49<>"",'Solar prot device - data'!I49,"") ->  | T52: =IF(AND($H52<>"",$I52<>""),BI$27*$H52+BI$27*($K52+(1-BI$27)*$I52)*BI$34/BI$31,"") ->  | U52: =IF(AND($H52<>"",$I52<>""),BJ$27*$H52+BJ$27*($K52+(1-BJ$27)*$I52)*BJ$34/BJ$31,"") ->  | V52: =IF(AND($H52<>"",$I52<>""),BK$27*$H52+BK$27*($K52+(1-BK$27)*$I52)*BK$34/BK$31,"") ->  | W52: =IF(AND($H52<>"",$I52<>""),BL$27*$H52+BL$27*($K52+(1-BL$27)*$I52)*BL$34/BL$31,"") -> 
D53: ='Solar prot device - data'!D50 -> 24 | E53: =("Glazing"&" + "&'Solar prot device - data'!E50) -> Glazing + | H53: =IF('Solar prot device - data'!F50<>"",'Solar prot device - data'!F50,"") ->  | I53: =IF('Solar prot device - data'!G50<>"",'Solar prot device - data'!G50,"") ->  | J53: =IF('Solar prot device - data'!H50<>"",'Solar prot device - data'!H50,"") ->  | K53: =IF('Solar prot device - data'!I50<>"",'Solar prot device - data'!I50,"") -> 
D54: ='Solar prot device - data'!D51 -> 25 | E54: =("Glazing"&" + "&'Solar prot device - data'!E51) -> Glazing + | H54: =IF('Solar prot device - data'!F51<>"",'Solar prot device - data'!F51,"") ->  | I54: =IF('Solar prot device - data'!G51<>"",'Solar prot device - data'!G51,"") ->  | J54: =IF('Solar prot device - data'!H51<>"",'Solar prot device - data'!H51,"") ->  | K54: =IF('Solar prot device - data'!I51<>"",'Solar prot device - data'!I51,"") -> 
D55: ='Solar prot device - data'!D52 -> 26 | E55: =("Glazing"&" + "&'Solar prot device - data'!E52) -> Glazing + | H55: =IF('Solar prot device - data'!F52<>"",'Solar prot device - data'!F52,"") ->  | I55: =IF('Solar prot device - data'!G52<>"",'Solar prot device - data'!G52,"") ->  | J55: =IF('Solar prot device - data'!H52<>"",'Solar prot device - data'!H52,"") ->  | K55: =IF('Solar prot device - data'!I52<>"",'Solar prot device - data'!I52,"") -> 
D56: ='Solar prot device - data'!D53 -> 27 | E56: =("Glazing"&" + "&'Solar prot device - data'!E53) -> Glazing + | H56: =IF('Solar prot device - data'!F53<>"",'Solar prot device - data'!F53,"") ->  | I56: =IF('Solar prot device - data'!G53<>"",'Solar prot device - data'!G53,"") ->  | J56: =IF('Solar prot device - data'!H53<>"",'Solar prot device - data'!H53,"") ->  | K56: =IF('Solar prot device - data'!I53<>"",'Solar prot device - data'!I53,"") -> 
D57: ='Solar prot device - data'!D54 -> 28 | E57: =("Glazing"&" + "&'Solar prot device - data'!E54) -> Glazing + | H57: =IF('Solar prot device - data'!F54<>"",'Solar prot device - data'!F54,"") ->  | I57: =IF('Solar prot device - data'!G54<>"",'Solar prot device - data'!G54,"") ->  | J57: =IF('Solar prot device - data'!H54<>"",'Solar prot device - data'!H54,"") ->  | K57: =IF('Solar prot device - data'!I54<>"",'Solar prot device - data'!I54,"") -> 
D58: ='Solar prot device - data'!D55 -> 29 | E58: =("Glazing"&" + "&'Solar prot device - data'!E55) -> Glazing + | H58: =IF('Solar prot device - data'!F55<>"",'Solar prot device - data'!F55,"") ->  | I58: =IF('Solar prot device - data'!G55<>"",'Solar prot device - data'!G55,"") ->  | J58: =IF('Solar prot device - data'!H55<>"",'Solar prot device - data'!H55,"") ->  | K58: =IF('Solar prot device - data'!I55<>"",'Solar prot device - data'!I55,"") -> 
D59: ='Solar prot device - data'!D56 -> 30 | E59: =("Glazing"&" + "&'Solar prot device - data'!E56) -> Glazing + | H59: =IF('Solar prot device - data'!F56<>"",'Solar prot device - data'!F56,"") ->  | I59: =IF('Solar prot device - data'!G56<>"",'Solar prot device - data'!G56,"") ->  | J59: =IF('Solar prot device - data'!H56<>"",'Solar prot device - data'!H56,"") ->  | K59: =IF('Solar prot device - data'!I56<>"",'Solar prot device - data'!I56,"") -> 
D60: ='Solar prot device - data'!D57 -> 31 | E60: =("Glazing"&" + "&'Solar prot device - data'!E57) -> Glazing + | H60: =IF('Solar prot device - data'!F57<>"",'Solar prot device - data'!F57,"") ->  | I60: =IF('Solar prot device - data'!G57<>"",'Solar prot device - data'!G57,"") ->  | J60: =IF('Solar prot device - data'!H57<>"",'Solar prot device - data'!H57,"") ->  | K60: =IF('Solar prot device - data'!I57<>"",'Solar prot device - data'!I57,"") -> 
D61: ='Solar prot device - data'!D58 -> 32 | E61: =("Glazing"&" + "&'Solar prot device - data'!E58) -> Glazing + | H61: =IF('Solar prot device - data'!F58<>"",'Solar prot device - data'!F58,"") ->  | I61: =IF('Solar prot device - data'!G58<>"",'Solar prot device - data'!G58,"") ->  | J61: =IF('Solar prot device - data'!H58<>"",'Solar prot device - data'!H58,"") ->  | K61: =IF('Solar prot device - data'!I58<>"",'Solar prot device - data'!I58,"") -> 
D62: ='Solar prot device - data'!D59 -> 33 | E62: =("Glazing"&" + "&'Solar prot device - data'!E59) -> Glazing + | H62: =IF('Solar prot device - data'!F59<>"",'Solar prot device - data'!F59,"") ->  | I62: =IF('Solar prot device - data'!G59<>"",'Solar prot device - data'!G59,"") ->  | J62: =IF('Solar prot device - data'!H59<>"",'Solar prot device - data'!H59,"") ->  | K62: =IF('Solar prot device - data'!I59<>"",'Solar prot device - data'!I59,"") -> 
D63: ='Solar prot device - data'!D60 -> 34 | E63: =("Glazing"&" + "&'Solar prot device - data'!E60) -> Glazing + | H63: =IF('Solar prot device - data'!F60<>"",'Solar prot device - data'!F60,"") ->  | I63: =IF('Solar prot device - data'!G60<>"",'Solar prot device - data'!G60,"") ->  | J63: =IF('Solar prot device - data'!H60<>"",'Solar prot device - data'!H60,"") ->  | K63: =IF('Solar prot device - data'!I60<>"",'Solar prot device - data'!I60,"") -> 
D64: ='Solar prot device - data'!D61 -> 35 | E64: =("Glazing"&" + "&'Solar prot device - data'!E61) -> Glazing + | H64: =IF('Solar prot device - data'!F61<>"",'Solar prot device - data'!F61,"") ->  | I64: =IF('Solar prot device - data'!G61<>"",'Solar prot device - data'!G61,"") ->  | J64: =IF('Solar prot device - data'!H61<>"",'Solar prot device - data'!H61,"") ->  | K64: =IF('Solar prot device - data'!I61<>"",'Solar prot device - data'!I61,"") -> 
D65: ='Solar prot device - data'!D62 -> 36 | E65: =("Glazing"&" + "&'Solar prot device - data'!E62) -> Glazing + | H65: =IF('Solar prot device - data'!F62<>"",'Solar prot device - data'!F62,"") ->  | I65: =IF('Solar prot device - data'!G62<>"",'Solar prot device - data'!G62,"") ->  | J65: =IF('Solar prot device - data'!H62<>"",'Solar prot device - data'!H62,"") ->  | K65: =IF('Solar prot device - data'!I62<>"",'Solar prot device - data'!I62,"") -> 
D66: ='Solar prot device - data'!D63 -> 37 | E66: =("Glazing"&" + "&'Solar prot device - data'!E63) -> Glazing + | H66: =IF('Solar prot device - data'!F63<>"",'Solar prot device - data'!F63,"") ->  | I66: =IF('Solar prot device - data'!G63<>"",'Solar prot device - data'!G63,"") ->  | J66: =IF('Solar prot device - data'!H63<>"",'Solar prot device - data'!H63,"") ->  | K66: =IF('Solar prot device - data'!I63<>"",'Solar prot device - data'!I63,"") -> 
D67: ='Solar prot device - data'!D64 -> 38 | E67: =("Glazing"&" + "&'Solar prot device - data'!E64) -> Glazing + | H67: =IF('Solar prot device - data'!F64<>"",'Solar prot device - data'!F64,"") ->  | I67: =IF('Solar prot device - data'!G64<>"",'Solar prot device - data'!G64,"") ->  | J67: =IF('Solar prot device - data'!H64<>"",'Solar prot device - data'!H64,"") ->  | K67: =IF('Solar prot device - data'!I64<>"",'Solar prot device - data'!I64,"") -> 
D68: ='Solar prot device - data'!D65 -> 39 | E68: =("Glazing"&" + "&'Solar prot device - data'!E65) -> Glazing + | H68: =IF('Solar prot device - data'!F65<>"",'Solar prot device - data'!F65,"") ->  | I68: =IF('Solar prot device - data'!G65<>"",'Solar prot device - data'!G65,"") ->  | J68: =IF('Solar prot device - data'!H65<>"",'Solar prot device - data'!H65,"") ->  | K68: =IF('Solar prot device - data'!I65<>"",'Solar prot device - data'!I65,"") -> 
D69: ='Solar prot device - data'!D66 -> 40 | E69: =("Glazing"&" + "&'Solar prot device - data'!E66) -> Glazing + | H69: =IF('Solar prot device - data'!F66<>"",'Solar prot device - data'!F66,"") ->  | I69: =IF('Solar prot device - data'!G66<>"",'Solar prot device - data'!G66,"") ->  | J69: =IF('Solar prot device - data'!H66<>"",'Solar prot device - data'!H66,"") ->  | K69: =IF('Solar prot device - data'!I66<>"",'Solar prot device - data'!I66,"") -> 
D70: ='Solar prot device - data'!D67 -> 41 | E70: =("Glazing"&" + "&'Solar prot device - data'!E67) -> Glazing + | H70: =IF('Solar prot device - data'!F67<>"",'Solar prot device - data'!F67,"") ->  | I70: =IF('Solar prot device - data'!G67<>"",'Solar prot device - data'!G67,"") ->  | J70: =IF('Solar prot device - data'!H67<>"",'Solar prot device - data'!H67,"") ->  | K70: =IF('Solar prot device - data'!I67<>"",'Solar prot device - data'!I67,"") -> 
D71: ='Solar prot device - data'!D68 -> 42 | E71: =("Glazing"&" + "&'Solar prot device - data'!E68) -> Glazing + | H71: =IF('Solar prot device - data'!F68<>"",'Solar prot device - data'!F68,"") ->  | I71: =IF('Solar prot device - data'!G68<>"",'Solar prot device - data'!G68,"") ->  | J71: =IF('Solar prot device - data'!H68<>"",'Solar prot device - data'!H68,"") ->  | K71: =IF('Solar prot device - data'!I68<>"",'Solar prot device - data'!I68,"") -> 
D72: ='Solar prot device - data'!D69 -> 43 | E72: =("Glazing"&" + "&'Solar prot device - data'!E69) -> Glazing + | H72: =IF('Solar prot device - data'!F69<>"",'Solar prot device - data'!F69,"") ->  | I72: =IF('Solar prot device - data'!G69<>"",'Solar prot device - data'!G69,"") ->  | J72: =IF('Solar prot device - data'!H69<>"",'Solar prot device - data'!H69,"") ->  | K72: =IF('Solar prot device - data'!I69<>"",'Solar prot device - data'!I69,"") -> 
D73: ='Solar prot device - data'!D70 -> 44 | E73: =("Glazing"&" + "&'Solar prot device - data'!E70) -> Glazing + | H73: =IF('Solar prot device - data'!F70<>"",'Solar prot device - data'!F70,"") ->  | I73: =IF('Solar prot device - data'!G70<>"",'Solar prot device - data'!G70,"") ->  | J73: =IF('Solar prot device - data'!H70<>"",'Solar prot device - data'!H70,"") ->  | K73: =IF('Solar prot device - data'!I70<>"",'Solar prot device - data'!I70,"") -> 
D74: ='Solar prot device - data'!D71 -> 45 | E74: =("Glazing"&" + "&'Solar prot device - data'!E71) -> Glazing + | H74: =IF('Solar prot device - data'!F71<>"",'Solar prot device - data'!F71,"") ->  | I74: =IF('Solar prot device - data'!G71<>"",'Solar prot device - data'!G71,"") ->  | J74: =IF('Solar prot device - data'!H71<>"",'Solar prot device - data'!H71,"") ->  | K74: =IF('Solar prot device - data'!I71<>"",'Solar prot device - data'!I71,"") -> 
D75: ='Solar prot device - data'!D72 -> 46 | E75: =("Glazing"&" + "&'Solar prot device - data'!E72) -> Glazing + | H75: =IF('Solar prot device - data'!F72<>"",'Solar prot device - data'!F72,"") ->  | I75: =IF('Solar prot device - data'!G72<>"",'Solar prot device - data'!G72,"") ->  | J75: =IF('Solar prot device - data'!H72<>"",'Solar prot device - data'!H72,"") ->  | K75: =IF('Solar prot device - data'!I72<>"",'Solar prot device - data'!I72,"") -> 
D76: ='Solar prot device - data'!D73 -> 47 | E76: =("Glazing"&" + "&'Solar prot device - data'!E73) -> Glazing + | H76: =IF('Solar prot device - data'!F73<>"",'Solar prot device - data'!F73,"") ->  | I76: =IF('Solar prot device - data'!G73<>"",'Solar prot device - data'!G73,"") ->  | J76: =IF('Solar prot device - data'!H73<>"",'Solar prot device - data'!H73,"") ->  | K76: =IF('Solar prot device - data'!I73<>"",'Solar prot device - data'!I73,"") -> 
D77: ='Solar prot device - data'!D74 -> 48 | E77: =("Glazing"&" + "&'Solar prot device - data'!E74) -> Glazing + | H77: =IF('Solar prot device - data'!F74<>"",'Solar prot device - data'!F74,"") ->  | I77: =IF('Solar prot device - data'!G74<>"",'Solar prot device - data'!G74,"") ->  | J77: =IF('Solar prot device - data'!H74<>"",'Solar prot device - data'!H74,"") ->  | K77: =IF('Solar prot device - data'!I74<>"",'Solar prot device - data'!I74,"") -> 
D78: ='Solar prot device - data'!D75 -> 49 | E78: =("Glazing"&" + "&'Solar prot device - data'!E75) -> Glazing + | H78: =IF('Solar prot device - data'!F75<>"",'Solar prot device - data'!F75,"") ->  | I78: =IF('Solar prot device - data'!G75<>"",'Solar prot device - data'!G75,"") ->  | J78: =IF('Solar prot device - data'!H75<>"",'Solar prot device - data'!H75,"") ->  | K78: =IF('Solar prot device - data'!I75<>"",'Solar prot device - data'!I75,"") -> 
D79: ='Solar prot device - data'!D76 -> 50 | E79: =("Glazing"&" + "&'Solar prot device - data'!E76) -> Glazing + | H79: =IF('Solar prot device - data'!F76<>"",'Solar prot device - data'!F76,"") ->  | I79: =IF('Solar prot device - data'!G76<>"",'Solar prot device - data'!G76,"") ->  | J79: =IF('Solar prot device - data'!H76<>"",'Solar prot device - data'!H76,"") ->  | K79: =IF('Solar prot device - data'!I76<>"",'Solar prot device - data'!I76,"") -> 
D80: ='Solar prot device - data'!D77 -> 51 | E80: =("Glazing"&" + "&'Solar prot device - data'!E77) -> Glazing + | H80: =IF('Solar prot device - data'!F77<>"",'Solar prot device - data'!F77,"") ->  | I80: =IF('Solar prot device - data'!G77<>"",'Solar prot device - data'!G77,"") ->  | J80: =IF('Solar prot device - data'!H77<>"",'Solar prot device - data'!H77,"") ->  | K80: =IF('Solar prot device - data'!I77<>"",'Solar prot device - data'!I77,"") -> 
D81: ='Solar prot device - data'!D78 -> 52 | E81: =("Glazing"&" + "&'Solar prot device - data'!E78) -> Glazing + | H81: =IF('Solar prot device - data'!F78<>"",'Solar prot device - data'!F78,"") ->  | I81: =IF('Solar prot device - data'!G78<>"",'Solar prot device - data'!G78,"") ->  | J81: =IF('Solar prot device - data'!H78<>"",'Solar prot device - data'!H78,"") ->  | K81: =IF('Solar prot device - data'!I78<>"",'Solar prot device - data'!I78,"") -> 
D82: ='Solar prot device - data'!D79 -> 53 | E82: =("Glazing"&" + "&'Solar prot device - data'!E79) -> Glazing + | H82: =IF('Solar prot device - data'!F79<>"",'Solar prot device - data'!F79,"") ->  | I82: =IF('Solar prot device - data'!G79<>"",'Solar prot device - data'!G79,"") ->  | J82: =IF('Solar prot device - data'!H79<>"",'Solar prot device - data'!H79,"") ->  | K82: =IF('Solar prot device - data'!I79<>"",'Solar prot device - data'!I79,"") -> 
D83: ='Solar prot device - data'!D80 -> 54 | E83: =("Glazing"&" + "&'Solar prot device - data'!E80) -> Glazing + | H83: =IF('Solar prot device - data'!F80<>"",'Solar prot device - data'!F80,"") ->  | I83: =IF('Solar prot device - data'!G80<>"",'Solar prot device - data'!G80,"") ->  | J83: =IF('Solar prot device - data'!H80<>"",'Solar prot device - data'!H80,"") ->  | K83: =IF('Solar prot device - data'!I80<>"",'Solar prot device - data'!I80,"") -> 
D84: ='Solar prot device - data'!D81 -> 55 | E84: =("Glazing"&" + "&'Solar prot device - data'!E81) -> Glazing + | H84: =IF('Solar prot device - data'!F81<>"",'Solar prot device - data'!F81,"") ->  | I84: =IF('Solar prot device - data'!G81<>"",'Solar prot device - data'!G81,"") ->  | J84: =IF('Solar prot device - data'!H81<>"",'Solar prot device - data'!H81,"") ->  | K84: =IF('Solar prot device - data'!I81<>"",'Solar prot device - data'!I81,"") -> 
D85: ='Solar prot device - data'!D82 -> 56 | E85: =("Glazing"&" + "&'Solar prot device - data'!E82) -> Glazing + | H85: =IF('Solar prot device - data'!F82<>"",'Solar prot device - data'!F82,"") ->  | I85: =IF('Solar prot device - data'!G82<>"",'Solar prot device - data'!G82,"") ->  | J85: =IF('Solar prot device - data'!H82<>"",'Solar prot device - data'!H82,"") ->  | K85: =IF('Solar prot device - data'!I82<>"",'Solar prot device - data'!I82,"") -> 
D86: ='Solar prot device - data'!D83 -> 57 | E86: =("Glazing"&" + "&'Solar prot device - data'!E83) -> Glazing + | H86: =IF('Solar prot device - data'!F83<>"",'Solar prot device - data'!F83,"") ->  | I86: =IF('Solar prot device - data'!G83<>"",'Solar prot device - data'!G83,"") ->  | J86: =IF('Solar prot device - data'!H83<>"",'Solar prot device - data'!H83,"") ->  | K86: =IF('Solar prot device - data'!I83<>"",'Solar prot device - data'!I83,"") -> 
D87: ='Solar prot device - data'!D84 -> 58 | E87: =("Glazing"&" + "&'Solar prot device - data'!E84) -> Glazing + | H87: =IF('Solar prot device - data'!F84<>"",'Solar prot device - data'!F84,"") ->  | I87: =IF('Solar prot device - data'!G84<>"",'Solar prot device - data'!G84,"") ->  | J87: =IF('Solar prot device - data'!H84<>"",'Solar prot device - data'!H84,"") ->  | K87: =IF('Solar prot device - data'!I84<>"",'Solar prot device - data'!I84,"") -> 
D88: ='Solar prot device - data'!D85 -> 59 | E88: =("Glazing"&" + "&'Solar prot device - data'!E85) -> Glazing + | H88: =IF('Solar prot device - data'!F85<>"",'Solar prot device - data'!F85,"") ->  | I88: =IF('Solar prot device - data'!G85<>"",'Solar prot device - data'!G85,"") ->  | J88: =IF('Solar prot device - data'!H85<>"",'Solar prot device - data'!H85,"") ->  | K88: =IF('Solar prot device - data'!I85<>"",'Solar prot device - data'!I85,"") -> 
D89: ='Solar prot device - data'!D86 -> 60 | E89: =("Glazing"&" + "&'Solar prot device - data'!E86) -> Glazing + | H89: =IF('Solar prot device - data'!F86<>"",'Solar prot device - data'!F86,"") ->  | I89: =IF('Solar prot device - data'!G86<>"",'Solar prot device - data'!G86,"") ->  | J89: =IF('Solar prot device - data'!H86<>"",'Solar prot device - data'!H86,"") ->  | K89: =IF('Solar prot device - data'!I86<>"",'Solar prot device - data'!I86,"") -> 
D90: ='Solar prot device - data'!D87 -> 61 | E90: =("Glazing"&" + "&'Solar prot device - data'!E87) -> Glazing + | H90: =IF('Solar prot device - data'!F87<>"",'Solar prot device - data'!F87,"") ->  | I90: =IF('Solar prot device - data'!G87<>"",'Solar prot device - data'!G87,"") ->  | J90: =IF('Solar prot device - data'!H87<>"",'Solar prot device - data'!H87,"") ->  | K90: =IF('Solar prot device - data'!I87<>"",'Solar prot device - data'!I87,"") -> 
D91: ='Solar prot device - data'!D88 -> 62 | E91: =("Glazing"&" + "&'Solar prot device - data'!E88) -> Glazing + | H91: =IF('Solar prot device - data'!F88<>"",'Solar prot device - data'!F88,"") ->  | I91: =IF('Solar prot device - data'!G88<>"",'Solar prot device - data'!G88,"") ->  | J91: =IF('Solar prot device - data'!H88<>"",'Solar prot device - data'!H88,"") ->  | K91: =IF('Solar prot device - data'!I88<>"",'Solar prot device - data'!I88,"") -> 
D92: ='Solar prot device - data'!D89 -> 63 | E92: =("Glazing"&" + "&'Solar prot device - data'!E89) -> Glazing + | H92: =IF('Solar prot device - data'!F89<>"",'Solar prot device - data'!F89,"") ->  | I92: =IF('Solar prot device - data'!G89<>"",'Solar prot device - data'!G89,"") ->  | J92: =IF('Solar prot device - data'!H89<>"",'Solar prot device - data'!H89,"") ->  | K92: =IF('Solar prot device - data'!I89<>"",'Solar prot device - data'!I89,"") -> 
D93: ='Solar prot device - data'!D90 -> 64 | E93: =("Glazing"&" + "&'Solar prot device - data'!E90) -> Glazing + | H93: =IF('Solar prot device - data'!F90<>"",'Solar prot device - data'!F90,"") ->  | I93: =IF('Solar prot device - data'!G90<>"",'Solar prot device - data'!G90,"") ->  | J93: =IF('Solar prot device - data'!H90<>"",'Solar prot device - data'!H90,"") ->  | K93: =IF('Solar prot device - data'!I90<>"",'Solar prot device - data'!I90,"") -> 
D94: ='Solar prot device - data'!D91 -> 65 | E94: =("Glazing"&" + "&'Solar prot device - data'!E91) -> Glazing + | H94: =IF('Solar prot device - data'!F91<>"",'Solar prot device - data'!F91,"") ->  | I94: =IF('Solar prot device - data'!G91<>"",'Solar prot device - data'!G91,"") ->  | J94: =IF('Solar prot device - data'!H91<>"",'Solar prot device - data'!H91,"") ->  | K94: =IF('Solar prot device - data'!I91<>"",'Solar prot device - data'!I91,"") -> 
D95: ='Solar prot device - data'!D92 -> 66 | E95: =("Glazing"&" + "&'Solar prot device - data'!E92) -> Glazing + | H95: =IF('Solar prot device - data'!F92<>"",'Solar prot device - data'!F92,"") ->  | I95: =IF('Solar prot device - data'!G92<>"",'Solar prot device - data'!G92,"") ->  | J95: =IF('Solar prot device - data'!H92<>"",'Solar prot device - data'!H92,"") ->  | K95: =IF('Solar prot device - data'!I92<>"",'Solar prot device - data'!I92,"") ->  | Q95: =IF(AND($H95<>"",$I95<>""),BJ$27*(1-BJ$27*$I95-$K95*BJ$33/BJ$30),"") ->  | Y95: =IF(AND($H95<>"",$J95<>""),$H$21*$H95/(1-$I$21*$J95),"") ->  | Z95: =IF(AND($H95<>"",$J95<>""),$H$22*$H95/(1-$I$22*$J95),"") ->  | AA95: =IF(AND($H95<>"",$J95<>""),$H$23*$H95/(1-$I$23*$J95),"") ->  | AB95: =IF(AND($H95<>"",$J95<>""),$H$24*$H95/(1-$I$24*$J95),"") ->  | AC95: =IF(AND($H95<>"",$I95<>""),$H$21*$H95/(1-$J$21*$I95),"") ->  | AD95: =IF(AND($H95<>"",$I95<>""),$H$22*$H95/(1-$J$22*$I95),"") ->  | AE95: =IF(AND($H95<>"",$I95<>""),$H$23*$H95/(1-$J$23*$I95),"") ->  | AF95: =IF(AND($H95<>"",$I95<>""),$H$24*$H95/(1-$J$24*$I95),"") ->  | AH95: =IF(AND(L95<>"",Y95<>""),L95-Y95,"") ->  | AI95: =IF(AND(M95<>"",Z95<>""),M95-Z95,"") ->  | AJ95: =IF(AND(N95<>"",AA95<>""),N95-AA95,"") ->  | AK95: =IF(AND(O95<>"",AB95<>""),O95-AB95,"") ->  | AL95: =IF(AND(P95<>"",AC95<>""),P95-AC95,"") ->  | AM95: =IF(AND(Q95<>"",AD95<>""),Q95-AD95,"") ->  | AN95: =IF(AND(R95<>"",AE95<>""),R95-AE95,"") ->  | AO95: =IF(AND(S95<>"",AF95<>""),S95-AF95,"") ->  | AQ95: =IF(L95<>"", L95/$G$21,"") ->  | AR95: =IF(M95<>"", M95/$G$22,"") ->  | AS95: =IF(N95<>"", N95/$G$23,"") ->  | AT95: =IF(O95<>"", O95/$G$24,"") ->  | AU95: =IF(P95<>"", P95/$G$21,"") ->  | AV95: =IF(Q95<>"", Q95/$G$22,"") ->  | AW95: =IF(R95<>"", R95/$G$23,"") ->  | AX95: =IF(S95<>"", S95/$G$24,"") ->  | AY95: =IF(T95<>"", T95/$G$21,"") ->  | AZ95: =IF(U95<>"", U95/$G$22,"") ->  | BA95: =IF(V95<>"", V95/$G$23,"") ->  | BB95: =IF(W95<>"", W95/$G$24,"") -> 
D96: ='Solar prot device - data'!D93 -> 67 | E96: =("Glazing"&" + "&'Solar prot device - data'!E93) -> Glazing + | H96: =IF('Solar prot device - data'!F93<>"",'Solar prot device - data'!F93,"") ->  | I96: =IF('Solar prot device - data'!G93<>"",'Solar prot device - data'!G93,"") ->  | J96: =IF('Solar prot device - data'!H93<>"",'Solar prot device - data'!H93,"") ->  | K96: =IF('Solar prot device - data'!I93<>"",'Solar prot device - data'!I93,"") ->  | L96: =IF(AND($H96<>"",$I96<>""),$H96*BI$27+$K96*BI$32/BI$29+$H96*(1-BI$27)*BI$32/BI$28,"") ->  | M96: =IF(AND($H96<>"",$I96<>""),$H96*BJ$27+$K96*BJ$32/BJ$29+$H96*(1-BJ$27)*BJ$32/BJ$28,"") ->  | N96: =IF(AND($H96<>"",$I96<>""),$H96*BK$27+$K96*BK$32/BK$29+$H96*(1-BK$27)*BK$32/BK$28,"") ->  | O96: =IF(AND($H96<>"",$I96<>""),$H96*BL$27+$K96*BL$32/BL$29+$H96*(1-BL$27)*BL$32/BL$28,"") ->  | P96: =IF(AND($H96<>"",$I96<>""),BI$27*(1-BI$27*$I96-$K96*BI$33/BI$30),"") -> 
D97: ='Solar prot device - data'!D94 -> 68 | E97: =("Glazing"&" + "&'Solar prot device - data'!E94) -> Glazing + | H97: =IF('Solar prot device - data'!F94<>"",'Solar prot device - data'!F94,"") ->  | I97: =IF('Solar prot device - data'!G94<>"",'Solar prot device - data'!G94,"") ->  | J97: =IF('Solar prot device - data'!H94<>"",'Solar prot device - data'!H94,"") ->  | K97: =IF('Solar prot device - data'!I94<>"",'Solar prot device - data'!I94,"") -> 
D98: ='Solar prot device - data'!D95 -> 69 | E98: =("Glazing"&" + "&'Solar prot device - data'!E95) -> Glazing + | H98: =IF('Solar prot device - data'!F95<>"",'Solar prot device - data'!F95,"") ->  | I98: =IF('Solar prot device - data'!G95<>"",'Solar prot device - data'!G95,"") ->  | J98: =IF('Solar prot device - data'!H95<>"",'Solar prot device - data'!H95,"") ->  | K98: =IF('Solar prot device - data'!I95<>"",'Solar prot device - data'!I95,"") -> 
D99: ='Solar prot device - data'!D96 -> 70 | E99: =("Glazing"&" + "&'Solar prot device - data'!E96) -> Glazing + | H99: =IF('Solar prot device - data'!F96<>"",'Solar prot device - data'!F96,"") ->  | I99: =IF('Solar prot device - data'!G96<>"",'Solar prot device - data'!G96,"") ->  | J99: =IF('Solar prot device - data'!H96<>"",'Solar prot device - data'!H96,"") ->  | K99: =IF('Solar prot device - data'!I96<>"",'Solar prot device - data'!I96,"") -> 
D100: ='Solar prot device - data'!D97 -> 71 | E100: =("Glazing"&" + "&'Solar prot device - data'!E97) -> Glazing + | H100: =IF('Solar prot device - data'!F97<>"",'Solar prot device - data'!F97,"") ->  | I100: =IF('Solar prot device - data'!G97<>"",'Solar prot device - data'!G97,"") ->  | J100: =IF('Solar prot device - data'!H97<>"",'Solar prot device - data'!H97,"") ->  | K100: =IF('Solar prot device - data'!I97<>"",'Solar prot device - data'!I97,"") -> 
D101: ='Solar prot device - data'!D98 -> 72 | E101: =("Glazing"&" + "&'Solar prot device - data'!E98) -> Glazing + | H101: =IF('Solar prot device - data'!F98<>"",'Solar prot device - data'!F98,"") ->  | I101: =IF('Solar prot device - data'!G98<>"",'Solar prot device - data'!G98,"") ->  | J101: =IF('Solar prot device - data'!H98<>"",'Solar prot device - data'!H98,"") ->  | K101: =IF('Solar prot device - data'!I98<>"",'Solar prot device - data'!I98,"") -> 
D102: ='Solar prot device - data'!D99 -> 73 | E102: =("Glazing"&" + "&'Solar prot device - data'!E99) -> Glazing + | H102: =IF('Solar prot device - data'!F99<>"",'Solar prot device - data'!F99,"") ->  | I102: =IF('Solar prot device - data'!G99<>"",'Solar prot device - data'!G99,"") ->  | J102: =IF('Solar prot device - data'!H99<>"",'Solar prot device - data'!H99,"") ->  | K102: =IF('Solar prot device - data'!I99<>"",'Solar prot device - data'!I99,"") -> 
D103: ='Solar prot device - data'!D100 -> 74 | E103: =("Glazing"&" + "&'Solar prot device - data'!E100) -> Glazing + | H103: =IF('Solar prot device - data'!F100<>"",'Solar prot device - data'!F100,"") ->  | I103: =IF('Solar prot device - data'!G100<>"",'Solar prot device - data'!G100,"") ->  | J103: =IF('Solar prot device - data'!H100<>"",'Solar prot device - data'!H100,"") ->  | K103: =IF('Solar prot device - data'!I100<>"",'Solar prot device - data'!I100,"") -> 
D104: ='Solar prot device - data'!D101 -> 75 | E104: =("Glazing"&" + "&'Solar prot device - data'!E101) -> Glazing + | H104: =IF('Solar prot device - data'!F101<>"",'Solar prot device - data'!F101,"") ->  | I104: =IF('Solar prot device - data'!G101<>"",'Solar prot device - data'!G101,"") ->  | J104: =IF('Solar prot device - data'!H101<>"",'Solar prot device - data'!H101,"") ->  | K104: =IF('Solar prot device - data'!I101<>"",'Solar prot device - data'!I101,"") -> 
D105: ='Solar prot device - data'!D102 -> 76 | E105: =("Glazing"&" + "&'Solar prot device - data'!E102) -> Glazing + | H105: =IF('Solar prot device - data'!F102<>"",'Solar prot device - data'!F102,"") ->  | I105: =IF('Solar prot device - data'!G102<>"",'Solar prot device - data'!G102,"") ->  | J105: =IF('Solar prot device - data'!H102<>"",'Solar prot device - data'!H102,"") ->  | K105: =IF('Solar prot device - data'!I102<>"",'Solar prot device - data'!I102,"") -> 
D106: ='Solar prot device - data'!D103 -> 77 | E106: =("Glazing"&" + "&'Solar prot device - data'!E103) -> Glazing + | H106: =IF('Solar prot device - data'!F103<>"",'Solar prot device - data'!F103,"") ->  | I106: =IF('Solar prot device - data'!G103<>"",'Solar prot device - data'!G103,"") ->  | J106: =IF('Solar prot device - data'!H103<>"",'Solar prot device - data'!H103,"") ->  | K106: =IF('Solar prot device - data'!I103<>"",'Solar prot device - data'!I103,"") -> 
D107: ='Solar prot device - data'!D104 -> 78 | E107: =("Glazing"&" + "&'Solar prot device - data'!E104) -> Glazing + | H107: =IF('Solar prot device - data'!F104<>"",'Solar prot device - data'!F104,"") ->  | I107: =IF('Solar prot device - data'!G104<>"",'Solar prot device - data'!G104,"") ->  | J107: =IF('Solar prot device - data'!H104<>"",'Solar prot device - data'!H104,"") ->  | K107: =IF('Solar prot device - data'!I104<>"",'Solar prot device - data'!I104,"") -> 
D108: ='Solar prot device - data'!D105 -> 79 | E108: =("Glazing"&" + "&'Solar prot device - data'!E105) -> Glazing + | H108: =IF('Solar prot device - data'!F105<>"",'Solar prot device - data'!F105,"") ->  | I108: =IF('Solar prot device - data'!G105<>"",'Solar prot device - data'!G105,"") ->  | J108: =IF('Solar prot device - data'!H105<>"",'Solar prot device - data'!H105,"") ->  | K108: =IF('Solar prot device - data'!I105<>"",'Solar prot device - data'!I105,"") ->  | R108: =IF(AND($H108<>"",$I108<>""),BK$27*(1-BK$27*$I108-$K108*BK$33/BK$30),"") ->  | S108: =IF(AND($H108<>"",$I108<>""),BL$27*(1-BL$27*$I108-$K108*BL$33/BL$30),"") -> 
D109: ='Solar prot device - data'!D106 -> 80 | E109: =("Glazing"&" + "&'Solar prot device - data'!E106) -> Glazing + | H109: =IF('Solar prot device - data'!F106<>"",'Solar prot device - data'!F106,"") ->  | I109: =IF('Solar prot device - data'!G106<>"",'Solar prot device - data'!G106,"") ->  | J109: =IF('Solar prot device - data'!H106<>"",'Solar prot device - data'!H106,"") ->  | K109: =IF('Solar prot device - data'!I106<>"",'Solar prot device - data'!I106,"") -> 
D110: ='Solar prot device - data'!D107 -> 81 | E110: =("Glazing"&" + "&'Solar prot device - data'!E107) -> Glazing + | H110: =IF('Solar prot device - data'!F107<>"",'Solar prot device - data'!F107,"") ->  | I110: =IF('Solar prot device - data'!G107<>"",'Solar prot device - data'!G107,"") ->  | J110: =IF('Solar prot device - data'!H107<>"",'Solar prot device - data'!H107,"") ->  | K110: =IF('Solar prot device - data'!I107<>"",'Solar prot device - data'!I107,"") -> 
D111: ='Solar prot device - data'!D108 -> 82 | E111: =("Glazing"&" + "&'Solar prot device - data'!E108) -> Glazing + | H111: =IF('Solar prot device - data'!F108<>"",'Solar prot device - data'!F108,"") ->  | I111: =IF('Solar prot device - data'!G108<>"",'Solar prot device - data'!G108,"") ->  | J111: =IF('Solar prot device - data'!H108<>"",'Solar prot device - data'!H108,"") ->  | K111: =IF('Solar prot device - data'!I108<>"",'Solar prot device - data'!I108,"") -> 
D112: ='Solar prot device - data'!D109 -> 83 | E112: =("Glazing"&" + "&'Solar prot device - data'!E109) -> Glazing + | H112: =IF('Solar prot device - data'!F109<>"",'Solar prot device - data'!F109,"") ->  | I112: =IF('Solar prot device - data'!G109<>"",'Solar prot device - data'!G109,"") ->  | J112: =IF('Solar prot device - data'!H109<>"",'Solar prot device - data'!H109,"") ->  | K112: =IF('Solar prot device - data'!I109<>"",'Solar prot device - data'!I109,"") -> 
D113: ='Solar prot device - data'!D110 -> 84 | E113: =("Glazing"&" + "&'Solar prot device - data'!E110) -> Glazing + | H113: =IF('Solar prot device - data'!F110<>"",'Solar prot device - data'!F110,"") ->  | I113: =IF('Solar prot device - data'!G110<>"",'Solar prot device - data'!G110,"") ->  | J113: =IF('Solar prot device - data'!H110<>"",'Solar prot device - data'!H110,"") ->  | K113: =IF('Solar prot device - data'!I110<>"",'Solar prot device - data'!I110,"") -> 
D114: ='Solar prot device - data'!D111 -> 85 | E114: =("Glazing"&" + "&'Solar prot device - data'!E111) -> Glazing + | H114: =IF('Solar prot device - data'!F111<>"",'Solar prot device - data'!F111,"") ->  | I114: =IF('Solar prot device - data'!G111<>"",'Solar prot device - data'!G111,"") ->  | J114: =IF('Solar prot device - data'!H111<>"",'Solar prot device - data'!H111,"") ->  | K114: =IF('Solar prot device - data'!I111<>"",'Solar prot device - data'!I111,"") -> 
D115: ='Solar prot device - data'!D112 -> 86 | E115: =("Glazing"&" + "&'Solar prot device - data'!E112) -> Glazing + | H115: =IF('Solar prot device - data'!F112<>"",'Solar prot device - data'!F112,"") ->  | I115: =IF('Solar prot device - data'!G112<>"",'Solar prot device - data'!G112,"") ->  | J115: =IF('Solar prot device - data'!H112<>"",'Solar prot device - data'!H112,"") ->  | K115: =IF('Solar prot device - data'!I112<>"",'Solar prot device - data'!I112,"") -> 
D116: ='Solar prot device - data'!D113 -> 87 | E116: =("Glazing"&" + "&'Solar prot device - data'!E113) -> Glazing + | H116: =IF('Solar prot device - data'!F113<>"",'Solar prot device - data'!F113,"") ->  | I116: =IF('Solar prot device - data'!G113<>"",'Solar prot device - data'!G113,"") ->  | J116: =IF('Solar prot device - data'!H113<>"",'Solar prot device - data'!H113,"") ->  | K116: =IF('Solar prot device - data'!I113<>"",'Solar prot device - data'!I113,"") ->  | T116: =IF(AND($H116<>"",$I116<>""),BI$27*$H116+BI$27*($K116+(1-BI$27)*$I116)*BI$34/BI$31,"") ->  | U116: =IF(AND($H116<>"",$I116<>""),BJ$27*$H116+BJ$27*($K116+(1-BJ$27)*$I116)*BJ$34/BJ$31,"") ->  | V116: =IF(AND($H116<>"",$I116<>""),BK$27*$H116+BK$27*($K116+(1-BK$27)*$I116)*BK$34/BK$31,"") ->  | W116: =IF(AND($H116<>"",$I116<>""),BL$27*$H116+BL$27*($K116+(1-BL$27)*$I116)*BL$34/BL$31,"") -> 
D117: ='Solar prot device - data'!D114 -> 88 | E117: =("Glazing"&" + "&'Solar prot device - data'!E114) -> Glazing + | H117: =IF('Solar prot device - data'!F114<>"",'Solar prot device - data'!F114,"") ->  | I117: =IF('Solar prot device - data'!G114<>"",'Solar prot device - data'!G114,"") ->  | J117: =IF('Solar prot device - data'!H114<>"",'Solar prot device - data'!H114,"") ->  | K117: =IF('Solar prot device - data'!I114<>"",'Solar prot device - data'!I114,"") -> 
D118: ='Solar prot device - data'!D115 -> 89 | E118: =("Glazing"&" + "&'Solar prot device - data'!E115) -> Glazing + | H118: =IF('Solar prot device - data'!F115<>"",'Solar prot device - data'!F115,"") ->  | I118: =IF('Solar prot device - data'!G115<>"",'Solar prot device - data'!G115,"") ->  | J118: =IF('Solar prot device - data'!H115<>"",'Solar prot device - data'!H115,"") ->  | K118: =IF('Solar prot device - data'!I115<>"",'Solar prot device - data'!I115,"") -> 
D119: ='Solar prot device - data'!D116 -> 90 | E119: =("Glazing"&" + "&'Solar prot device - data'!E116) -> Glazing + | H119: =IF('Solar prot device - data'!F116<>"",'Solar prot device - data'!F116,"") ->  | I119: =IF('Solar prot device - data'!G116<>"",'Solar prot device - data'!G116,"") ->  | J119: =IF('Solar prot device - data'!H116<>"",'Solar prot device - data'!H116,"") ->  | K119: =IF('Solar prot device - data'!I116<>"",'Solar prot device - data'!I116,"") -> 
D120: ='Solar prot device - data'!D117 -> 91 | E120: =("Glazing"&" + "&'Solar prot device - data'!E117) -> Glazing + | H120: =IF('Solar prot device - data'!F117<>"",'Solar prot device - data'!F117,"") ->  | I120: =IF('Solar prot device - data'!G117<>"",'Solar prot device - data'!G117,"") ->  | J120: =IF('Solar prot device - data'!H117<>"",'Solar prot device - data'!H117,"") ->  | K120: =IF('Solar prot device - data'!I117<>"",'Solar prot device - data'!I117,"") -> 
D121: ='Solar prot device - data'!D118 -> 92 | E121: =("Glazing"&" + "&'Solar prot device - data'!E118) -> Glazing + | H121: =IF('Solar prot device - data'!F118<>"",'Solar prot device - data'!F118,"") ->  | I121: =IF('Solar prot device - data'!G118<>"",'Solar prot device - data'!G118,"") ->  | J121: =IF('Solar prot device - data'!H118<>"",'Solar prot device - data'!H118,"") ->  | K121: =IF('Solar prot device - data'!I118<>"",'Solar prot device - data'!I118,"") -> 
D122: ='Solar prot device - data'!D119 -> 93 | E122: =("Glazing"&" + "&'Solar prot device - data'!E119) -> Glazing + | H122: =IF('Solar prot device - data'!F119<>"",'Solar prot device - data'!F119,"") ->  | I122: =IF('Solar prot device - data'!G119<>"",'Solar prot device - data'!G119,"") ->  | J122: =IF('Solar prot device - data'!H119<>"",'Solar prot device - data'!H119,"") ->  | K122: =IF('Solar prot device - data'!I119<>"",'Solar prot device - data'!I119,"") -> 
D123: ='Solar prot device - data'!D120 -> 94 | E123: =("Glazing"&" + "&'Solar prot device - data'!E120) -> Glazing + | H123: =IF('Solar prot device - data'!F120<>"",'Solar prot device - data'!F120,"") ->  | I123: =IF('Solar prot device - data'!G120<>"",'Solar prot device - data'!G120,"") ->  | J123: =IF('Solar prot device - data'!H120<>"",'Solar prot device - data'!H120,"") ->  | K123: =IF('Solar prot device - data'!I120<>"",'Solar prot device - data'!I120,"") -> 
D124: ='Solar prot device - data'!D121 -> 95 | E124: =("Glazing"&" + "&'Solar prot device - data'!E121) -> Glazing + | H124: =IF('Solar prot device - data'!F121<>"",'Solar prot device - data'!F121,"") ->  | I124: =IF('Solar prot device - data'!G121<>"",'Solar prot device - data'!G121,"") ->  | J124: =IF('Solar prot device - data'!H121<>"",'Solar prot device - data'!H121,"") ->  | K124: =IF('Solar prot device - data'!I121<>"",'Solar prot device - data'!I121,"") -> 
D125: ='Solar prot device - data'!D122 -> 96 | E125: =("Glazing"&" + "&'Solar prot device - data'!E122) -> Glazing + | H125: =IF('Solar prot device - data'!F122<>"",'Solar prot device - data'!F122,"") ->  | I125: =IF('Solar prot device - data'!G122<>"",'Solar prot device - data'!G122,"") ->  | J125: =IF('Solar prot device - data'!H122<>"",'Solar prot device - data'!H122,"") ->  | K125: =IF('Solar prot device - data'!I122<>"",'Solar prot device - data'!I122,"") -> 
D126: ='Solar prot device - data'!D123 -> 97 | E126: =("Glazing"&" + "&'Solar prot device - data'!E123) -> Glazing + | H126: =IF('Solar prot device - data'!F123<>"",'Solar prot device - data'!F123,"") ->  | I126: =IF('Solar prot device - data'!G123<>"",'Solar prot device - data'!G123,"") ->  | J126: =IF('Solar prot device - data'!H123<>"",'Solar prot device - data'!H123,"") ->  | K126: =IF('Solar prot device - data'!I123<>"",'Solar prot device - data'!I123,"") -> 
D127: ='Solar prot device - data'!D124 -> 98 | E127: =("Glazing"&" + "&'Solar prot device - data'!E124) -> Glazing + | H127: =IF('Solar prot device - data'!F124<>"",'Solar prot device - data'!F124,"") ->  | I127: =IF('Solar prot device - data'!G124<>"",'Solar prot device - data'!G124,"") ->  | J127: =IF('Solar prot device - data'!H124<>"",'Solar prot device - data'!H124,"") ->  | K127: =IF('Solar prot device - data'!I124<>"",'Solar prot device - data'!I124,"") ->  | P127: =IF(AND($H127<>"",$I127<>""),BI$27*(1-BI$27*$I127-$K127*BI$33/BI$30),"") -> 
D128: ='Solar prot device - data'!D125 -> 99 | E128: =("Glazing"&" + "&'Solar prot device - data'!E125) -> Glazing + | H128: =IF('Solar prot device - data'!F125<>"",'Solar prot device - data'!F125,"") ->  | I128: =IF('Solar prot device - data'!G125<>"",'Solar prot device - data'!G125,"") ->  | J128: =IF('Solar prot device - data'!H125<>"",'Solar prot device - data'!H125,"") ->  | K128: =IF('Solar prot device - data'!I125<>"",'Solar prot device - data'!I125,"") -> 
D129: ='Solar prot device - data'!D126 -> 100 | E129: =("Glazing"&" + "&'Solar prot device - data'!E126) -> Glazing + | H129: =IF('Solar prot device - data'!F126<>"",'Solar prot device - data'!F126,"") ->  | I129: =IF('Solar prot device - data'!G126<>"",'Solar prot device - data'!G126,"") ->  | J129: =IF('Solar prot device - data'!H126<>"",'Solar prot device - data'!H126,"") ->  | K129: =IF('Solar prot device - data'!I126<>"",'Solar prot device - data'!I126,"") -> 

Sheet Update
B2: Version # | C2: Date | D2: Main updates
B3: Version 5 | C3: 2007-12-12 | D3: correction cel E18 of the sheet 'Results-2'
B4: Version 6 | C4: 2008-05-15 | D4: Adaptations of the formulae in order to be conform with the new version of the standard EN13363-1 (2007)
B5: Version 7 | C5: 2008-07-24 | D5: The calculation of the 'shading factor' Fc has been added
B6: Version 7.1 | C6: 2021-10-22 | D6: Sends statistical data to BBRI

Sheet GA (hidden)
